Workbook

Sheet AER only (hidden)
B1: Data in these columns used for data validation and database purposes.
B2: Date last modified:
AB4: FOR ELECTRICITY BUSINESSES ONLY
AB5: Feeder Types | AF5: TasNetworks (D) | AG5: MAIFI flag | AH5: Feeder Names
AB6: CBD | AC6: Urban | AD6: Short rural | AE6: long rural | AF6: EXTRA
B7: dms_TradingName_List | C7: dms_TradingNameFull_List | D7: dms_ABN_List | E7: dms_JurisdictionList | F7: dms_Sector_List | G7: dms_Segment_List | H7: dms_FormControl_List | I7: dms_RPT_List | J7: dms_RPTMonth_List | K7: dms_CRCPlength_List | L7: dms_FRCPlength_List | M7: dms_663_List | N7: dms_DeterminationRef_List | O7: dms_Addr1_List | P7: dms_Addr2_List | Q7: dms_Suburb_List | R7: dms_State_List | S7: dms_PostCode_List | T7: dms_PAddr1_List | U7: dms_PAddr2_List | V7: dms_PSuburb_List | W7: dms_PState_List | X7: dms_PPostCode_List | Y7: dms_ContactName1_List | Z7: dms_ContactPh1_List | AA7: dms_ContactEmail_List | AB7: dms_CBD_flag | AC7: dms_Urban_flag | AD7: dms_ShortRural_flag | AE7: dms_LongRural_flag | AF7: dms_FeederType_5_flag | AG7: dms_MAIFI_flag_List | AH7: dms_FeederName_1 | AI7: dms_FeederName_2 | AJ7: dms_FeederName_3 | AK7: dms_FeederName_4 | AL7: dms_FeederName_5
B8: ActewAGL Distribution | C8: ActewAGL Distribution | D8: 76670568688 | E8: ACT | F8: Electricity | G8: Distribution | H8: Revenue cap | I8: Financial | J8: June | K8: 5 | L8: 5 | M8: 5 | N8: 2014-19 Distribution Determination | O8: 40 Bunda Street | Q8: CANBERRA | R8: ACT | S8: 2600 | T8: GPO BOX 366 | V8: CANBERRA | W8: ACT | X8: 2601 | Y8: Robert Walker | Z8: 02 6248 3847 | AA8: robert.walker@actewagle.com.au | AB8: NO | AC8: YES | AD8: YES | AE8: NO | AF8: NO | AH8: CBD | AI8: Urban | AJ8: Short rural | AK8: Long rural
B9: ActewAGL Distribution (Tx Assets) | C9: ActewAGL Distribution (Tx Assets) | D9: 76670568688 | E9: ACT | F9: Electricity | G9: Distribution | H9: Revenue cap | I9: Financial | J9: June | K9: 5 | L9: 5 | M9: 5 | N9: distribution determination | O9: 40 Bunda Street | Q9: CANBERRA | R9: ACT | S9: 2600 | T9: GPO BOX 366 | V9: CANBERRA | W9: ACT | X9: 2601 | Y9: Robert Walker | Z9: 02 6248 3847 | AA9: robert.walker@actewagle.com.au | AH9: CBD | AI9: Urban | AJ9: Short rural | AK9: Long rural
B10: ActewAGL Gas | C10: ActewAGL Gas | D10: 76670568688 | E10: ACT | F10: Gas | G10: Distribution | H10: Weighted average price cap | I10: Financial | J10: June | K10: 5 | L10: 5 | M10: x | O10: 40 Bunda Street | Q10: CANBERRA | R10: ACT | S10: 2600 | T10: GPO BOX 366 | V10: CANBERRA | W10: ACT | X10: 2601 | Y10: Philip Deamer | Z10: 02 6248 3438 | AA10: GasAAReview@actewagl.com.au
B11: AGN | C11: AGN | D11: 78551685 | E11: SA | F11: Gas | G11: Distribution | H11: Revenue cap | I11: Financial | J11: June | K11: 5 | L11: 5 | M11: 5 | N11: distribution determination | R11: SA | AH11: CBD | AI11: Urban | AJ11: Short rural | AK11: Long rural
B12: Amadeus | C12: APT Pipelines (NT) Pty Ltd | D12: 39009737393 | E12: NT | F12: Gas | G12: Transmission | H12: Weighted average price cap | I12: Financial | J12: June | K12: 5 | L12: 5 | M12: x | N12: n/a | O12: Level 19, HSBC Building | P12: 580 George Street | Q12: SYDNEY | R12: NSW | S12: 2000 | T12: Level 19, HSBC Building | U12: 580 George Street | V12: SYDNEY | W12: NSW | X12: 2000 | Y12: Alexandra Curran | Z12: 02 9275 0020 | AA12: alexandra.curran@apa.com.au
B13: APA GasNet | C13: APA VTS Australia Limited | D13: 79096457868 | E13: Vic | F13: Gas | G13: Transmission | I13: Calendar | J13: December | K13: 5 | L13: 5 | M13: x | O13: Level 19, HSBC Building | P13: 580 George Street | Q13: SYDNEY | R13: NSW | S13: 2000 | T13: PO Box R41 | V13: ROYAL EXCHANGE | W13: NSW | X13: 1225 | Z13: 02 9693 0000
B14: Ausgrid | C14: Ausgrid | D14: 67505337385 | E14: NSW | F14: Electricity | G14: Distribution | H14: Revenue cap | I14: Financial | J14: June | K14: 5 | L14: 5 | M14: 5 | N14: 2014-19 Distribution Determination | O14: 570 George St | Q14: SYDNEY | R14: NSW | S14: 2000 | Y14: John Thomson | Z14: (02) 9269 2312 | AA14: john.thomson@ausgrid.com.au | AB14: YES | AC14: YES | AD14: YES | AE14: YES | AF14: NO | AH14: CBD | AI14: Urban | AJ14: Short rural | AK14: Long rural
B15: Ausgrid (Tx Assets) | C15: Ausgrid (Tx Assets) | D15: 67505337385 | E15: NSW | F15: Electricity | G15: Distribution | H15: Revenue cap | I15: Financial | J15: June | K15: 5 | L15: 5 | M15: 5 | N15: distribution determination | R15: NSW | AH15: CBD | AI15: Urban | AJ15: Short rural | AK15: Long rural
B16: AusNet (D) | C16: AusNet Services (D) | D16: 91064651118 | E16: Vic | F16: Electricity | G16: Distribution | H16: Revenue cap | I16: Calendar | J16: December | K16: 5 | L16: 5 | M16: 2 | N16: 2016-20 Distribution Determination | O16: Level 32 | P16: 2 Southbank Boulevard | Q16: SOUTHBANK | R16: Vic | S16: 3006 | T16: Locked Bag 14051 | V16: MELBOURNE CITY MAIL CENTRE | W16: VIC | X16: 8001 | Y16: Hannah Williams | Z16: 03 9683 4088 | AA16: hwilliams@powercor.com.au | AC16: YES | AD16: YES | AE16: YES | AF16: NO | AH16: CBD | AI16: Urban | AJ16: Short rural | AK16: Long rural
B17: AusNet (Gas) | F17: Gas | G17: Distribution | I17: Calendar | J17: December | K17: 5 | L17: 5 | M17: X
B18: AusNet (T) | C18: AusNet (T) | D18: 48116124362 | E18: Vic | F18: Electricity | G18: Transmission | H18: Revenue cap | I18: Financial | J18: March | K18: 5 | L18: 5 | M18: 2 | N18: transmission determination | O18: Level 32 | P18: 2 Southbank Boulevard | Q18: SOUTHBANK | R18: Vic | S18: 3006 | Y18: Tom Hallam | Z18: 03 9695 6617 | AA18: Thomas.hallam@SP-Ausnet.com.au | AH18: CBD | AI18: Urban | AJ18: Short rural | AK18: Long rural
B19: Australian Distribution Co. | C19: Australian Distribution Co. | D19: 11222333444 | E19: - | F19: Electricity | G19: Distribution | H19: Revenue cap | I19: Financial | J19: June | K19: 5 | L19: 5 | M19: 2 | N19: distribution determination | R19: - | AH19: CBD | AI19: Urban | AJ19: Short rural | AK19: Long rural
B20: Australian Transmission Co. | C20: Australian Transmission Co. | D20: 11222333444 | E20: - | F20: Electricity | G20: Transmission | H20: Revenue cap | I20: Financial | J20: June | K20: 5 | L20: 5 | M20: 5 | N20: transmission determination | R20: - | AH20: CBD | AI20: Urban | AJ20: Short rural | AK20: Long rural
B21: CitiPower | C21: CitiPower | D21: 76064651056 | E21: Vic | F21: Electricity | G21: Distribution | H21: Revenue cap | I21: Calendar | J21: December | K21: 5 | L21: 5 | M21: 2 | N21: 2016-20 Distribution Determination | O21: 40 Market Street | Q21: MELBOURNE | R21: Vic | S21: 3000 | T21: Locked Bag 14090 | V21: MELBOURNE | W21: VIC | X21: 8001 | Y21: Hannah Williams | Z21: 03 9683 4088 | AA21: hwilliams@powercor.com.au | AB21: YES | AC21: YES | AD21: NO | AE21: NO | AF21: NO | AH21: CBD | AI21: Urban | AJ21: Short rural | AK21: Long rural
B22: Directlink | C22: Directlink | D22: 16779340889 | E22: Qld | F22: Electricity | G22: Transmission | H22: Revenue cap | I22: Financial | J22: June | K22: 9 | L22: 5 | M22: 5 | N22: transmission determination | R22: NSW | AH22: CBD | AI22: Urban | AJ22: Short rural | AK22: Long rural
B23: ElectraNet | C23: ElectraNet | D23: 41094482416 | E23: SA | F23: Electricity | G23: Transmission | H23: Revenue cap | I23: Financial | J23: June | K23: 5 | L23: 5 | M23: 5 | N23: transmission determination | O23: 52-55 East Terrace | P23: Rymill Park | Q23: ADELAIDE | R23: SA | S23: 5000 | T23: PO Box 7096 | U23: Hutt Street Post Office | V23: ADELAIDE | W23: SA | X23: 5000 | Y23: Bill Jackson | Z23: 08 8404 7969 | AA23: jackson.bill@electranet.com.au | AH23: CBD | AI23: Urban | AJ23: Short rural | AK23: Long rural
B24: Endeavour Energy | C24: Endeavour Energy | D24: 59253130878 | E24: NSW | F24: Electricity | G24: Distribution | H24: Revenue cap | I24: Financial | J24: June | K24: 5 | L24: 5 | M24: 5 | N24: 2014-19 Distribution Determination | O24: 51 Huntingwood Drive | Q24: HUNTINGWOOD | R24: NSW | S24: 2148 | T24: PO Box 811 | V24: SEVEN HILLS | W24: NSW | Y24: Jon Hocking | Z24: 02 9853 4386 / 0407 348 156 | AA24: Jon.Hocking@Endeavourenergy.com.au | AB24: NO | AC24: YES | AD24: YES | AE24: YES | AF24: NO | AH24: CBD | AI24: Urban | AJ24: Short rural | AK24: Long rural
B25: Energex | C25: Energex | D25: 40078849055 | E25: Qld | F25: Electricity | G25: Distribution | H25: Revenue cap | I25: Financial | J25: June | K25: 5 | L25: 5 | M25: 5 | N25: 2015-20 Distribution Determination | O25: 26 Reddacliff Street | Q25: NEWSTEAD | R25: Qld | S25: 4006 | T25: 26 Reddacliff Street | V25: NEWSTEAD | W25: QLD | X25: 4006 | Y25: Nicola Roscoe | Z25: 07 3664 5891 | AA25: nicolaroscoe@energex.com.au | AB25: YES | AC25: YES | AD25: YES | AE25: NO | AF25: NO | AH25: CBD | AI25: Urban | AJ25: Short rural | AK25: Long rural
B26: Ergon Energy | C26: Ergon Energy | D26: 50087646062 | E26: Qld | F26: Electricity | G26: Distribution | H26: Revenue cap | I26: Financial | J26: June | K26: 5 | L26: 5 | M26: 5 | N26: 2015-20 Distribution Determination | O26: 22 Walker Street | Q26: TOWNSVILLE | R26: Qld | S26: 4810 | T26: Po Box 264 | V26: FORTITUDE VALLEY | W26: QLD | X26: 4006 | Y26: Jenny Doyle, Group Manager Regulatory Affairs | Z26: (07) 3851 6416 | AA26: jenny.doyle@ergon.com.au | AB26: NO | AC26: YES | AD26: YES | AE26: YES | AF26: NO | AH26: CBD | AI26: Urban | AJ26: Short rural | AK26: Long rural
B27: Envestra (Victoria and Albury) | C27: Australian Gas Networks Limited | D27: 19078551685 | E27: SA | F27: Gas | G27: Distribution | I27: Calendar | J27: December | K27: 5 | L27: 5 | M27: x | O27: Level 10 | P27: 81 Flinders Street | Q27: ADELAIDE | R27: SA | S27: 5000 | Z27: 08 8227 1500
B28: Essential Energy | C28: Essential Energy | D28: 37428185226 | E28: NSW | F28: Electricity | G28: Distribution | H28: Revenue cap | I28: Financial | J28: June | K28: 5 | L28: 5 | M28: 5 | N28: 2014-19 Distribution Determination | O28: 8 Buller Street | Q28: PORT MACQUARIE | R28: NSW | T28: PO Box 5730 | V28: PORT MACQUARIE | W28: NSW | Y28: Catherine Waddell | Z28: 02 6338 3553 | AA28: catherine.waddell@essentialenergy.com.au | AD28: YES | AE28: YES | AF28: NO | AH28: CBD | AI28: Urban | AJ28: Short rural | AK28: Long rural
B29: Jemena Electricity | C29: Jemena Electricity | D29: 82064651083 | E29: Vic | F29: Electricity | G29: Distribution | H29: Revenue cap | I29: Calendar | J29: December | K29: 5 | L29: 5 | M29: 2 | N29: 2016-20 Distribution Determination | O29: Level 16 | P29: 567 Collins Street | Q29: MELBOURNE | R29: VIC | S29: 3000 | T29: PO Box 16182 | V29: MELBOURNE | W29: VIC | X29: 8001 | Y29: Robert McMillan | Z29: 03 9173 7000 | AA29: robert.mcmillan@jemena.com.au | AD29: YES | AE29: NO | AF29: NO | AH29: CBD | AI29: Urban | AJ29: Short rural | AK29: Long rural
B30: Multinet Gas | C30: Multinet Gas (DB No.1) Pty Ltd (ACN 086 026 986), Multinet Gas (DB No.2) Pty Ltd (ACN 086 230 122) | D30: 86026986 | E30: Vic | F30: Gas | G30: Distribution | I30: Calendar | J30: December | K30: 5 | L30: 5 | M30: x
B31: Murraylink | C31: Murraylink | D31: 79181207909 | E31: SA | F31: Electricity | G31: Transmission | H31: Revenue cap | I31: Financial | J31: June | K31: 5 | L31: 5 | M31: 5 | N31: transmission determination | AH31: CBD | AI31: Urban | AJ31: Short rural | AK31: Long rural
B32: Powercor Australia | C32: Powercor Australia | D32: 89064651109 | E32: Vic | F32: Electricity | G32: Distribution | H32: Revenue cap | I32: Calendar | J32: December | K32: 5 | L32: 5 | M32: 2 | N32: 2016-20 Distribution Determination | O32: 40 Market Street | Q32: MELBOURNE | R32: Vic | S32: 3000 | T32: Locked bag 14090 | V32: MELBOURNE | W32: VIC | X32: 8001 | Y32: Hannah Williams | Z32: 03 9683 4088 | AA32: hwilliams@powercor.com.au | AD32: YES | AE32: YES | AF32: NO | AH32: CBD | AI32: Urban | AJ32: Short rural | AK32: Long rural
B33: Powerlink | C33: Queensland Electricity Transmission Corporation Limited trading as Powerlink Queensland | D33: 82078849233 | E33: Qld | F33: Electricity | G33: Transmission | H33: Revenue cap | I33: Financial | J33: June | K33: 5 | L33: 5 | M33: 5 | N33: transmission determination | O33: 33 Harold St | Q33: VIRGINIA | R33: Qld | S33: 4014 | T33: PO Box 1193 | V33: VIRGINIA | W33: QLD | X33: 4014 | Y33: Jennifer Harris | Z33: 07 3860 2667 | AA33: jharris@powerlink.com.au | AH33: CBD | AI33: Urban | AJ33: Short rural | AK33: Long rural
B34: Roma to Brisbane Pipeline | C34: APT Petroleum Pipelines Limited t/a Roma to Brisbane Pipeline | D34: 009 737 393 | E34: Qld | F34: Gas | G34: Distribution | H34: ? | I34: Financial | J34: June | K34: 5 | L34: 5 | M34: x | N34: n/a | AH34: CBD | AI34: Urban | AJ34: Short rural | AK34: Long rural
B35: SA Power Networks | C35: SA Power Networks | D35: 13332330749 | E35: SA | F35: Electricity | G35: Distribution | H35: Revenue cap | I35: Financial | J35: June | K35: 5 | L35: 5 | M35: 5 | N35: 2015-20 Distribution Determination | O35: 1 Anzac Highway | Q35: KESWICK | R35: SA | S35: 5035 | T35: GPO Box 77 | V35: ADELAIDE | W35: SA | Y35: Damien O'Connor | Z35: 08 8404 5066 | AA35: damien.oconnor@sapowernetworks.com.au | AD35: YES | AE35: YES | AF35: NO | AH35: CBD | AI35: Urban | AJ35: Short rural | AK35: Long rural
B36: TasNetworks (D) | C36: TasNetworks (D) | D36: 24167357299 | E36: Tas | F36: Electricity | G36: Distribution | H36: Revenue cap | I36: Financial | J36: June | K36: 5 | L36: 5 | M36: 5 | N36: distribution determination | O36: 21 Kirksway Place | Q36: HOBART | R36: Tas | S36: 7000 | T36: GPO Box 191 | V36: HOBART | W36: Tas | Y36: Leigh Mayne | Z36: 03 6270 3691 | AA36: rrp2012@auroraenergy.com.au | AD36: YES | AE36: YES | AF36: YES | AH36: Critical Infrastructure | AI36: High density commercial | AJ36: Urban | AK36: High density rural | AL36: Low density rural
B37: TasNetworks (T) | C37: TasNetworks (T) | D37: 24167357299 | E37: Tas | F37: Electricity | G37: Transmission | H37: Revenue cap | I37: Financial | J37: March | K37: 5 | L37: 5 | M37: 5 | N37: transmission determination | O37: 1-7 Maria Street | Q37: LENAH VALLEY | R37: Tas | S37: 7008 | T37: PO Box 606 | V37: MOONAH | W37: Tas | Y37: Heath Dillon | Z37: 03 6274 3664 | AA37: heath.dillon@transend.com.au | AH37: CBD | AI37: Urban | AJ37: Short rural | AK37: Long rural
B38: TransGrid | C38: TransGrid | D38: 19622755774 | E38: NSW | F38: Electricity | G38: Transmission | H38: Revenue cap | I38: Financial | J38: June | K38: 5 | L38: 4 | M38: 5 | N38: transmission determination | O38: 180 Thomas Street | Q38: HAYMARKET | R38: NSW | S38: 2000 | T38: PO Box A1000 | V38: SYDNEY SOUTH | W38: NSW | Y38: Andrew Kingsmill | Z38: 02 9284 3149 | AA38: andrew.kingsmill@transgrid.com.au | AH38: CBD | AI38: Urban | AJ38: Short rural | AK38: Long rural
B39: United Energy | C39: United Energy | D39: 70064651029 | E39: Vic | F39: Electricity | G39: Distribution | H39: Revenue cap | I39: Calendar | J39: December | K39: 5 | L39: 5 | M39: 2 | N39: 2016-20 Distribution Determination | O39: Level 3 | P39: 6 Nexus Court | Q39: MULGRAVE | R39: Vic | S39: 3149 | T39: PO Box 449 | V39: MOUNT WAVERLEY | W39: VIC | X39: 3170 | Y39: Mathew Abraham | Z39: 03 8846 9758 | AA39: mathew.abraham@ue.com.au | AD39: YES | AE39: NO | AF39: NO | AH39: CBD | AI39: Urban | AJ39: Short rural | AK39: Long rural
B40: Western Power (D) | C40: Western Power (D) | D40: 18540492861 | E40: WA | F40: Electricity | G40: Distribution | H40: Revenue cap | I40: Financial | J40: June | K40: 12 | L40: 4 | M40: x | N40: distribution determination | O40: 363 Wellington Street | Q40: PERTH | R40: WA | S40: 6000 | T40: GPO Box L921 | V40: PERTH | W40: WA | X40: 6842 | Y40: Judy Hunter | Z40: 08 9326 6239 | AA40: judy.hunter@westernpower.com.au | AD40: YES | AE40: YES | AF40: NO | AG40: NO | AH40: CBD | AI40: Urban | AJ40: Short rural | AK40: Long rural
B41: Western Power (T) | C41: Western Power (T) | D41: 18540492861 | E41: WA | F41: Electricity | G41: Transmission | H41: Revenue cap | I41: Financial | J41: June | K41: 12 | L41: 4 | M41: x | N41: transmission determination | O41: 363 Wellington Street | Q41: PERTH | R41: WA | S41: 6000 | T41: GPO Box L921 | V41: PERTH | W41: WA | X41: 6842 | Y41: Judy Hunter | Z41: 08 9326 6239 | AA41: judy.hunter@westernpower.com.au | AD41: YES | AE41: YES | AF41: NO | AH41: CBD | AI41: Urban | AJ41: Short rural | AK41: Long rural
W44: For EB & Reset RINs only
B45: The Reg Year Ending (dms_RYE) must be set to the last year of the regulatory period. For forecast data is is usually (FRCP_y5) for actual it is a single year (CRY). For historical actual data the RYE will need to be set manually in the business details sheet by setting the dms_Multiyear_flag to 1 and putting the correct value in 'dms_Specified_FinalYear. See cells C67:C68 | G45: =IF(dms_RPT="financial",VALUE(LEFT(CRCP_y1,4)-1)&"-"&TEXT(VALUE(RIGHT(CRCP_y1,2)-1),"00"),VALUE(LEFT(CRCP_y1,4)-1)) -> 2012-13 | N45: Drop down selector box for CA & Reset RINs. | O45: For CA & Reset RINs only | W45: for DNSP only | AH45: Reason for interruption | AI45: dms_Reason_Interruption_Detailed | AJ45: dms_Reason_Interruption
B46: dms_Model_List | C46: DELETE NR 'CRY' IF NOT AN ANNUAL RIN (EB, CA , ARR) | E46: dms_RYE_Formula_Result | N46: dms_0203_ProjectType | O46: dms_020303_01_UOM | P46: dms_020501_01_UOM | Q46: dms_020501_02_UOM | R46: dms_020501_03_UOM | S46: dms_020501_04_UOM | T46: dms_020603_01_UOM | U46: dms_040102_01_UOM | V46: dms_040102_04_UOM | W46: dms_030601_01_UOM | X46: dms_030601_02_UOM | Y46: dms_030701_01_UOM | Z46: dms_030702_01_UOM | AA46: dms_030703_01_UOM | AH46: Animal | AI46: Animal impact | AJ46: Animal
B47: ARR | C47: ANNUAL REPORTING STATEMENT | E47: =LEFT(dms_SingleYear_FinalYear_Result,2)&RIGHT(dms_SingleYear_FinalYear_Result,2) ->  | F47: =LEFT(dms_SingleYear_FinalYear_Result,2)&RIGHT(dms_SingleYear_FinalYear_Result,2) | H47: Formula errors are OK | N47: New line on new route - single circuit | O47: Circuit line length in km | P47: 0's | Q47: 0's | R47: 0's | S47: 0's | T47: 0's | U47: 0's | V47: days | W47: minutes/customer | X47: minutes/customer | Y47: Customer / km | Z47: % | AA47: km | AI47: Animal nesting/burrowing, etc and other | AJ47: Asset failure
B48: CA | C48: CATEGORY ANALYSIS | E48: =LEFT(dms_SingleYear_FinalYear_Result,2)&RIGHT(dms_SingleYear_FinalYear_Result,2) ->  | F48: =LEFT(dms_SingleYear_FinalYear_Result,2)&RIGHT(dms_SingleYear_FinalYear_Result,2) | H48: Formula errors are OK | N48: New line on new route - dual circuit | O48: Circuit line length in km | P48: 0's | Q48: 0's | R48: 0's | S48: 0's | T48: 0's | U48: 0's | V48: 0's | W48: minutes/customer | X48: minutes/customer | Y48: MWh/customer | Z48: Number of spans | AI48: Other | AJ48: Other
B49: CPI | C49: CPI | N49: New line on new route - other | O49: Circuit line length in km | P49: MVA added | Q49: MVA added | R49: MVA added | S49: MVA added | T49: 0's | U49: 0's | V49: $0s real | W49: interruptions/customer | X49: interruptions/customer | Y49: kVA / customer | Z49: Number of spans | AH49: Asset failure | AI49: LV | AJ49: Overloads
B50: EB | C50: ECONOMIC BENCHMARKING | E50: =LEFT(dms_SingleYear_FinalYear_Result,2)&RIGHT(dms_SingleYear_FinalYear_Result,2) ->  | F50: =LEFT(dms_SingleYear_FinalYear_Result,2)&RIGHT(dms_SingleYear_FinalYear_Result,2) | H50: Formula errors are OK | N50: Line rebuild over existing route - single circuit | O50: Circuit line length in km | P50: 0's | Q50: 0's | R50: 0's | S50: 0's | T50: 0's | U50: $0s real | V50: 0's | W50: interruptions/customer | X50: interruptions/customer | Z50: Number of spans | AI50: Distribution substation | AJ50: Planned
B51: PTRM | C51: POST TAX REVENUE MODEL | E51: =LEFT(dms_MultiYear_FinalYear_Result,2)&RIGHT(dms_MultiYear_FinalYear_Result,2) -> 2023 | F51: =LEFT(dms_MultiYear_FinalYear_Result,2)&RIGHT(dms_MultiYear_FinalYear_Result,2) | N51: Line rebuild over existing route - dual circuit | O51: Number | P51: total spend $0s real | Q51: total spend $0s real | R51: total spend $0s real | S51: total spend $0s real | T51: (per cent) | Z51: Number of spans | AI51: HV | AJ51: Network business
B52: Reset | C52: REGULATORY REPORTING STATEMENT | E52: =LEFT(dms_MultiYear_FinalYear_Result,2)&RIGHT(dms_MultiYear_FinalYear_Result,2) -> 2023 | F52: =LEFT(dms_MultiYear_FinalYear_Result,2)&RIGHT(dms_MultiYear_FinalYear_Result,2) | H52: Formula errors are OK | N52: Reconductor - Single circuit | O52: Number | P52: net circuit km added | Q52: net circuit km added | R52: net circuit km added | S52: net circuit km added | Z52: Years | AI52: Zone substation | AJ52: Third party
B53: RFM | C53: ROLL FORWARD MODEL | E53: =LEFT(dms_CRCP_FinalYear_Result,2)&RIGHT(dms_CRCP_FinalYear_Result,2) -> 2018 | F53: =LEFT(dms_CRCP_FinalYear_Result,2)&RIGHT(dms_CRCP_FinalYear_Result,2) | N53: Reconductor - Dual circuit | O53: Number | P53: total spend $0s real | Q53: total spend $0s real | R53: total spend $0s real | S53: total spend $0s real | Z53: Years | AI53: Subtransmission | AJ53: Unknown
B54: WACC | C54: WEIGHTED AVERAGE COST OF CAPITAL | E54: =LEFT(dms_MultiYear_FinalYear_Result,2)&RIGHT(dms_MultiYear_FinalYear_Result,2) -> 2023 | F54: =LEFT(dms_MultiYear_FinalYear_Result,2)&RIGHT(dms_MultiYear_FinalYear_Result,2) | N54: Other | P54: net circuit km added | Q54: net circuit km added | R54: net circuit km added | S54: net circuit km added | Z54: Trees | AH54: Other | AI54: insert description of 'other' | AJ54: Vegetation
P55: total spend $0s real | Q55: total spend $0s real | R55: total spend $0s real | S55: total spend $0s real | Z55: Trees | AH55: Overloads | AI55: - | AJ55: Weather
P56: 0's | R56: $0s real | Z56: Defects | AH56: Planned | AI56: - | AJ56: 2 - STPIS Exclusion (3.3)(a)
P57: 0's | Z57: Defects | AH57: Network business | AI57: Network error | AJ57: 3 - STPIS Exclusion (3.3)(a)
P58: 0's | Z58: Spans | AI58: Switching and protection error | AJ58: 4 - STPIS Exclusion (3.3)(a)
P59: $0s real | Z59: km | AH59: Third party | AI59: Fire | AJ59: 5 - STPIS Exclusion (3.3)(a)
Z60: Spans | AI60: Other | AJ60: 6 - STPIS Exclusion (3.3)(a)
AI61: Dig-in | AJ61: 7 - STPIS Exclusion (3.3)(a)
AI62: Unauthorised access
B63: For all files either AER or business needs to be able to specify the type of submission | C63: For PTRM & RFM templates we must provide a choice in case they change their form of control - otherwise it is drawn from the business specific lookup table above. | E63: These are indeces and lookup values for various dates. All step from the value placed in FRCP_y1 on the business and other details worksheet | W63: for TNSP only | AI63: Vehicle impact
B64: dms_SourceList | C64: dms_FormControl_Choices | E64: dms_FRCPlength_Num_List | F64: dms_FinalYear_List | G64: dms_CRCPlength_Num_List | H64: dms_CFinalYear_List | I64: dms_FRCP_years | K64: dms_CRCP_years | M64: dms_CRCP_index | W64: dms_030601_01_UOM | Y64: dms_030701_01_UOM | Z64: dms_030702_01_UOM | AH64: Unknown | AI64: Unknown
B65: After appeal | C65: Revenue cap | E65: 1 | F65: dms_FRCP_y1 | G65: 1 | H65: CRCP_y1 | I65: =FRCP_y1 -> 2018-19 | J65: dms_FRCP_y1 | K65: =IF(dms_RPT="financial",VALUE(LEFT(dms_FRCP_y1,4)-1)&"-"&TEXT(VALUE(MID(dms_FRCP_y1,3,2)),"00"),VALUE(LEFT(dms_FRCP_y1,4)-1)) -> 2017-18 | L65: dms_CRCP_yZ | M65: 1 | W65: % | Y65: Number of spans | Z65: km | AH65: Vegetation | AI65: Blow-in/Fall-in - NSP responsibility
B66: Draft decision | C66: Revenue yield | E66: 2 | F66: dms_FRCP_y2 | G66: 2 | H66: CRCP_y2 | I66: =IF(dms_RPT="financial",VALUE(LEFT(dms_FRCP_y1,4)+1)&"-"&TEXT(VALUE(RIGHT(dms_FRCP_y1,2)+1),"00"),VALUE(LEFT(dms_FRCP_y1,4)+1)) -> 2019-20 | J66: dms_FRCP_y2 | K66: =IF(dms_RPT="financial",VALUE(LEFT(dms_CRCP_yZ,4)-1)&"-"&TEXT(VALUE(MID(dms_CRCP_yZ,3,2)),"00"),VALUE(LEFT(dms_CRCP_yZ,4)-1)) -> 2016-17 | L66: dms_CRCP_yY | M66: 2 | W66: number | Y66: Years | Z66: % | AI66: Grow-in - NSP responsibility
B67: Final decision | C67: Weighted average price cap | E67: 3 | F67: dms_FRCP_y3 | G67: 3 | H67: CRCP_y3 | I67: =IF(dms_RPT="financial",VALUE(LEFT(dms_FRCP_y2,4)+1)&"-"&TEXT(VALUE(RIGHT(dms_FRCP_y2,2)+1),"00"),VALUE(LEFT(dms_FRCP_y2,4)+1)) -> 2020-21 | J67: dms_FRCP_y3 | K67: =IF(dms_RPT="financial",VALUE(LEFT(dms_CRCP_yY,4)-1)&"-"&TEXT(VALUE(MID(dms_CRCP_yY,3,2)),"00"),VALUE(LEFT(dms_CRCP_yY,4)-1)) -> 2015-16 | L67: dms_CRCP_yX | M67: 3 | W67: number | Y67: Trees | Z67: km | AI67: Blow-in/Fall-in - Other responsible party
B68: PTRM update 1 | E68: 4 | F68: dms_FRCP_y4 | G68: 4 | H68: CRCP_y4 | I68: =IF(dms_RPT="financial",VALUE(LEFT(dms_FRCP_y3,4)+1)&"-"&TEXT(VALUE(RIGHT(dms_FRCP_y3,2)+1),"00"),VALUE(LEFT(dms_FRCP_y3,4)+1)) -> 2021-22 | J68: dms_FRCP_y4 | K68: =IF(dms_RPT="financial",VALUE(LEFT(dms_CRCP_yX,4)-1)&"-"&TEXT(VALUE(MID(dms_CRCP_yX,3,2)),"00"),VALUE(LEFT(dms_CRCP_yX,4)-1)) -> 2014-15 | L68: dms_CRCP_yW | M68: 4 | W68: % | Y68: Defects | Z68: number | AI68: Grow-in - Other responsible party
B69: PTRM update 2 | E69: 5 | F69: dms_FRCP_y5 | G69: 5 | H69: CRCP_y5 | I69: =IF(dms_RPT="financial",VALUE(LEFT(dms_FRCP_y4,4)+1)&"-"&TEXT(VALUE(RIGHT(dms_FRCP_y4,2)+1),"00"),VALUE(LEFT(dms_FRCP_y4,4)+1)) -> 2022-23 | J69: dms_FRCP_y5 | K69: =IF(dms_RPT="financial",VALUE(LEFT(dms_CRCP_yW,4)-1)&"-"&TEXT(VALUE(MID(dms_CRCP_yW,3,2)),"00"),VALUE(LEFT(dms_CRCP_yW,4)-1)) -> 2013-14 | L69: dms_CRCP_yV | M69: 5 | W69: number | Y69: Number of spans | AH69: Weather
B70: PTRM update 3 | E70: 6 | F70: dms_FRCP_y6 | G70: 6 | H70: CRCP_y6 | I70: =IF(dms_RPT="financial",VALUE(LEFT(dms_FRCP_y5,4)+1)&"-"&TEXT(VALUE(RIGHT(dms_FRCP_y5,2)+1),"00"),VALUE(LEFT(dms_FRCP_y5,4)+1)) -> 2023-24 | J70: dms_FRCP_y6 | K70: =IF(dms_RPT="financial",VALUE(LEFT(dms_CRCP_yV,4)-1)&"-"&TEXT(VALUE(MID(dms_CRCP_yV,3,2)),"00"),VALUE(LEFT(dms_CRCP_yV,4)-1)) -> 2012-13 | L70: dms_CRCP_yU | M70: 6 | W70: number | Y70: km | AH70: 2 - STPIS Exclusion (3.3)(a)
B71: PTRM update 4 | E71: 7 | F71: dms_FRCP_y7 | G71: 7 | H71: CRCP_y7 | I71: =IF(dms_RPT="financial",VALUE(LEFT(dms_FRCP_y6,4)+1)&"-"&TEXT(VALUE(RIGHT(dms_FRCP_y6,2)+1),"00"),VALUE(LEFT(dms_FRCP_y6,4)+1)) -> 2024-25 | J71: dms_FRCP_y7 | K71: =IF(dms_RPT="financial",VALUE(LEFT(dms_CRCP_yU,4)-1)&"-"&TEXT(VALUE(MID(dms_CRCP_yU,3,2)),"00"),VALUE(LEFT(dms_CRCP_yU,4)-1)) -> 2011-12 | L71: dms_CRCP_yT | M71: 7 | W71: % | Y71: km | AH71: 3 - STPIS Exclusion (3.3)(a)
B72: PTRM update 5 | E72: 8 | F72: dms_FRCP_y8 | G72: 8 | H72: CRCP_y8 | I72: =IF(dms_RPT="financial",VALUE(LEFT(dms_FRCP_y7,4)+1)&"-"&TEXT(VALUE(RIGHT(dms_FRCP_y7,2)+1),"00"),VALUE(LEFT(dms_FRCP_y7,4)+1)) -> 2025-26 | J72: dms_FRCP_y8 | K72: =IF(dms_RPT="financial",VALUE(LEFT(dms_CRCP_yT,4)-1)&"-"&TEXT(VALUE(MID(dms_CRCP_yT,3,2)),"00"),VALUE(LEFT(dms_CRCP_yT,4)-1)) -> 2010-11 | L72: dms_CRCP_yS | M72: 8 | W72: number | Y72: Number of spans | AH72: 4 - STPIS Exclusion (3.3)(a)
B73: PTRM update 6 | E73: 9 | F73: dms_FRCP_y9 | G73: 9 | H73: CRCP_y9 | I73: =IF(dms_RPT="financial",VALUE(LEFT(dms_FRCP_y8,4)+1)&"-"&TEXT(VALUE(RIGHT(dms_FRCP_y8,2)+1),"00"),VALUE(LEFT(dms_FRCP_y8,4)+1)) -> 2026-27 | J73: dms_FRCP_y9 | K73: =IF(dms_RPT="financial",VALUE(LEFT(dms_CRCP_yS,4)-1)&"-"&TEXT(VALUE(MID(dms_CRCP_yS,3,2)),"00"),VALUE(LEFT(dms_CRCP_yS,4)-1)) -> 2009-10 | L73: dms_CRCP_yR | M73: 9 | W73: number | AH73: 5 - STPIS Exclusion (3.3)(a)
B74: PTRM update 7 | E74: 10 | F74: dms_FRCP_y10 | G74: 10 | H74: CRCP_y10 | I74: =IF(dms_RPT="financial",VALUE(LEFT(dms_FRCP_y9,4)+1)&"-"&TEXT(VALUE(RIGHT(dms_FRCP_y9,2)+1),"00"),VALUE(LEFT(dms_FRCP_y9,4)+1)) -> 2027-28 | J74: dms_FRCP_y10 | K74: =IF(dms_RPT="financial",VALUE(LEFT(dms_CRCP_yR,4)-1)&"-"&TEXT(VALUE(MID(dms_CRCP_yR,3,2)),"00"),VALUE(LEFT(dms_CRCP_yR,4)-1)) -> 2008-09 | L74: dms_CRCP_yQ | M74: 10 | W74: % | AH74: 6 - STPIS Exclusion (3.3)(a)
B75: Regulatory proposal | E75: 11 | F75: dms_FRCP_y11 | G75: 11 | H75: CRCP_y11 | I75: =IF(dms_RPT="financial",VALUE(LEFT(dms_FRCP_y10,4)+1)&"-"&TEXT(VALUE(RIGHT(dms_FRCP_y10,2)+1),"00"),VALUE(LEFT(dms_FRCP_y10,4)+1)) -> 2028-29 | J75: dms_FRCP_y11 | K75: =IF(dms_RPT="financial",VALUE(LEFT(dms_CRCP_yQ,4)-1)&"-"&TEXT(VALUE(MID(dms_CRCP_yQ,3,2)),"00"),VALUE(LEFT(dms_CRCP_yQ,4)-1)) -> 2007-08 | L75: dms_CRCP_yP | M75: 11 | W75: number | AH75: 7 - STPIS Exclusion (3.3)(a)
B76: Reporting | E76: 12 | F76: dms_FRCP_y12 | G76: 12 | H76: CRCP_y12 | I76: =IF(dms_RPT="financial",VALUE(LEFT(dms_FRCP_y11,4)+1)&"-"&TEXT(VALUE(RIGHT(dms_FRCP_y11,2)+1),"00"),VALUE(LEFT(dms_FRCP_y11,4)+1)) -> 2029-30 | J76: dms_FRCP_y12 | K76: =IF(dms_RPT="financial",VALUE(LEFT(dms_CRCP_yP,4)-1)&"-"&TEXT(VALUE(MID(dms_CRCP_yP,3,2)),"00"),VALUE(LEFT(dms_CRCP_yP,4)-1)) -> 2006-07 | L76: dms_CRCP_yO | M76: 12 | W76: %
B77: Revised regulatory proposal | E77: 13 | F77: dms_FRCP_y13 | G77: 13 | H77: CRCP_y13 | I77: =IF(dms_RPT="financial",VALUE(LEFT(dms_FRCP_y12,4)+1)&"-"&TEXT(VALUE(RIGHT(dms_FRCP_y12,2)+1),"00"),VALUE(LEFT(dms_FRCP_y12,4)+1)) -> 2030-31 | J77: dms_FRCP_y13 | K77: =IF(dms_RPT="financial",VALUE(LEFT(dms_CRCP_yO,4)-1)&"-"&TEXT(VALUE(MID(dms_CRCP_yO,3,2)),"00"),VALUE(LEFT(dms_CRCP_yO,4)-1)) -> 2005-06 | L77: dms_CRCP_yN | M77: 13 | W77: number
B78: RFM annual update | E78: 14 | F78: dms_FRCP_y14 | G78: 14 | H78: CRCP_y14 | I78: =IF(dms_RPT="financial",VALUE(LEFT(dms_FRCP_y13,4)+1)&"-"&TEXT(VALUE(RIGHT(dms_FRCP_y13,2)+1),"00"),VALUE(LEFT(dms_FRCP_y13,4)+1)) -> 2031-32 | J78: dms_FRCP_y14 | K78: =IF(dms_RPT="financial",VALUE(LEFT(dms_CRCP_yN,4)-1)&"-"&TEXT(VALUE(MID(dms_CRCP_yN,3,2)),"00"),VALUE(LEFT(dms_CRCP_yN,4)-1)) -> 2004-05 | L78: dms_CRCP_yM | M78: 14 | W78: %
E79: 15 | F79: dms_FRCP_y15 | G79: 15 | H79: CRCP_y15 | I79: =IF(dms_RPT="financial",VALUE(LEFT(dms_FRCP_y14,4)+1)&"-"&TEXT(VALUE(RIGHT(dms_FRCP_y14,2)+1),"00"),VALUE(LEFT(dms_FRCP_y14,4)+1)) -> 2032-33 | J79: dms_FRCP_y15 | K79: =IF(dms_RPT="financial",VALUE(LEFT(dms_CRCP_yM,4)-1)&"-"&TEXT(VALUE(MID(dms_CRCP_yM,3,2)),"00"),VALUE(LEFT(dms_CRCP_yM,4)-1)) -> 2003-04 | L79: dms_CRCP_yL | M79: 15 | W79: number
B81: dms_DataQuality_List | E81: These are drop down lists for businesses to select the correct FRCP_y1 on the business and other details worksheet. This also populates the column headings in the worksheets
B82: Actual | E82: dms_RCP_fyear_list | F82: dms_CRY_ListF | G82: dms_CRY_ListC | H82: dms_RCP_cyear_list | I82: dms_FRCP_fyear_list | J82: dms_FRCP_ListF | K82: dms_FRCP_ListC | L82: dms_FRCP_cyear_list
B83: Estimate | E83: dms_fy1 | F83: 2006-07 | G83: 2007 | H83: dms_cy1 | I83: dms_frcp_fy1 | J83: 2016-17 | K83: 2017 | L83: dms_crcp_cy1
B84: Consolidated | E84: dms_fy2 | F84: 2007-08 | G84: 2008 | H84: dms_cy2 | I84: dms_frcp_fy2 | J84: 2017-18 | K84: 2018 | L84: dms_crcp_cy2
B85: Recast | E85: dms_fy3 | F85: 2008-09 | G85: 2009 | H85: dms_cy3 | I85: dms_frcp_fy3 | J85: 2018-19 | K85: 2019 | L85: dms_crcp_cy3
B86: Public | E86: dms_fy4 | F86: 2009-10 | G86: 2010 | H86: dms_cy4 | I86: dms_frcp_fy4 | J86: 2019-20 | K86: 2020 | L86: dms_crcp_cy4
E87: dms_fy5 | F87: 2010-11 | G87: 2011 | H87: dms_cy5 | I87: dms_frcp_fy5 | J87: 2020-21 | K87: 2021 | L87: dms_crcp_cy5
E88: dms_fy6 | F88: 2011-12 | G88: 2012 | H88: dms_cy6 | I88: dms_frcp_fy6 | J88: 2021-22 | K88: 2022 | L88: dms_crcp_cy6
E89: dms_fy7 | F89: 2012-13 | G89: 2013 | H89: dms_cy7 | I89: dms_frcp_fy7 | J89: 2022-23 | K89: 2023 | L89: dms_crcp_cy7
E90: dms_fy8 | F90: 2013-14 | G90: 2014 | H90: dms_cy8 | I90: dms_frcp_fy8 | J90: 2023-24 | K90: 2024 | L90: dms_crcp_cy8
E91: dms_fy9 | F91: 2014-15 | G91: 2015 | H91: dms_cy9 | I91: dms_frcp_fy9 | J91: 2024-25 | K91: 2025 | L91: dms_crcp_cy9
E92: dms_fy10 | F92: 2015-16 | G92: 2016 | H92: dms_cy10 | I92: dms_frcp_fy10 | J92: 2025-26 | K92: 2026 | L92: dms_crcp_cy10
E93: dms_fy11 | F93: 2016-17 | G93: 2017 | H93: dms_cy11 | I93: dms_frcp_fy11 | J93: 2026-27 | K93: 2027 | L93: dms_crcp_cy11
E94: dms_fy12 | F94: 2017-18 | G94: 2018 | H94: dms_cy12 | I94: dms_frcp_fy12 | J94: 2027-28 | K94: 2028 | L94: dms_crcp_cy12
E95: dms_fy13 | F95: 2018-19 | G95: 2019 | H95: dms_cy13 | I95: dms_frcp_fy13 | J95: 2028-29 | K95: 2029 | L95: dms_crcp_cy13
E96: dms_fy14 | F96: 2019-20 | G96: 2020 | H96: dms_cy14 | I96: dms_frcp_fy14 | J96: 2029-30 | K96: 2030 | L96: dms_crcp_cy14
E97: dms_fy15 | F97: 2020-21 | G97: 2021 | H97: dms_cy15 | I97: dms_frcp_fy15 | J97: 2030-31 | K97: 2031 | L97: dms_crcp_cy15

Sheet Instructions
B2: =CONCATENATE(dms_Segment," Network Service Provider") -> Transmission Network Service Provider
B3: =IF(dms_Model="Reset","Regulatory Proposal RIN Template","Annual Reporting RIN") -> Regulatory Proposal RIN Template
C4: =CONCATENATE("This template is to be used by ",dms_TradingName," to fulfil its reporting obligations to the AER.") -> This template is to be used by ElectraNet to fulfil its reporting obligations to the AER.
C5: INSTRUCTIONS
C6: Complete the Business & other details worksheet before entering data or values in any other worksheets. The Business & other details worksheet is linked to other worksheets within the workbook and automatically generates certain column headings and conditional formatting.
C8: Identifying CONFIDENTIAL INFORMATION: Please use the macro at the top of each worksheet to identify confidential information.
C9: -Do this by selecting the cell or cells that contain confidential information and then run the Mark selection CONFIDENTIAL macro. This will format the cells a specific colour that is identified by the AER's database which in turn marks that information as confidential. -To reverse this, select the cell or cells and run the Return selection to NON-CONFIDENTIAL macro.
C11: UNITS OF MEASURE All amounts are to be unrounded and reported on a one for one basis: that is 1000 is to be entered as '1000'. Applicable units of measure may be identified in the table column headings or row descriptors.
C13: COLOUR CODING OF INPUT / NON-INPUT CELLS:
D14: Yellow = Input cell (mandatory)
D15: Darker yellow = input cell (mandatory)
D16: Orange = input cell (if data available)
D17: Grey = Not applicable/No inputs required
D18: PLEASE DO NOT ENTER TEXT into cells that are to contain numeric data.
C21: WORKSHEET NAVIGATION Many tables in the worksheets have been "grouped" to allow for easy navigation. To ungroup or group data use the outline symbols in the left margin (for Row groupings) or above the columns (for column groupings).
C23: RETURNING COMPLETED RESPONSES Please return two (2) files to the AER: 1. A confidential version which must contain a complete set of all responses with confidential information marked using the Mark selected cells CONFIDENTIAL macro and which has been completed using the locked template file provided by the AER. 2. A public version with confidential information either removed completely or aggregated in some form together with writtten consent to disclose the public version of the response. Use the drop down box on the Business and other details worksheet to identify the file as either confidential ('consolidated') or public.
C25: SUBMITTING AMENDED DATA TO THE AER If an NSP wishes to correct data previously submitted to the AER it should resubmit that data using the original completed submission as the starting point. Please make any necessary changes to the data. Data that is not being amended should be left unchanged. NSPs must identify the reason for the amendments in the Amendment Reason box on the Business and other details worksheet. NSPs may provide further details regarding any amendments in the Amendments worksheet. .
C26: NSP may use Amended Data macro to highlight cells that contain amended data. NB: if data is also CONFIDENTIAL, re-apply the Confidentiality macro after applying the Amended macro
C27: Please resubmit two (2) files - a confidential version and a public version of the amended submission to the AER

Sheet Contents
C1: REGULATORY REPORTING STATEMENT
C2: =dms_TradingName -> ElectraNet
C3: =CONCATENATE(FRCP_y1," to ",FRCP_y5) -> 2018-19 to 2022-23
C4: Contents
F7: 1. Business details | M7: 2. Expenditure | T7: 3. Economic benchmarking
F26: 5. Network information | T26: 7. Other templates

Sheet Business & other details
B1: =IF(dms_DataQuality="backcast",INDEX(dms_Worksheet_List,MATCH(dms_Model,dms_Model_List))&" BACKCAST",INDEX(dms_Worksheet_List,MATCH(dms_Model,dms_Model_List))) -> REGULATORY REPORTING STATEMENT
B2: =INDEX(dms_TradingNameFull_List,MATCH(dms_TradingName,dms_TradingName_List)) -> ElectraNet
B3: =IF(SUM(dms_SingleYear_Model)>0,CRY,CONCATENATE(FRCP_y1," to ",dms_MultiYear_FinalYear_Result)) -> 2018-19 to 2022-23
B4: BUSINESS & OTHER DETAILS
B7: Instructions
B8: Complete the following business details regulatory template before entering data or values in any other regulatory template. This regulatory template is linked to other cells within the spreadsheet and automatically generates column headings and conditional formatting to distinguish business specific input and non-input cells.
B10: SUBMISSION PARTICULARS INPUT SHEETS
B12: ENTITY DETAILS
B14: Short name | C14: ElectraNet
B15: ACN / ABN | C15: =INDEX(dms_ABN_List,MATCH(dms_TradingName,dms_TradingName_List)) -> 41094482416
B18: Business address | C18: Address 1 | E18: =INDEX(dms_Addr1_List,MATCH(dms_TradingName,dms_TradingName_List)) -> 52-55 East Terrace
D19: Address 2 | E19: =IF(ISBLANK(INDEX(dms_Addr2_List,MATCH(dms_TradingName,dms_TradingName_List))),"",INDEX(dms_Addr2_List,MATCH(dms_TradingName,dms_TradingName_List))) -> Rymill Park
C20: Suburb | E20: =INDEX(dms_Suburb_List,MATCH(dms_TradingName,dms_TradingName_List)) -> ADELAIDE
D21: State | E21: =INDEX(dms_State_List,MATCH(dms_TradingName,dms_TradingName_List)) -> SA | F21: p/code | G21: =INDEX(dms_PostCode_List,MATCH(dms_TradingName,dms_TradingName_List)) -> 5000
B23: Postal address | C23: Address 1 | E23: =INDEX(dms_PAddr1_List,MATCH(dms_TradingName,dms_TradingName_List)) -> PO Box 7096
D24: Address 2 | E24: =IF(ISBLANK(INDEX(dms_PAddr2_List,MATCH(dms_TradingName,dms_TradingName_List))),"",INDEX(dms_PAddr2_List,MATCH(dms_TradingName,dms_TradingName_List))) -> Hutt Street Post Office
C25: Suburb | E25: =INDEX(dms_PSuburb_List,MATCH(dms_TradingName,dms_TradingName_List)) -> ADELAIDE
D26: State | E26: =INDEX(dms_PState_List,MATCH(dms_TradingName,dms_TradingName_List)) -> SA | F26: p/code | G26: =INDEX(dms_PPostCode_List,MATCH(dms_TradingName,dms_TradingName_List)) -> 5000
B29: Contact name/s | C29: Andrew Gniel
B30: Contact phone/s | C30: 08 84047219
B31: Contact email address/s | C31: Gniel.Andrew@electranet.com.au
B33: REGULATORY CONTROL PERIODS
B35: Forthcoming regulatory control period | C35: 2018-19 | D35: =dms_FRCP_y2 -> 2019-20 | E35: =dms_FRCP_y3 -> 2020-21 | F35: =dms_FRCP_y4 -> 2021-22 | G35: =dms_FRCP_y5 -> 2022-23 | H35: =dms_FRCP_y6 -> 2023-24 | I35: =dms_FRCP_y7 -> 2024-25 | J35: =dms_FRCP_y8 -> 2025-26 | K35: =dms_FRCP_y9 -> 2026-27 | L35: =dms_FRCP_y10 -> 2027-28
B38: Current regulatory control period | C38: 2013-14 | D38: =IF(dms_RPT="financial",VALUE(LEFT(CRCP_y1,4)+1)&"-"&TEXT(MID(CRCP_y1,3,2)+2,"00"),VALUE(LEFT(CRCP_y1,4)+1)) -> 2014-15 | E38: =IF(dms_RPT="financial",VALUE(LEFT(CRCP_y2,4)+1)&"-"&TEXT(VALUE(MID(CRCP_y2,3,2)+2),"00"),VALUE(LEFT(CRCP_y2,4)+1)) -> 2015-16 | F38: =IF(dms_RPT="financial",VALUE(LEFT(CRCP_y3,4)+1)&"-"&TEXT(VALUE(MID(CRCP_y3,3,2)+2),"00"),VALUE(LEFT(CRCP_y3,4)+1)) -> 2016-17 | G38: =IF(dms_RPT="financial",VALUE(LEFT(CRCP_y4,4)+1)&"-"&TEXT(VALUE(MID(CRCP_y4,3,2)+2),"00"),VALUE(LEFT(CRCP_y4,4)+1)) -> 2017-18 | H38: =IF(dms_RPT="financial",VALUE(LEFT(CRCP_y5,4)+1)&"-"&TEXT(VALUE(MID(CRCP_y5,3,2)+2),"00"),VALUE(LEFT(CRCP_y5,4)+1)) -> 2018-19 | I38: =IF(dms_RPT="financial",VALUE(LEFT(CRCP_y6,4)+1)&"-"&TEXT(VALUE(MID(CRCP_y6,3,2)+2),"00"),VALUE(LEFT(CRCP_y6,4)+1)) -> 2019-20 | J38: =IF(dms_RPT="financial",VALUE(LEFT(CRCP_y7,4)+1)&"-"&TEXT(VALUE(MID(CRCP_y7,3,2)+2),"00"),VALUE(LEFT(CRCP_y7,4)+1)) -> 2020-21 | K38: =IF(dms_RPT="financial",VALUE(LEFT(CRCP_y8,4)+1)&"-"&TEXT(VALUE(MID(CRCP_y8,3,2)+2),"00"),VALUE(LEFT(CRCP_y8,4)+1)) -> 2021-22 | L38: =IF(dms_RPT="financial",VALUE(LEFT(CRCP_y9,4)+1)&"-"&TEXT(VALUE(MID(CRCP_y9,3,2)+2),"00"),VALUE(LEFT(CRCP_y9,4)+1)) -> 2022-23
B41: Previous regulatory control period | C41: =IF(dms_RPT="financial",VALUE(LEFT(PRCP_y2,4)-1)&"-"&TEXT(VALUE(MID(PRCP_y2,3,2)),"00"),VALUE(LEFT(PRCP_y2,4)-1)) -> 2008-09 | D41: =IF(dms_RPT="financial",VALUE(LEFT(PRCP_y3,4)-1)&"-"&TEXT(VALUE(MID(PRCP_y3,3,2)),"00"),VALUE(LEFT(PRCP_y3,4)-1)) -> 2009-10 | E41: =IF(dms_RPT="financial",VALUE(LEFT(PRCP_y4,4)-1)&"-"&TEXT(VALUE(MID(PRCP_y4,3,2)),"00"),VALUE(LEFT(PRCP_y4,4)-1)) -> 2010-11 | F41: =IF(dms_RPT="financial",VALUE(LEFT(PRCP_y5,4)-1)&"-"&TEXT(VALUE(RIGHT(PRCP_y5,2)-1),"00"),VALUE(LEFT(PRCP_y5,4)-1)) -> 2011-12 | G41: =IF(dms_RPT="financial",VALUE(LEFT(CRCP_y1,4)-1)&"-"&TEXT(VALUE(RIGHT(CRCP_y1,2)-1),"00"),VALUE(LEFT(CRCP_y1,4)-1)) -> 2012-13
B44: Current regulatory year | C44: 2013-14 | D44: CRY
C47: DELETE NR 'CRY' IF NOT AN ANNUAL RIN (EB, CA , ARR)
C48: APPLY NR 'CRY' IF AN ANNUAL RIN (EB, CA , ARR) - including multi year annual RINs eg. Recast CA. EB
B50: Source | C50: Regulatory proposal | E50: Please select the correct submission type from the dropdown list.
B51: Data quality (actual, estimate, public, consolidated) | C51: Consolidated
B52: Amended RIN submission - amendment reason
B53: Submission Date | C53: 2017-03-28 | D53: dms_SubmissionDate | E53: Please enter date this file submitted to AER (dd/mm/yyyy)
B54: EBSS - First application of scheme in forthcoming period? | C54: Yes
B55: Sector | C55: =INDEX(dms_Sector_List,MATCH(dms_TradingName,dms_TradingName_List)) -> Electricity | D55: dms_Sector | E55: =INDEX(dms_Sector_List,MATCH(dms_TradingName,dms_TradingName_List))
B56: Segment | C56: =INDEX(dms_Segment_List,MATCH(dms_TradingName,dms_TradingName_List)) -> Transmission | D56: dms_Segment | E56: =INDEX(dms_Segment_List,MATCH(dms_TradingName,dms_TradingName_List))
B57: Regulatory Year Ending | C57: =IF(dms_MultiYear_Flag=1,LEFT(dms_Specified_FinalYear,2)&RIGHT(dms_Specified_FinalYear,2),INDEX(dms_RYE_Formula_Result,MATCH(dms_Model,dms_Model_List))) -> 2023 | D57: dms_RYE | E57: =IF(dms_MultiYear_Flag=1,LEFT(dms_Specified_FinalYear,2)&RIGHT(dms_Specified_FinalYear,2),INDEX(dms_RYE_Formula_Result,MATCH(dms_Model,dms_Model_List)))
B58: Reporting Period Type | C58: =INDEX(dms_RPT_List,MATCH(dms_TradingName,dms_TradingName_List)) -> Financial | D58: dms_RPT | E58: =INDEX(dms_RPT_List,MATCH(dms_TradingName,dms_TradingName_List))
B59: Model or RIN Type | C59: Reset | D59: dms_Model | E59: Drop down selection
B60: Security Classification | C60: Public | D60: dms_Classification | E60: Always Public
B61: Template - version no. | C61: 5 | D61: dms_TemplateNumber
B62: Dollar $ real month | C62: =INDEX(dms_RPTMonth_List,MATCH(dms_TradingName,dms_TradingName_List)) -> June | D62: dms_RPTMonth | E62: =INDEX(dms_RPTMonth_List,MATCH(dms_TradingName,dms_TradingName_List))
B63: Dollar $ real (the last month before the FRCP_y1) | C63: =CONCATENATE(dms_RPTMonth)&" "&VALUE((LEFT(dms_CRCP_FinalYear_Result,2)&RIGHT(dms_CRCP_FinalYear_Result,2))) -> June 2018 | D63: dms_DollarReal | E63: =IF(SUM(dms_SingleYear_Model)>0,CONCATENATE(dms_RPTMonth)&" "&VALUE((LEFT(CRY,2))&RIGHT(CRY,2)),CONCATENATE(dms_RPTMonth)&" "&VALUE((LEFT(dms_CRCP_FinalYear_Result,2)&RIGHT(dms_CRCP_FinalYear_Result,2))))
B64: Form of control | C64: =INDEX(dms_FormControl_List,MATCH(dms_TradingName,dms_TradingName_List)) -> Revenue cap | D64: dms_FormControl | E64: =INDEX(dms_FormControl_List,MATCH(dms_TradingName,dms_TradingName_List))
B65: RIN response - version no. | C65: 1 | D65: dms_RINversion
B66: Jurisdiction | C66: =INDEX(dms_JurisdictionList,MATCH(dms_TradingName,dms_TradingName_List)) -> SA | D66: dms_Jurisdiction | E66: =INDEX(dms_JurisdictionList,MATCH(dms_TradingName,dms_TradingName_List))
B67: Backcast Multiyear EB, CA or ARR? | C67: 0 | D67: dms_MultiYear_Flag | E67: 1=y, 0-n
C68: 2013 | D68: dms_Specified_FinalYear | E68: The result here is returned to dms_CRCP_FinalYear_Result if dms_MultiYear_Flag is set to 1
B69: Single Year Model T/F | C69: =IF(dms_Model="EB",1,0) -> 0 | D69: dms_EB
C70: =IF(dms_Model="CA",1,0) -> 0 | D70: dms_CA | E70: =dms_SingleYear_Model
C71: =IF(dms_Model="ARR",1,0) -> 0 | D71: dms_ARR
B72: Single Year Final Year Reference | C72: CRY | D72: dms_SingleYear_FinalYear_Ref | E72: This is the reference for EB, CA & ARR RINs
B73: Single Year Final Year Result | C73: =INDIRECT(dms_SingleYear_FinalYear_Ref) ->  | D73: dms_SingleYear_FinalYear_Result | E73: =INDIRECT(dms_SingleYear_FinalYear_Ref) | I73: Formula errors OK
B74: FRCP length in years | C74: =INDEX(dms_FRCPlength_List,MATCH(dms_TradingName,dms_TradingName_List)) -> 5 | D74: dms_FRCPlength_Num | E74: =INDEX(dms_FRCPlength_List,MATCH(dms_TradingName,dms_TradingName_List))
B75: Multi Year Final Year Reference | C75: =INDEX(dms_FinalYear_List,MATCH(dms_FRCPlength_Num,dms_FRCPlength_Num_List)) -> dms_FRCP_y5 | D75: dms_MultiYear_FinalYear_Ref | E75: =INDEX(dms_FinalYear_List,MATCH(dms_FRCPlength_Num,dms_FRCPlength_Num_List))
B76: Multi Year Final Year Result | C76: =IF(dms_MultiYear_Flag=0,INDIRECT(dms_MultiYear_FinalYear_Ref),dms_Specified_FinalYear) -> 2022-23 | D76: dms_MultiYear_FinalYear_Result | E76: =IF(dms_MultiYear_Flag=0,INDIRECT(dms_MultiYear_FinalYear_Ref),dms_Specified_FinalYear) | I76: Formula errors OK
B77: CRCP length in years | C77: =INDEX(dms_CRCPlength_List,MATCH(dms_TradingName,dms_TradingName_List)) -> 5 | D77: dms_CRCPlength_Num | E77: =INDEX(dms_CRCPlength_List,MATCH(dms_TradingName,dms_TradingName_List))
B78: CRCP Final Year Reference | C78: =INDEX(dms_CFinalYear_List,MATCH(dms_CRCPlength_Num,dms_CRCPlength_Num_List)) -> CRCP_y5 | D78: dms_CRCP_FinalYear_Ref | E78: =INDEX(dms_CFinalYear_List,MATCH(dms_CRCPlength_Num,dms_CRCPlength_Num_List))
B79: CRCP First Year Result | C79: =INDEX(dms_CRCP_years,MATCH(dms_CRCPlength_Num,dms_CRCP_index)) -> 2013-14 | D79: dms_CRCP_FirstYear_Result | E79: =INDEX(dms_CRCP_years,MATCH(dms_CRCPlength_Num,dms_CRCP_index))
B80: CRCP Final Year Result | C80: =IF(dms_MultiYear_Flag=0,(IF(SUM(dms_SingleYear_Model)>0,CRY,dms_CRCP_yZ)),dms_Specified_FinalYear) -> 2017-18 | D80: dms_CRCP_FinalYear_Result | E80: =IF(dms_MultiYear_Flag=0,(IF(SUM(dms_SingleYear_Model)>0,CRY,dms_CRCP_yZ)),dms_Specified_FinalYear)
B81: Table 6.6.3 - Public lighting repair - no. business days | C81: =INDEX(dms_663_List,MATCH(dms_TradingName,dms_TradingName_List)) -> 5 | D81: dms_663
B82: Distribution Determination Reference | C82: =INDEX(dms_DeterminationRef_List,MATCH(dms_TradingName,dms_TradingName_List)) -> transmission determination
B83: Backcast templates only - unit of measure | C83: $0s | D83: dms_Backcast_UOM | E83: If the cover sheet is for Backcast data ensure to apply dms_Backcast_UOM named range to this field. Otherwise, do not apply this named range.
B84: EB/CA Unit of Measure for Monetary Values | C84: $0s | D84: dms_dollar_nom_UOM | E84: If the cover sheet is attached to an EB files make sure this field is set
B86: discard this record? | C86: NO | D86: dms_DISCARD | E86: If record is to be discarded from DB set this flag to YES
B88: USES NAMED RANGES FLAG | C88: yes | D88: dms_Defined_Names_Used

Sheet 2.1 Expenditure summary
B1: =(LOOKUP(dms_Model,dms_Model_List,dms_Worksheet_List)) -> REGULATORY REPORTING STATEMENT
B2: =INDEX(dms_TradingNameFull_List,MATCH(dms_TradingName,dms_TradingName_List)) -> ElectraNet
B3: =IF(SUM(dms_SingleYear_Model)>0,CRY,CONCATENATE(FRCP_y1," to ",dms_MultiYear_FinalYear_Result)) -> 2018-19 to 2022-23
B4: 2.1 - EXPENDITURE SUMMARY AND RECONCILIATION
B6: There are four tables on this worksheet. Each has been grouped for ease of navigation. See the Instructions sheet on how to group or ungroup tables.
B8: 2.1.1 - PRESCRIBED TRANSMISSION SERVICES CAPEX (as incurred)
C9: =CONCATENATE("Forecast ($0's. real ",dms_DollarReal,")") -> Forecast ($0's. real June 2018)
C10: =CRCP_y4 -> 2016-17 | D10: =CRCP_y5 -> 2017-18 | E10: =FRCP_y1 -> 2018-19 | F10: =FRCP_y2 -> 2019-20 | G10: =FRCP_y3 -> 2020-21 | H10: =FRCP_y4 -> 2021-22 | I10: =FRCP_y5 -> 2022-23
B11: Replacement expenditure | C11: 102511412.3 | D11: 97554272.2 | E11: 50746774.55 | F11: 75530531.65 | G11: 82943078.14 | H11: 82123087.2 | I11: 40553092.6
B12: Connections | C12: 6509387.781 | D12: 2577822.988 | E12: 49149.69156 | F12: 1056689.321 | G12: 4863062.084 | H12: 2927.198804 | I12: 0
B13: Augmentation Expenditure | C13: 23783998.26 | D13: 19443604.23 | E13: 13910208.84 | F13: 2637734.331 | G13: 4946350.706 | H13: 3682023.172 | I13: 2367891.45
B14: Non-network | C14: 12720700.85 | D14: 9441522.664 | E14: 9771984.274 | F14: 7471348.06 | G14: 7886910.578 | H14: 7870023.823 | I14: 4974714.95
B15: Capitalised network overheads | C15: 96540.34081 | D15: 95343.59466 | E15: 97221.86348 | F15: 74045.04851 | G15: 76183.51112 | H15: 64160.03983 | I15: 45077.94828
B16: Capitalised corporate overheads | C16: 10497630.25 | D16: 10367498.13 | E16: 10571737.85 | F16: 8051530.938 | G16: 8284063.676 | H16: 6976652.134 | I16: 4901698.391
B17: Balancing Item | C17: 9890856.756 | D17: 24746048.68 | E17: 11757072.26 | F17: 5481602.79 | G17: 108138.4241 | H17: 97940.62229 | I17: 617235.2113
B18: TOTAL CAPEX | C18: =SUM(C11:C17) -> 166010526.6 | D18: =SUM(D11:D17) -> 164226112.5 | E18: 96904149.33 | F18: 100303482.1 | G18: 109107787.1 | H18: 100816814.2 | I18: 53459710.55
B20: 2.1.2 - PRESCRIBED TRANSMISSION SERVICES OPEX
C21: =CONCATENATE("Forecast ($0's. real ",dms_DollarReal,")") -> Forecast ($0's. real June 2018)
C22: =CRCP_y4 -> 2016-17 | D22: =CRCP_y5 -> 2017-18 | E22: =FRCP_y1 -> 2018-19 | F22: =FRCP_y2 -> 2019-20 | G22: =FRCP_y3 -> 2020-21 | H22: =FRCP_y4 -> 2021-22 | I22: =FRCP_y5 -> 2022-23
B23: Vegetation management | C23: 2014117.269 | D23: 2034159.996 | E23: 2129319.667 | F23: 2139830.129 | G23: 2152504.94 | H23: 2168088.136 | I23: 2184497.602
B24: Maintenance | C24: 42380365.58 | D24: 42255501.51 | E24: 40170751.45 | F24: 40369036.93 | G24: 40608154 | H24: 40902139.3 | I24: 41211712.63
B25: Non-network | C25: 9725433.757 | D25: 9388943.01 | E25: 8516973.198 | F25: 8559013.539 | G25: 8609710.964 | H25: 8672041.511 | I25: 8737677.022
B26: Network overheads | C26: 27276976.45 | D26: 26650847.1 | E26: 23354916.59 | F26: 22149821.13 | G26: 22620986.66 | H26: 22179357.27 | I26: 21079381.9
B27: Corporate overheads | C27: 26353391.27 | D27: 25590225.94 | E27: 24758296.64 | F27: 23604835.68 | G27: 23924568.55 | H27: 23454454.61 | I27: 22510945
B28: Balancing Item | C28: -13662743.74 | D28: -13022752.83 | E28: -12828169.24 | F28: -10341852.16 | G28: -10580136.97 | H28: -9286514.047 | I28: -7220679.8
B29: TOTAL OPEX | C29: =SUM(C23:C28) -> 94087540.58 | D29: =SUM(D23:D28) -> 92896924.72 | E29: 86102088.3 | F29: 86480685.25 | G29: 87335788.15 | H29: 88089566.78 | I29: 88503534.36
B31: 2.1.7 - PRESCRIBED TRANSMISSION SERVICES CAPCONS
C32: =CONCATENATE("Forecast ($0's. real ",dms_DollarReal,")") -> Forecast ($0's. real June 2018)
C33: =CRCP_y4 -> 2016-17 | D33: =CRCP_y5 -> 2017-18 | E33: =FRCP_y1 -> 2018-19 | F33: =FRCP_y2 -> 2019-20 | G33: =FRCP_y3 -> 2020-21 | H33: =FRCP_y4 -> 2021-22 | I33: =FRCP_y5 -> 2022-23
B34: Replacement expenditure
B35: Connections
B36: Augmentation Expenditure
B37: Non-network
B38: Capitalised network overheads
B39: Capitalised corporate overheads
B40: TOTAL CAPCONS | C40: =SUM(C34:C39) -> 0 | D40: 0 | E40: 0 | F40: 0 | G40: 0 | H40: 0 | I40: 0
B42: 2.1.8 - PRESCRIBED TRANSMISSION SERVICES CAPITALISED OVERHEADS
C43: =CONCATENATE("Forecast ($0's. real ",dms_DollarReal,")") -> Forecast ($0's. real June 2018)
C44: =CRCP_y4 -> 2016-17 | D44: =CRCP_y5 -> 2017-18 | E44: =FRCP_y1 -> 2018-19 | F44: =FRCP_y2 -> 2019-20 | G44: =FRCP_y3 -> 2020-21 | H44: =FRCP_y4 -> 2021-22 | I44: =FRCP_y5 -> 2022-23
B45: Replacement expenditure | C45: 6325766.569 | D45: 5893081.037 | E45: 7620977.608 | F45: 5674775.424 | G45: 5595863.704 | H45: 4729312.175 | I45: 2789357.634
B46: Connections | C46: 408007.6514 | D46: 238573.8067 | E46: 34293.05008 | F46: 194682.0105 | G46: 162909.9216 | H46: 3312.914853 | I46: 0
B47: Augmentation Expenditure | C47: 1434999.753 | D47: 1175512.679 | E47: 412006.8456 | F47: 599713.2115 | G47: 436612.2467 | H47: 261982.4709 | I47: 176030.3865
B48: Non-network | C48: 1272648.73 | D48: 1418718.436 | E48: 1884485.495 | F48: 1457098.449 | G48: 2141672.923 | H48: 2016680.927 | I48: 1912086.637
B49: Balancing Item | C49: 1152747.882 | D49: 1736955.769 | E49: 717196.7107 | F49: 199306.8917 | G49: 23188.39156 | H49: 29523.68563 | I49: 69301.682
B50: TOTAL CAPITALISED OVERHEADS | C50: =SUM(C45:C49) -> 10594170.59 | D50: =SUM(D45:D49) -> 10462841.73 | E50: 10668959.71 | F50: 8125575.987 | G50: 8360247.187 | H50: 7040812.174 | I50: 4946776.34

Sheet 2.2 Repex
B1: =(LOOKUP(dms_Model,dms_Model_List,dms_Worksheet_List)) -> REGULATORY REPORTING STATEMENT
B2: =INDEX(dms_TradingNameFull_List,MATCH(dms_TradingName,dms_TradingName_List)) -> ElectraNet
B3: =IF(SUM(dms_SingleYear_Model)>0,CRY,CONCATENATE(FRCP_y1," to ",dms_MultiYear_FinalYear_Result)) -> 2018-19 to 2022-23
B4: 2.2 REPEX
B6: There is ONE table (with three sub-tables) on this worksheet. See the Instructions sheet on how to group or ungroup tables.
B8: 2.2.1 - REPLACEMENT EXPENDITURE, VOLUMES AND ASSET FAILURES BY ASSET CATEGORY
B9: EXPENDITURE
D10: EXPENDITURE
D11: =CONCATENATE("($0's. real ",dms_DollarReal,")") -> ($0's. real June 2018)
B12: ASSET GROUP | C12: ASSET CATEGORY | D12: =CRCP_y4 -> 2016-17 | E12: =CRCP_y5 -> 2017-18 | F12: =FRCP_y1 -> 2018-19 | G12: =FRCP_y2 -> 2019-20 | H12: =FRCP_y3 -> 2020-21 | I12: =FRCP_y4 -> 2021-22 | J12: =FRCP_y5 -> 2022-23
B13: TRANSMISSION TOWERS Highest operating voltage; Circuit configuration | C13: < = 33 kV; Single Circuit | D13: 0 | E13: 0 | F13: 0 | G13: 0 | H13: 0 | I13: 0 | J13: 0
C14: > 33 kV & < = 66 kV ; Single Circuit | D14: 0 | E14: 0 | F14: 0 | G14: 0 | H14: 0 | I14: 0 | J14: 0
C15: > 66 kV & < = 132 kV ; Single Circuit | D15: 2485426.1 | E15: 0 | F15: 0 | G15: 393426.61 | H15: 0 | I15: 0 | J15: 0
C16: > 132 kV & < = 275 kV ; Single Circuit | D16: 0 | E16: 0 | F16: 0 | G16: 0 | H16: 0 | I16: 0 | J16: 0
C17: > 275 kV & < = 330 kV ; Single Circuit | D17: 0 | E17: 0 | F17: 0 | G17: 0 | H17: 0 | I17: 0 | J17: 0
C18: > 330 kV & < = 500 kV ; Single Circuit | D18: 0 | E18: 0 | F18: 0 | G18: 0 | H18: 0 | I18: 0 | J18: 0
C19: > 500 kV ; Single Circuit | D19: 0 | E19: 0 | F19: 0 | G19: 0 | H19: 0 | I19: 0 | J19: 0
C20: < = 33 kV; Multiple Circuit | D20: 0 | E20: 0 | F20: 0 | G20: 0 | H20: 0 | I20: 0 | J20: 0
C21: > 33 kV & < = 66 kV ; Multiple Circuit | D21: 0 | E21: 0 | F21: 0 | G21: 0 | H21: 0 | I21: 0 | J21: 0
C22: > 66 kV & < = 132 kV ; Multiple Circuit | D22: 0 | E22: 0 | F22: 0 | G22: 268044.52 | H22: 0 | I22: 0 | J22: 0
C23: > 132 kV & < = 275 kV ; Multiple Circuit | D23: 0 | E23: 0 | F23: 0 | G23: 0 | H23: 0 | I23: 0 | J23: 0
C24: > 275 kV & < = 330 kV ; Multiple Circuit | D24: 0 | E24: 0 | F24: 0 | G24: 0 | H24: 0 | I24: 0 | J24: 0
C25: > 330 kV & < = 500 kV ; Multiple Circuit | D25: 0 | E25: 0 | F25: 0 | G25: 0 | H25: 0 | I25: 0 | J25: 0
C26: > 500 kV ; Multiple Circuit | D26: 0 | E26: 0 | F26: 0 | G26: 0 | H26: 0 | I26: 0 | J26: 0
C27: Other | D27: 0 | E27: 0 | F27: 0 | G27: 0 | H27: 0 | I27: 0 | J27: 0
B28: TRANSMISSION TOWER SUPPORT STRUCTURES BY: Highest operating voltage; Circuit configuration | C28: < = 33 kV; Single Circuit | D28: 0 | E28: 0 | F28: 0 | G28: 0 | H28: 0 | I28: 0 | J28: 0
C29: > 33 kV & < = 66 kV ; Single Circuit | D29: 0 | E29: 0 | F29: 0 | G29: 0 | H29: 0 | I29: 0 | J29: 0
C30: > 66 kV & < = 132 kV ; Single Circuit | D30: 7071916.73 | E30: 0 | F30: 0 | G30: 1119437.93 | H30: 0 | I30: 0 | J30: 0
C31: > 132 kV & < = 275 kV ; Single Circuit | D31: 0 | E31: 0 | F31: 0 | G31: 0 | H31: 0 | I31: 0 | J31: 0
C32: > 275 kV & < = 330 kV ; Single Circuit | D32: 0 | E32: 0 | F32: 0 | G32: 0 | H32: 0 | I32: 0 | J32: 0
C33: > 330 kV & < = 500 kV ; Single Circuit | D33: 0 | E33: 0 | F33: 0 | G33: 0 | H33: 0 | I33: 0 | J33: 0
C34: > 500 kV ; Single Circuit | D34: 0 | E34: 0 | F34: 0 | G34: 0 | H34: 0 | I34: 0 | J34: 0
C35: < = 33 kV; Multiple Circuit | D35: 0 | E35: 0 | F35: 0 | G35: 0 | H35: 0 | I35: 0 | J35: 0
C36: > 33 kV & < = 66 kV ; Multiple Circuit | D36: 0 | E36: 0 | F36: 0 | G36: 0 | H36: 0 | I36: 0 | J36: 0
C37: > 66 kV & < = 132 kV ; Multiple Circuit | D37: 0 | E37: 0 | F37: 0 | G37: 851435.52 | H37: 0 | I37: 0 | J37: 0
C38: > 132 kV & < = 275 kV ; Multiple Circuit | D38: 0 | E38: 0 | F38: 0 | G38: 0 | H38: 0 | I38: 0 | J38: 0
C39: > 275 kV & < = 330 kV ; Multiple Circuit | D39: 0 | E39: 0 | F39: 0 | G39: 0 | H39: 0 | I39: 0 | J39: 0
C40: > 330 kV & < = 500 kV ; Multiple Circuit | D40: 0 | E40: 0 | F40: 0 | G40: 0 | H40: 0 | I40: 0 | J40: 0
C41: > 500 kV ; Multiple Circuit | D41: 0 | E41: 0 | F41: 0 | G41: 0 | H41: 0 | I41: 0 | J41: 0
C42: Other | D42: 0 | E42: 0 | F42: 0 | G42: 0 | H42: 0 | I42: 0 | J42: 0
B43: CONDUCTORS BY: Voltage; Maximum continuous rating | C43: < = 33 kV ; < = 100 MVA | D43: 0 | E43: 0 | F43: 0 | G43: 0 | H43: 0 | I43: 0 | J43: 0
C44: < = 33 kV ; > 100 MVA & < = 400 MVA | D44: 0 | E44: 0 | F44: 0 | G44: 0 | H44: 0 | I44: 0 | J44: 0
C45: < = 33 kV ; > 400 MVA | D45: 0 | E45: 0 | F45: 0 | G45: 0 | H45: 0 | I45: 0 | J45: 0
C46: > 33 kV & < = 66 kV ; < = 100 MVA | D46: 0 | E46: 0 | F46: 0 | G46: 0 | H46: 0 | I46: 0 | J46: 0
C47: > 33 kV & < = 66 kV ; > 100 MVA & < = 400 MVA | D47: 0 | E47: 0 | F47: 0 | G47: 0 | H47: 0 | I47: 0 | J47: 0
C48: > 33 kV & < = 66 kV ; > 400 MVA | D48: 0 | E48: 0 | F48: 0 | G48: 0 | H48: 0 | I48: 0 | J48: 0
C49: > 66 kV & < = 132 kV ; < = 100 MVA | D49: 0 | E49: 0 | F49: 0 | G49: 0 | H49: 0 | I49: 0 | J49: 0
C50: > 66 kV & < = 132 kV ; > 100 MVA & < = 400 MVA | D50: 3587400.8 | E50: 0 | F50: 0 | G50: 1987516.87 | H50: 0 | I50: 0 | J50: 0
C51: > 66 kV & < = 132 kV ; > 400 MVA | D51: 0 | E51: 0 | F51: 0 | G51: 0 | H51: 0 | I51: 0 | J51: 0
C52: > 132 kV & < = 275 kV ; < = 200 MVA | D52: 0 | E52: 0 | F52: 0 | G52: 0 | H52: 0 | I52: 0 | J52: 0
C53: > 132 kV & < = 275 kV ; > 200 MVA & < = 600 MVA | D53: 0 | E53: 0 | F53: 0 | G53: 0 | H53: 0 | I53: 0 | J53: 0
C54: > 132 kV & < = 275 kV ; > 600 MVA | D54: 0 | E54: 0 | F54: 0 | G54: 0 | H54: 0 | I54: 0 | J54: 0
C55: > 275 kV & < = 330 kV ; < = 800 MVA | D55: 0 | E55: 0 | F55: 0 | G55: 0 | H55: 0 | I55: 0 | J55: 0
C56: > 275 kV & < = 330 kV ; > 800 MVA & < = 1200 MVA | D56: 0 | E56: 0 | F56: 0 | G56: 0 | H56: 0 | I56: 0 | J56: 0
C57: > 275 kV & < = 330 kV ; > 1200 MVA | D57: 0 | E57: 0 | F57: 0 | G57: 0 | H57: 0 | I57: 0 | J57: 0
C58: > 330 kV & < = 500 kV ; < = 1000 MVA | D58: 0 | E58: 0 | F58: 0 | G58: 0 | H58: 0 | I58: 0 | J58: 0
C59: > 330 kV & < = 500 kV ; > 1000 MVA & < = 1500 MVA | D59: 0 | E59: 0 | F59: 0 | G59: 0 | H59: 0 | I59: 0 | J59: 0
C60: > 330 kV & < = 500 kV ; > 1500 MVA | D60: 0 | E60: 0 | F60: 0 | G60: 0 | H60: 0 | I60: 0 | J60: 0
C61: > 500 kV ; < = 2000 MVA | D61: 0 | E61: 0 | F61: 0 | G61: 0 | H61: 0 | I61: 0 | J61: 0
C62: > 500 kV ; > 2000 MVA & < = 3000 MVA | D62: 0 | E62: 0 | F62: 0 | G62: 0 | H62: 0 | I62: 0 | J62: 0
C63: > 500 kV ; > 3000 MVA | D63: 0 | E63: 0 | F63: 0 | G63: 0 | H63: 0 | I63: 0 | J63: 0
C64: Other | D64: 0 | E64: 0 | F64: 0 | G64: 0 | H64: 0 | I64: 0 | J64: 0
B65: TRANSMISSION CABLES BY: Highest operating voltage; Insulation type | C65: < = 33 kV; Oil Filled | D65: 0 | E65: 0 | F65: 0 | G65: 0 | H65: 0 | I65: 0 | J65: 0
C66: > 33 kV & < = 66 kV ; Oil Filled | D66: 0 | E66: 0 | F66: 0 | G66: 0 | H66: 0 | I66: 0 | J66: 0
C67: > 66 kV & < = 132 kV ; Oil Filled | D67: 0 | E67: 0 | F67: 0 | G67: 0 | H67: 0 | I67: 0 | J67: 0
C68: > 132 kV & < = 275 kV ; Oil Filled | D68: 0 | E68: 0 | F68: 0 | G68: 0 | H68: 0 | I68: 0 | J68: 0
C69: > 275 kV & < = 330 kV ; Oil Filled | D69: 0 | E69: 0 | F69: 0 | G69: 0 | H69: 0 | I69: 0 | J69: 0
C70: > 330 kV & < = 500 kV ; Oil Filled | D70: 0 | E70: 0 | F70: 0 | G70: 0 | H70: 0 | I70: 0 | J70: 0
C71: > 500 kV ; Oil Filled | D71: 0 | E71: 0 | F71: 0 | G71: 0 | H71: 0 | I71: 0 | J71: 0
C72: < = 33 kV; XLPE Insulated | D72: 0 | E72: 0 | F72: 0 | G72: 0 | H72: 0 | I72: 0 | J72: 0
C73: > 33 kV & < = 66 kV ; XLPE Insulated | D73: 0 | E73: 0 | F73: 0 | G73: 0 | H73: 0 | I73: 0 | J73: 0
C74: > 66 kV & < = 132 kV ; XLPE Insulated | D74: 0 | E74: 0 | F74: 0 | G74: 0 | H74: 0 | I74: 0 | J74: 0
C75: > 132 kV & < = 275 kV ; XLPE Insulated | D75: 0 | E75: 0 | F75: 0 | G75: 0 | H75: 0 | I75: 0 | J75: 0
C76: > 275 kV & < = 330 kV ; XLPE Insulated | D76: 0 | E76: 0 | F76: 0 | G76: 0 | H76: 0 | I76: 0 | J76: 0
C77: > 330 kV & < = 500 kV ; XLPE Insulated | D77: 0 | E77: 0 | F77: 0 | G77: 0 | H77: 0 | I77: 0 | J77: 0
C78: > 500 kV ; XLPE Insulated | D78: 0 | E78: 0 | F78: 0 | G78: 0 | H78: 0 | I78: 0 | J78: 0
C79: < = 33 kV; Other Insulated | D79: 0 | E79: 0 | F79: 0 | G79: 0 | H79: 0 | I79: 0 | J79: 0
C80: > 33 kV & < = 66 kV ; Other Insulated | D80: 0 | E80: 0 | F80: 0 | G80: 0 | H80: 0 | I80: 0 | J80: 0
C81: > 66 kV & < = 132 kV ; Other Insulated | D81: 0 | E81: 0 | F81: 0 | G81: 0 | H81: 0 | I81: 0 | J81: 0
C82: > 132 kV & < = 275 kV ; Other Insulated | D82: 0 | E82: 0 | F82: 0 | G82: 0 | H82: 0 | I82: 0 | J82: 0
C83: > 275 kV & < = 330 kV ; Other Insulated | D83: 0 | E83: 0 | F83: 0 | G83: 0 | H83: 0 | I83: 0 | J83: 0
C84: > 330 kV & < = 500 kV ; Other Insulated | D84: 0 | E84: 0 | F84: 0 | G84: 0 | H84: 0 | I84: 0 | J84: 0
C85: > 500 kV ; Other Insulated | D85: 0 | E85: 0 | F85: 0 | G85: 0 | H85: 0 | I85: 0 | J85: 0
C86: Other | D86: 0 | E86: 0 | F86: 0 | G86: 0 | H86: 0 | I86: 0 | J86: 0
B87: SUBSTATION SWITCHBAYS BY: Highest operating voltage; Switch type | C87: < = 33 kV; Air Insulated circuit Breaker | D87: 4146282.64 | E87: 0 | F87: 289723.91 | G87: 0 | H87: 0 | I87: 0 | J87: 0
C88: > 33 kV & < = 66 kV ; Air Insulated circuit Breaker | D88: 1148123.78 | E88: 0 | F88: 0 | G88: 0 | H88: 0 | I88: 0 | J88: 109837.55
C89: > 66 kV & < = 132 kV ; Air Insulated circuit Breaker | D89: 6580170.64 | E89: 0 | F89: 438020.6 | G89: 2154632.18 | H89: 0 | I89: 0 | J89: 120769.62
C90: > 132 kV & < = 275 kV ; Air Insulated circuit Breaker | D90: 4320284.89 | E90: 99711.77 | F90: 368679.64 | G90: 0 | H90: 0 | I90: 0 | J90: 3364624.61
C91: > 275 kV & < = 330 kV ; Air Insulated circuit Breaker | D91: 0 | E91: 0 | F91: 0 | G91: 0 | H91: 0 | I91: 0 | J91: 0
C92: > 330 kV & < = 500 kV ; Air Insulated circuit Breaker | D92: 0 | E92: 0 | F92: 0 | G92: 0 | H92: 0 | I92: 0 | J92: 0
C93: > 500 kV ; Air Insulated circuit Breaker | D93: 0 | E93: 0 | F93: 0 | G93: 0 | H93: 0 | I93: 0 | J93: 0
C94: < = 33 kV; Air Insulated Isolators / Earth Switch | D94: 0 | E94: 0 | F94: 0 | G94: 726187.26 | H94: 0 | I94: 0 | J94: 0
C95: > 33 kV & < = 66 kV ; Air Insulated Isolators / Earth Switch | D95: 0 | E95: 0 | F95: 304436.46 | G95: 0 | H95: 0 | I95: 0 | J95: 400780.05
C96: > 66 kV & < = 132 kV ; Air Insulated Isolators / Earth Switch | D96: 5597940.95 | E96: 0 | F96: 5674046.04 | G96: 2527098.38 | H96: 0 | I96: 0 | J96: 619605.2
C97: > 132 kV & < = 275 kV ; Air Insulated Isolators / Earth Switch | D97: 1000361.3 | E97: 56164.52 | F97: 0 | G97: 0 | H97: 0 | I97: 0 | J97: 7442198.35
C98: > 275 kV & < = 330 kV ; Air Insulated Isolators / Earth Switch | D98: 0 | E98: 0 | F98: 0 | G98: 0 | H98: 0 | I98: 0 | J98: 0
C99: > 330 kV & < = 500 kV ; Air Insulated Isolators / Earth Switch | D99: 0 | E99: 0 | F99: 0 | G99: 0 | H99: 0 | I99: 0 | J99: 0
C100: > 500 kV ; Air Insulated Isolators / Earth Switch | D100: 0 | E100: 0 | F100: 0 | G100: 0 | H100: 0 | I100: 0 | J100: 0
C101: < = 33 kV; VT | D101: 336189 | E101: 0 | F101: 47310.35 | G101: 571223.25 | H101: 0 | I101: 0 | J101: 0
C102: > 33 kV & < = 66 kV ; VT | D102: 536949.65 | E102: 0 | F102: 0 | G102: 0 | H102: 0 | I102: 0 | J102: 6123.26
C103: > 66 kV & < = 132 kV ; VT | D103: 3573437.98 | E103: 0 | F103: 119672.2 | G103: 161473.16 | H103: 0 | I103: 0 | J103: 602230.87
C104: > 132 kV & < = 275 kV ; VT | D104: 5608028.37 | E104: 0 | F104: 596514.51 | G104: 0 | H104: 0 | I104: 0 | J104: 432086.22
C105: > 275 kV & < = 330 kV ; VT | D105: 0 | E105: 0 | F105: 0 | G105: 0 | H105: 0 | I105: 0 | J105: 0
C106: > 330 kV & < = 500 kV ; VT | D106: 0 | E106: 0 | F106: 0 | G106: 0 | H106: 0 | I106: 0 | J106: 0
C107: > 500 kV ; VT | D107: 0 | E107: 0 | F107: 0 | G107: 0 | H107: 0 | I107: 0 | J107: 0
C108: < = 33 kV; CT | D108: 553429.5 | E108: 0 | F108: 136164.61 | G108: 2618295.18 | H108: 0 | I108: 0 | J108: 30111.82
C109: > 33 kV & < = 66 kV ; CT | D109: 4456757.71 | E109: 0 | F109: 0 | G109: 0 | H109: 0 | I109: 0 | J109: 1430805.53
C110: > 66 kV & < = 132 kV ; CT | D110: 7431914.21 | E110: 0 | F110: 745791.32 | G110: 0 | H110: 0 | I110: 0 | J110: 154210.31
C111: > 132 kV & < = 275 kV ; CT | D111: 21636067.4 | E111: 65798.02 | F111: 243285.12 | G111: 0 | H111: 0 | I111: 0 | J111: 1001694.1
C112: > 275 kV & < = 330 kV ; CT | D112: 0 | E112: 0 | F112: 0 | G112: 0 | H112: 0 | I112: 0 | J112: 0
C113: > 330 kV & < = 500 kV ; CT | D113: 0 | E113: 0 | F113: 0 | G113: 0 | H113: 0 | I113: 0 | J113: 0
C114: > 500 kV ; CT | D114: 0 | E114: 0 | F114: 0 | G114: 0 | H114: 0 | I114: 0 | J114: 0
C115: < = 33 kV; GIS Module | D115: 0 | E115: 0 | F115: 0 | G115: 0 | H115: 0 | I115: 0 | J115: 0
C116: > 33 kV & < = 66 kV ; GIS Module | D116: 0 | E116: 0 | F116: 0 | G116: 0 | H116: 0 | I116: 0 | J116: 0
C117: > 66 kV & < = 132 kV ; GIS Module | D117: 0 | E117: 0 | F117: 0 | G117: 0 | H117: 0 | I117: 0 | J117: 0
C118: > 132 kV & < = 275 kV ; GIS Module | D118: 0 | E118: 0 | F118: 0 | G118: 0 | H118: 0 | I118: 0 | J118: 0
C119: > 275 kV & < = 330 kV ; GIS Module | D119: 0 | E119: 0 | F119: 0 | G119: 0 | H119: 0 | I119: 0 | J119: 0
C120: > 330 kV & < = 500 kV ; GIS Module | D120: 0 | E120: 0 | F120: 0 | G120: 0 | H120: 0 | I120: 0 | J120: 0
C121: > 500 kV ; GIS Module | D121: 0 | E121: 0 | F121: 0 | G121: 0 | H121: 0 | I121: 0 | J121: 0
C122: Other | D122: 0 | E122: 0 | F122: 0 | G122: 0 | H122: 0 | I122: 0 | J122: 0
B123: SUBSTATION POWER TRANSFORMERS BY: Highest operating voltage; Ampere rating | C123: < = 33 kV ; < = 10 MVA | D123: 0 | E123: 0 | F123: 0 | G123: 0 | H123: 0 | I123: 0 | J123: 0
C124: < = 33 kV ; > 10 MVA & < = 30 MVA | D124: 0 | E124: 0 | F124: 0 | G124: 0 | H124: 0 | I124: 0 | J124: 0
C125: < = 33 kV ; > 30 MVA | D125: 0 | E125: 0 | F125: 0 | G125: 0 | H125: 0 | I125: 0 | J125: 0
C126: > 33 kV & < = 66 kV ; < = 10 MVA | D126: 0 | E126: 0 | F126: 0 | G126: 0 | H126: 0 | I126: 0 | J126: 0
C127: > 33 kV & < = 66 kV ; > 10 MVA & < = 30 MVA | D127: 0 | E127: 0 | F127: 0 | G127: 0 | H127: 0 | I127: 0 | J127: 0
C128: > 33 kV & < = 66 kV ; > 30 MVA | D128: 0 | E128: 0 | F128: 0 | G128: 0 | H128: 0 | I128: 0 | J128: 0
C129: > 66 kV & < = 132 kV ; < = 30 MVA | D129: 3155991.82 | E129: 0 | F129: 0 | G129: 25028065.38 | H129: 1369507.71 | I129: 2231596.15 | J129: 0
C130: > 66 kV & < = 132 kV ; > 30 MVA & < = 60 MVA | D130: 0 | E130: 0 | F130: 0 | G130: 0 | H130: 0 | I130: 0 | J130: 0
C131: > 66 kV & < = 132 kV ; > 60 MVA | D131: 13074224.68 | E131: 0 | F131: 0 | G131: 0 | H131: 0 | I131: 0 | J131: 0
C132: > 132 kV & < = 220 kV ; < = 50 MVA | D132: 0 | E132: 0 | F132: 0 | G132: 0 | H132: 0 | I132: 0 | J132: 0
C133: > 132 kV & < = 220 kV ; > 50 MVA & < = 100 MVA | D133: 0 | E133: 0 | F133: 0 | G133: 0 | H133: 0 | I133: 0 | J133: 0
C134: > 132 kV & < = 220 kV ; > 100 MVA | D134: 0 | E134: 0 | F134: 0 | G134: 0 | H134: 0 | I134: 0 | J134: 0
C135: > 220 kV & < = 275 kV ; < = 50 MVA | D135: 0 | E135: 0 | F135: 0 | G135: 0 | H135: 0 | I135: 0 | J135: 0
C136: > 220 kV & < = 275 kV ; > 50 MVA & < = 100 MVA | D136: 0 | E136: 0 | F136: 0 | G136: 0 | H136: 0 | I136: 0 | J136: 0
C137: > 220 kV & < = 275 kV ; > 100 MVA | D137: 0 | E137: 3333970.9 | F137: 0 | G137: 0 | H137: 0 | I137: 0 | J137: 0
C138: > 275 kV & < = 330 kV ; < = 100 MVA | D138: 0 | E138: 0 | F138: 0 | G138: 0 | H138: 0 | I138: 0 | J138: 0
C139: > 275 kV & < = 330 kV ; > 100 MVA & < = 250 MVA | D139: 0 | E139: 0 | F139: 0 | G139: 0 | H139: 0 | I139: 0 | J139: 0
C140: > 275 kV & < = 330 kV ; > 250 MVA | D140: 0 | E140: 0 | F140: 0 | G140: 0 | H140: 0 | I140: 0 | J140: 0
C141: > 330 kV & < = 500 kV ; < = 150 MVA | D141: 0 | E141: 0 | F141: 0 | G141: 0 | H141: 0 | I141: 0 | J141: 0
C142: > 330 kV & < = 500 kV ; > 150 MVA & < = 300 MVA | D142: 0 | E142: 0 | F142: 0 | G142: 0 | H142: 0 | I142: 0 | J142: 0
C143: > 330 kV & < = 500 kV ; > 300 MVA | D143: 0 | E143: 0 | F143: 0 | G143: 0 | H143: 0 | I143: 0 | J143: 0
C144: > 500 kV ; < = 1000 MVA | D144: 0 | E144: 0 | F144: 0 | G144: 0 | H144: 0 | I144: 0 | J144: 0
C145: > 500 kV ; > 1000 MVA & < = 1500 MVA | D145: 0 | E145: 0 | F145: 0 | G145: 0 | H145: 0 | I145: 0 | J145: 0
C146: > 500 kV ; > 1500 MVA | D146: 0 | E146: 0 | F146: 0 | G146: 0 | H146: 0 | I146: 0 | J146: 0
C147: Other | D147: 0 | E147: 0 | F147: 0 | G147: 0 | H147: 0 | I147: 0 | J147: 0
B148: SUBSTATION REACTIVE PLANT BY: Highest operating voltage; Function | C148: < = 33 kV; SVCS | D148: 0 | E148: 0 | F148: 0 | G148: 0 | H148: 0 | I148: 0 | J148: 0
C149: > 33 kV & < = 66 kV ; SVCS | D149: 0 | E149: 0 | F149: 0 | G149: 0 | H149: 0 | I149: 0 | J149: 0
C150: > 66 kV & < = 132 kV ; SVCS | D150: 0 | E150: 0 | F150: 0 | G150: 0 | H150: 0 | I150: 0 | J150: 0
C151: > 132 kV & < = 275 kV ; SVCS | D151: 0 | E151: 0 | F151: 0 | G151: 0 | H151: 0 | I151: 0 | J151: 0
C152: > 275 kV & < = 330 kV ; SVCS | D152: 0 | E152: 0 | F152: 0 | G152: 0 | H152: 0 | I152: 0 | J152: 0
C153: > 330 kV & < = 500 kV ; SVCS | D153: 0 | E153: 0 | F153: 0 | G153: 0 | H153: 0 | I153: 0 | J153: 0
C154: > 500 kV ; SVCS | D154: 0 | E154: 0 | F154: 0 | G154: 0 | H154: 0 | I154: 0 | J154: 0
C155: < = 33 kV; Capacitors | D155: 0 | E155: 0 | F155: 0 | G155: 0 | H155: 0 | I155: 0 | J155: 0
C156: > 33 kV & < = 66 kV ; Capacitors | D156: 0 | E156: 0 | F156: 0 | G156: 0 | H156: 0 | I156: 0 | J156: 0
C157: > 66 kV & < = 132 kV ; Capacitors | D157: 2528202.64 | E157: 0 | F157: 0 | G157: 0 | H157: 0 | I157: 0 | J157: 0
C158: > 132 kV & < = 275 kV ; Capacitors | D158: 0 | E158: 0 | F158: 0 | G158: 0 | H158: 0 | I158: 0 | J158: 0
C159: > 275 kV & < = 330 kV ; Capacitors | D159: 0 | E159: 0 | F159: 0 | G159: 0 | H159: 0 | I159: 0 | J159: 0
C160: > 330 kV & < = 500 kV ; Capacitors | D160: 0 | E160: 0 | F160: 0 | G160: 0 | H160: 0 | I160: 0 | J160: 0
C161: > 500 kV ; Capacitors | D161: 0 | E161: 0 | F161: 0 | G161: 0 | H161: 0 | I161: 0 | J161: 0
C162: < = 33 kV; Oil Filled Reactors | D162: 0 | E162: 0 | F162: 0 | G162: 0 | H162: 0 | I162: 0 | J162: 0
C163: > 33 kV & < = 66 kV ; Oil Filled Reactors | D163: 0 | E163: 0 | F163: 0 | G163: 0 | H163: 0 | I163: 0 | J163: 0
C164: > 66 kV & < = 132 kV ; Oil Filled Reactors | D164: 0 | E164: 0 | F164: 0 | G164: 0 | H164: 0 | I164: 0 | J164: 0
C165: > 132 kV & < = 275 kV ; Oil Filled Reactors | D165: 0 | E165: 0 | F165: 0 | G165: 0 | H165: 0 | I165: 0 | J165: 0
C166: > 275 kV & < = 330 kV ; Oil Filled Reactors | D166: 0 | E166: 0 | F166: 0 | G166: 0 | H166: 0 | I166: 0 | J166: 0
C167: > 330 kV & < = 500 kV ; Oil Filled Reactors | D167: 0 | E167: 0 | F167: 0 | G167: 0 | H167: 0 | I167: 0 | J167: 0
C168: > 500 kV ; Oil Filled Reactors | D168: 0 | E168: 0 | F168: 0 | G168: 0 | H168: 0 | I168: 0 | J168: 0
C169: Other | D169: 0 | E169: 0 | F169: 0 | G169: 0 | H169: 0 | I169: 0 | J169: 0
B170: SCADA, NETWORK CONTROL AND PROTECTION SYSTEMS BY: Function | C170: Site Establishment | D170: 42589300.98 | E170: 3710251.34 | F170: 19969591.15 | G170: 30705197.58 | H170: 4709356.183 | I170: 14326054.08 | J170: 9613328.907
C171: Secondary Systems | D171: 46301370.9 | E171: 30602403.87 | F171: 17174420.45 | G171: 21945130.98 | H171: 11987546.95 | I171: 5098379.013 | J171: 27703964.59
C172: Telecommunications | D172: 12698393.8 | E172: 1009608.762 | F172: 11151136.56 | G172: 28473914.21 | H172: 2119390.974 | I172: 234095.0628 | J172: 10472905.39
C173: OPGW | D173: 0 | E173: 0 | F173: 0 | G173: 0 | H173: 0 | I173: 0 | J173: 0
C174: OTHER | D174: 3403071.868 | E174: 7338961.008 | F174: 17531475.6 | G174: 10790358.6 | H174: 4829765.631 | I174: 5064852.165 | J174: 5393903.511
C175: Other Primary Plant | D175: 431084.99 | E175: 492552.97 | F175: 9021295.88 | G175: 0.01 | H175: 6342936.94 | I175: 2414692.59 | J175: 2096014.7
C176: Other Lines | D176: 987511.0522 | E176: 53662.65329 | F176: 125410.349 | G176: 0 | H176: 64589.37956 | I176: 8479000.79 | J176: 0
C177: Transformer Refurbishment | D177: 0 | E177: 0 | F177: 0 | G177: 0 | H177: 0 | I177: 0 | J177: 0
B178: OTHER BY: NSP defined | C178: <NSP to enter description for Asset Category not listed above>
B179: TRANSMISSION TOWERS BY: HIGHEST OPERATING VOLTAGE; CIRCUIT CONFIGURATION | C179: > 66 kV & < = 132 kV ; SINGLE CIRCUIT REFURBISHED | D179: 0 | E179: 0 | F179: 0 | G179: 0 | H179: 0 | I179: 0 | J179: 7830327.05
C180: > 132 kV & < = 275 kV ; SINGLE CIRCUIT REFURBISHED | D180: 0 | E180: 0 | F180: 24052439.53 | G180: 0 | H180: 0 | I180: 0 | J180: 0
B182: TRANSMISSION TOWER SUPPORT STRUCTURES BY: HIGHEST OPERATING VOLTAGE; CIRCUIT CONFIGURATION | C182: > 33 kV & < = 66 kV ; SINGLE CIRCUIT REFURBISHED | D182: 0 | E182: 0 | F182: 0 | G182: 0 | H182: 0 | I182: 0 | J182: 924962.73
C183: > 66 kV & < = 132 kV ; SINGLE CIRCUIT REFURBISHED | D183: 0 | E183: 13437153 | F183: 0 | G183: 0 | H183: 0 | I183: 0 | J183: 25902421.76
C184: > 132 kV & < = 275 kV ; SINGLE CIRCUIT REFURBISHED | D184: 2537235.83 | E184: 0 | F184: 30218871.72 | G184: 0 | H184: 0 | I184: 0 | J184: 24490955.42
B186: CONDUCTORS BY: VOLTAGE, MAXIMUM CONTINUOUS RATING | C186: > 66 kV & < = 132 kV ; > 100 MVA & < = 400 MVA REFURBISHED | D186: 0 | E186: 0 | F186: 0 | G186: 0 | H186: 0 | I186: 26056796.93 | J186: 42259549.42
B188: SUBSTATION REACTIVE PLANT BY: Highest operating voltage; Function | C188: >132 kV & <=275 kV ; SVCS REFURBISHED | D188: 0 | E188: 2364477.08 | F188: 0 | G188: 0 | H188: 0 | I188: 0 | J188: 0
B207: ASSET REPLACEMENTS
D208: VOLUMES
D209: (0's)
B210: ASSET GROUP | C210: ASSET CATEGORY | D210: =CRCP_y4 -> 2016-17 | E210: =CRCP_y5 -> 2017-18 | F210: =FRCP_y1 -> 2018-19 | G210: =FRCP_y2 -> 2019-20 | H210: =FRCP_y3 -> 2020-21 | I210: =FRCP_y4 -> 2021-22 | J210: =FRCP_y5 -> 2022-23
B211: TRANSMISSION TOWERS Highest operating voltage; Circuit configuration | C211: < = 33 kV; Single Circuit | D211: 0 | E211: 0 | F211: 0 | G211: 0 | H211: 0 | I211: 0 | J211: 0
C212: > 33 kV & < = 66 kV ; Single Circuit | D212: 0 | E212: 0 | F212: 0 | G212: 0 | H212: 0 | I212: 0 | J212: 0
C213: > 66 kV & < = 132 kV ; Single Circuit | D213: 12 | E213: 0 | F213: 0 | G213: 4 | H213: 0 | I213: 0 | J213: 0
C214: > 132 kV & < = 275 kV ; Single Circuit | D214: 0 | E214: 0 | F214: 0 | G214: 0 | H214: 0 | I214: 0 | J214: 0
C215: > 275 kV & < = 330 kV ; Single Circuit | D215: 0 | E215: 0 | F215: 0 | G215: 0 | H215: 0 | I215: 0 | J215: 0
C216: > 330 kV & < = 500 kV ; Single Circuit | D216: 0 | E216: 0 | F216: 0 | G216: 0 | H216: 0 | I216: 0 | J216: 0
C217: > 500 kV ; Single Circuit | D217: 0 | E217: 0 | F217: 0 | G217: 0 | H217: 0 | I217: 0 | J217: 0
C218: < = 33 kV; Multiple Circuit | D218: 0 | E218: 0 | F218: 0 | G218: 0 | H218: 0 | I218: 0 | J218: 0
C219: > 33 kV & < = 66 kV ; Multiple Circuit | D219: 0 | E219: 0 | F219: 0 | G219: 0 | H219: 0 | I219: 0 | J219: 0
C220: > 66 kV & < = 132 kV ; Multiple Circuit | D220: 0 | E220: 0 | F220: 0 | G220: 1 | H220: 0 | I220: 0 | J220: 0
C221: > 132 kV & < = 275 kV ; Multiple Circuit | D221: 0 | E221: 0 | F221: 0 | G221: 0 | H221: 0 | I221: 0 | J221: 0
C222: > 275 kV & < = 330 kV ; Multiple Circuit | D222: 0 | E222: 0 | F222: 0 | G222: 0 | H222: 0 | I222: 0 | J222: 0
C223: > 330 kV & < = 500 kV ; Multiple Circuit | D223: 0 | E223: 0 | F223: 0 | G223: 0 | H223: 0 | I223: 0 | J223: 0
... 333 more rows

Sheet 2.3 Augex (a)
B1: =(LOOKUP(dms_Model,dms_Model_List,dms_Worksheet_List)) -> REGULATORY REPORTING STATEMENT
B2: =INDEX(dms_TradingNameFull_List,MATCH(dms_TradingName,dms_TradingName_List)) -> ElectraNet
B3: =IF(SUM(dms_SingleYear_Model)>0,CRY,CONCATENATE(FRCP_y1," to ",dms_MultiYear_FinalYear_Result)) -> 2018-19 to 2022-23
B4: 2.3 AUGEX PROJECTS
B6: There are TWO tables on this worksheet - each has been 'grouped' for easy navigation. Both ROWS and COLUMNS have been grouped. See the Instructions sheet on how to group or ungroup tables.
B8: NOTE: TNSP MUST PROVIDE EXPENDITURE INFORMATION ON A PROJECT CLOSE BASIS.
B9: 2.3.1 - AUGEX ASSET DATA - SUBSTATIONS
B10: SUBSTATION AND PROJECT SUMMARY | L10: PLANT AND EQUIPMENT EXPENDITURE AND VOLUME | Z10: OTHER EXPENDITURE | AB10: TOTAL DIRECT EXPENDITURE ($0's) | AC10: YEARS INCURRED | AD10: RELATED PARTY CONTRACTS | AF10: ALL NON RELATED PARTY CONTRACTS | AG10: LAND AND EASEMENTS | AI10: Comments
B11: SUBSTATION ID | C11: SUBSTATION TYPE (drop down) | D11: PROJECT ID | E11: PROJECT TYPE (drop down) | F11: PROJECT TRIGGER (drop down) | G11: VOLTAGE (KV) | H11: SUBSTATION RATING NORMAL CYCLIC (MVA) | J11: SUBSTATION RATING N-1 EMERGENCY (MVA) | L11: TRANSFORMERS | P11: SWITCHGEAR | S11: REACTIVE PLANT | W11: OTHER PLANT ITEM | X11: INSTALLATION (LABOUR) | Z11: CIVIL WORKS | AA11: OTHER DIRECT | AD11: RELATED PARTY MARGINS | AE11: TOTAL | AG11: LAND PURCHASES | AH11: EASEMENTS
H12: PRE | I12: POST | J12: PRE | K12: POST | L12: Units Added | M12: MVA Added | N12: OLTC INCLUDED? | O12: Expenditure ($0's) | P12: Insulation | Q12: Units Added | R12: Expenditure ($0's) | S12: Plant Type | U12: Units Added | V12: Expenditure ($0's) | W12: Expenditure ($0's) | X12: Volume | Y12: Expenditure ($0's) | Z12: Expenditure ($0's) | AD12: Expenditure ($0's) | AG12: Expenditure ($0's)
B13: City West H579 | C13: Terminal station | D13: 10161 | E13: New substation establishment | F13: Demand growth | G13: 275 | H13: 0 | I13: 600 | J13: 0 | K13: 300 | L13: 2 | M13: 600 | N13: Yes | O13: 9290665.66 | P13: Gas | Q13: 6 275kV Circuit Breakers | R13: 3181974.313 | S13: Reactor | U13: 2 | V13: 3038610.636 | W13: 4530894.814 | X13: 1 | Y13: 1675749.003 | Z13: 10556487.68 | AA13: 50769281.45 | AC13: 2004, 2005, 2006, 2007, 2008, 2009, 2010, 2011, 2012, 2013, 2014, 2015, 2016, 2017, 2018 | AG13: 7181022.297
P14: Gas | Q14: 11 275kV Disconnectors with ES | R14: 1124414.147 | W14: 312652.8702 | X14: 1 | Y14: 0 | Z14: 0 | AG14: 0
P15: Gas | Q15: 2 66kV Circuit Breaker | R15: 325190.7815 | W15: 205211.7009 | X15: 12 | Y15: 0 | Z15: 0 | AG15: 0
P16: Gas | Q16: 2 66kV Disconnector with ES | R16: 103649.608 | W16: 26897.59019 | X16: 6 | Y16: 0 | Z16: 0 | AG16: 0
Y17: 0 | Z17: 0 | AG17: 0
Y18: 0 | Z18: 0 | AG18: 0
Y19: 0 | Z19: 0 | AG19: 0
B20: Project Totals | L20: =SUM(L13:L19) -> 2 | M20: =SUM(M13:M19) -> 600 | O20: =SUM(O13:O19) -> 9290665.66 | Q20: =SUM(Q13:Q19) -> 0 | R20: =SUM(R13:R19) -> 4735228.849 | T20: =SUM(T13:T19) -> 0 | U20: =SUM(U13:U19) -> 2 | V20: =SUM(V13:V19) -> 3038610.636 | W20: =SUM(W13:W19) -> 5075656.975 | X20: =SUM(X13:X19) -> 20 | Y20: =SUM(Y13:Y19) -> 1675749.003 | Z20: =SUM(Z13) -> 10556487.68 | AA20: =AA13 -> 50769281.45 | AB20: =O20+R20+V20+W20+Y20+SUM(Z20:AA20) -> 85141680.25 | AD20: =SUM(AD13) -> 0 | AE20: 0 | AF20: 0 | AG20: 7181022.297
B21: Torrens Island B Substation H254 | C21: Switching station | D21: 10161 | E21: New substation establishment | F21: Demand growth | G21: 275 | H21: 0 | I21: 0 | J21: 0 | K21: 0 | L21: 0 | M21: 0 | N21: No | O21: 0 | P21: Air | Q21: 1 275kV Circuit Breaker | R21: 110641.7926 | Y21: 205394.6936 | AA21: 667060.9561 | AC21: 2004, 2005, 2006, 2007, 2008, 2009, 2010, 2011 | AG21: 218453.0396
P22: Air | Q22: 4 275kV Disconnectors with ES | R22: 135584.7414 | Y22: 0 | AG22: 0
Y23: 0 | AG23: 0
Y24: 0 | AG24: 0
Y25: 0 | AG25: 0
Y26: 0 | AG26: 0
Y27: 0 | AG27: 0
B28: Project Totals | L28: =SUM(L21:L27) -> 0 | M28: =SUM(M21:M27) -> 0 | O28: =SUM(O21:O27) -> 0 | Q28: =SUM(Q21:Q27) -> 0 | R28: =SUM(R21:R27) -> 246226.5339 | T28: =SUM(T21:T27) -> 0 | U28: =SUM(U21:U27) -> 0 | V28: =SUM(V21:V27) -> 0 | W28: =SUM(W21:W27) -> 0 | X28: =SUM(X21:X27) -> 0 | Y28: =SUM(Y21:Y27) -> 205394.6936 | Z28: =SUM(Z21) -> 0 | AA28: =AA21 -> 667060.9561 | AB28: =O28+R28+V28+W28+Y28+SUM(Z28:AA28) -> 1118682.184 | AD28: =SUM(AD21) -> 0 | AE28: 0 | AF28: 0 | AG28: 218453.0396
B29: Black Range H576 | C29: Switching station | D29: 10344 | E29: New substation establishment | F29: Net market benefit | G29: 275 | H29: 0 | I29: 0 | J29: 0 | K29: 0 | L29: 0 | M29: 0 | N29: No | O29: 0 | P29: Air | Q29: 2 275kV Circuit Breakers | R29: 270174.2436 | S29: Capacitor | U29: 2 | V29: 1922915.901 | W29: 30740.35782 | Y29: 1683818.504 | Z29: 1359667.246 | AA29: 29706211.38 | AC29: 2012, 2013, 2014, 2015, 2016, 2017, 2018
P30: Air | Q30: 6 275kV Disconnectors with ES | R30: 149353.7225 | W30: 47716.21937 | Y30: 0 | Z30: 0
Y31: 0 | Z31: 0
Y32: 0 | Z32: 0
Y33: 0 | Z33: 0
Y34: 0 | Z34: 0
Y35: 0 | Z35: 0
B36: Project Totals | L36: =SUM(L29:L35) -> 0 | M36: =SUM(M29:M35) -> 0 | O36: =SUM(O29:O35) -> 0 | Q36: =SUM(Q29:Q35) -> 0 | R36: =SUM(R29:R35) -> 419527.966 | T36: =SUM(T29:T35) -> 0 | U36: =SUM(U29:U35) -> 2 | V36: 1922915.901 | W36: =SUM(W29:W35) -> 78456.57719 | X36: =SUM(X29:X35) -> 0 | Y36: =SUM(Y29:Y35) -> 1683818.504 | Z36: =SUM(Z29) -> 1359667.246 | AA36: =AA29 -> 29706211.38 | AB36: =O36+R36+V36+W36+Y36+SUM(Z36:AA36) -> 35170597.57 | AD36: =SUM(AD29) -> 0 | AE36: 0 | AF36: 0 | AG36: 0
B37: Ardrossan West T282 | C37: Terminal station | D37: 10615 | E37: Capacity upgrade | F37: Demand growth | G37: 132 | H37: 20 | I37: 50 | J37: 10 | K37: 25 | L37: 2 | M37: 50 | N37: Yes | O37: 1180611.082 | P37: Air | Q37: 3 132kV Circuit Breakers | R37: 137198.2847 | S37: Capacitor | U37: 1 | V37: 197698.7019 | W37: 195615.0952 | Y37: 319716.7429 | Z37: 1640467.033 | AA37: 20768471.01 | AC37: 2008, 2009, 2010, 2011, 2012, 2013, 2014, 2015, 2016, 2017
P38: Air | Q38: 2 33kV Circuit Breakers | R38: 54205.39529 | W38: 37389.72931 | Y38: 0 | Z38: 0
P39: Air | Q39: 8 132kV Disconnectors with ES | R39: 177015.0939 | W39: 27833.25871 | Y39: 0 | Z39: 0
W40: 7539.810346 | Y40: 0 | Z40: 0
W41: 124230.3909 | Y41: 0 | Z41: 0
W42: 41236.21408 | Y42: 0 | Z42: 0
Y43: 0 | Z43: 0
B44: Project Totals | L44: =SUM(L37:L43) -> 2 | M44: =SUM(M37:M43) -> 50 | O44: =SUM(O37:O43) -> 1180611.082 | Q44: =SUM(Q37:Q43) -> 0 | R44: =SUM(R37:R43) -> 368418.7739 | T44: =SUM(T37:T43) -> 0 | U44: =SUM(U37:U43) -> 1 | V44: 197698.7019 | W44: =SUM(W37:W43) -> 433844.4986 | X44: =SUM(X37:X43) -> 0 | Y44: =SUM(Y37:Y43) -> 319716.7429 | Z44: =SUM(Z37) -> 1640467.033 | AA44: =AA37 -> 20768471.01 | AB44: 24909227.84 | AD44: =SUM(AD37) -> 0 | AE44: 0 | AF44: 0 | AG44: 0
B45: Cultana H512 | C45: Transmission substation | D45: 11101 | E45: Capacity upgrade | F45: Voltage issues | G45: 275 | H45: 160 | I45: 400 | J45: 0 | K45: 200 | L45: 2 | M45: 400 | N45: Yes | O45: 3887900.727 | P45: Air | Q45: 8 132kV Circuit Breakers | R45: 525179.9778 | W45: 395117.4623 | Y45: 903752.5456 | Z45: 2833457.978 | AA45: 45163653.93 | AC45: 2010, 2011, 2012, 2013, 2014, 2015, 2016, 2017
P46: Air | Q46: 11 132kV Disconnectors with ES | R46: 204507.3433 | W46: 191150.5051 | Y46: 0 | Z46: 0
P47: Air | Q47: 5 275kV Circuit Breakers | R47: 359085.4481 | W47: 34152.8437 | Y47: 0 | Z47: 0
P48: Air | Q48: 13 275kV Disconnectors with ES | R48: 390436.7 | W48: 307146.3722 | Y48: 0 | Z48: 0
W49: 93393.77595 | Y49: 0 | Z49: 0
W50: 48604.84951 | Y50: 0 | Z50: 0
Y51: 0 | Z51: 0
B52: Project Totals | L52: =SUM(L45:L51) -> 2 | M52: =SUM(M45:M51) -> 400 | O52: =SUM(O45:O51) -> 3887900.727 | Q52: =SUM(Q45:Q51) -> 0 | R52: =SUM(R45:R51) -> 1479209.469 | T52: =SUM(T45:T51) -> 0 | U52: =SUM(U45:U51) -> 0 | V52: 0 | W52: =SUM(W45:W51) -> 1069565.809 | X52: =SUM(X45:X51) -> 0 | Y52: =SUM(Y45:Y51) -> 903752.5456 | Z52: =SUM(Z45) -> 2833457.978 | AA52: =AA45 -> 45163653.93 | AB52: =O52+R52+V52+W52+Y52+SUM(Z52:AA52) -> 55337540.46 | AD52: =SUM(AD45) -> 0 | AE52: 0 | AF52: 0 | AG52: 0
B53: Tailem Bend H114 | C53: Transmission substation | D53: 11602 | E53: Capacity upgrade | F53: Net market benefit | G53: 275 | H53: 0 | I53: 160 | J53: 0 | K53: 160 | L53: 0 | M53: 0 | N53: No | O53: 0 | P53: Air | Q53: 2 275kV Circuit Breakers | R53: 276398.044 | W53: 67219.42974 | Y53: 166482.7099 | Z53: 2072301.569 | AA53: 5732913.749 | AC53: 2014, 2015, 2016, 2017, 2018, 2019
P54: Air | Q54: 5 275kV Disconnectors with ES | R54: 125169.9858 | W54: 149533.7929 | Y54: 0 | Z54: 0
W55: 14239.97144 | Y55: 0 | Z55: 0
Y56: 0 | Z56: 0
Y57: 0 | Z57: 0
Y58: 0 | Z58: 0
Y59: 0 | Z59: 0
B60: Project Totals | L60: =SUM(L53:L59) -> 0 | M60: =SUM(M53:M59) -> 0 | O60: =SUM(O53:O59) -> 0 | Q60: =SUM(Q53:Q59) -> 0 | R60: =SUM(R53:R59) -> 401568.0298 | T60: =SUM(T53:T59) -> 0 | U60: =SUM(U53:U59) -> 0 | V60: 0 | W60: =SUM(W53:W59) -> 230993.1941 | X60: =SUM(X53:X59) -> 0 | Y60: =SUM(Y53:Y59) -> 166482.7099 | Z60: =SUM(Z53) -> 2072301.569 | AA60: =AA53 -> 5732913.749 | AB60: =O60+R60+V60+W60+Y60+SUM(Z60:AA60) -> 8604259.252 | AD60: =SUM(AD53) -> 0 | AE60: 0 | AF60: 0 | AG60: 0
B61: <Enter substation ID>
B68: Project Totals | L68: =SUM(L61:L66) -> 0 | M68: =SUM(M61:M66) -> 0 | O68: =SUM(O61:O66) -> 0 | Q68: =SUM(Q61:Q66) -> 0 | R68: =SUM(R61:R66) -> 0 | T68: =SUM(T61:T66) -> 0 | U68: 0 | V68: 0 | W68: 0 | X68: 0 | Y68: 0 | Z68: 0 | AA68: =O66+R66+U66+V66+SUM(X66:Z66) -> 0 | AC68: =SUM(AC61:AC66) -> 0 | AD68: =SUM(AD61:AD66) -> 0 | AE68: =SUM(AE61:AE66) -> 0 | AF68: =SUM(AF61:AF66) -> 0 | AG68: =SUM(AG61:AG66) -> 0
B69: <Enter substation ID>
B76: Project Totals | L76: =SUM(L69:L74) -> 0 | M76: =SUM(M69:M74) -> 0 | O76: =SUM(O69:O74) -> 0 | Q76: =SUM(Q69:Q74) -> 0 | R76: =SUM(R69:R74) -> 0 | T76: =SUM(T69:T74) -> 0 | U76: 0 | V76: 0 | W76: 0 | X76: 0 | Y76: 0 | Z76: 0 | AA76: =O74+R74+U74+V74+SUM(X74:Z74) -> 0 | AC76: =SUM(AC69:AC74) -> 0 | AD76: =SUM(AD69:AD74) -> 0 | AE76: =SUM(AE69:AE74) -> 0 | AF76: =SUM(AF69:AF74) -> 0 | AG76: =SUM(AG69:AG74) -> 0
B77: <Enter substation ID>
B84: Project Totals | L84: =SUM(L77:L82) -> 0 | M84: =SUM(M77:M82) -> 0 | O84: =SUM(O77:O82) -> 0 | Q84: =SUM(Q77:Q82) -> 0 | R84: =SUM(R77:R82) -> 0 | T84: =SUM(T77:T82) -> 0 | U84: 0 | V84: 0 | W84: 0 | X84: 0 | Y84: 0 | Z84: 0 | AA84: =O82+R82+U82+V82+SUM(X82:Z82) -> 0 | AC84: =SUM(AC77:AC82) -> 0 | AD84: =SUM(AD77:AD82) -> 0 | AE84: =SUM(AE77:AE82) -> 0 | AF84: =SUM(AF77:AF82) -> 0 | AG84: =SUM(AG77:AG82) -> 0
B85: <Enter substation ID>
B92: Project Totals | L92: =SUM(L85:L90) -> 0 | M92: =SUM(M85:M90) -> 0 | O92: =SUM(O85:O90) -> 0 | Q92: =SUM(Q85:Q90) -> 0 | R92: =SUM(R85:R90) -> 0 | T92: =SUM(T85:T90) -> 0 | U92: 0 | V92: 0 | W92: 0 | X92: 0 | Y92: 0 | Z92: 0 | AA92: =O90+R90+U90+V90+SUM(X90:Z90) -> 0 | AC92: =SUM(AC85:AC90) -> 0 | AD92: =SUM(AD85:AD90) -> 0 | AE92: =SUM(AE85:AE90) -> 0 | AF92: =SUM(AF85:AF90) -> 0 | AG92: =SUM(AG85:AG90) -> 0
B93: <Enter substation ID>
B100: Project Totals | L100: =SUM(L93:L98) -> 0 | M100: =SUM(M93:M98) -> 0 | O100: =SUM(O93:O98) -> 0 | Q100: =SUM(Q93:Q98) -> 0 | R100: =SUM(R93:R98) -> 0 | T100: =SUM(T93:T98) -> 0 | U100: 0 | V100: 0 | W100: 0 | X100: 0 | Y100: 0 | Z100: 0 | AA100: =O98+R98+U98+V98+SUM(X98:Z98) -> 0 | AC100: =SUM(AC93:AC98) -> 0 | AD100: =SUM(AD93:AD98) -> 0 | AE100: =SUM(AE93:AE98) -> 0 | AF100: =SUM(AF93:AF98) -> 0 | AG100: =SUM(AG93:AG98) -> 0
B101: <Enter substation ID>
B108: Project Totals | L108: =SUM(L101:L106) -> 0 | M108: =SUM(M101:M106) -> 0 | O108: =SUM(O101:O106) -> 0 | Q108: =SUM(Q101:Q106) -> 0 | R108: =SUM(R101:R106) -> 0 | T108: =SUM(T101:T106) -> 0 | U108: 0 | V108: 0 | W108: 0 | X108: 0 | Y108: 0 | Z108: 0 | AA108: =O106+R106+U106+V106+SUM(X106:Z106) -> 0 | AC108: =SUM(AC101:AC106) -> 0 | AD108: =SUM(AD101:AD106) -> 0 | AE108: =SUM(AE101:AE106) -> 0 | AF108: =SUM(AF101:AF106) -> 0 | AG108: =SUM(AG101:AG106) -> 0
B109: <Enter substation ID>
B116: Project Totals | L116: =SUM(L109:L114) -> 0 | M116: =SUM(M109:M114) -> 0 | O116: =SUM(O109:O114) -> 0 | Q116: =SUM(Q109:Q114) -> 0 | R116: =SUM(R109:R114) -> 0 | T116: =SUM(T109:T114) -> 0 | U116: 0 | V116: 0 | W116: 0 | X116: 0 | Y116: 0 | Z116: 0 | AA116: =O114+R114+U114+V114+SUM(X114:Z114) -> 0 | AC116: =SUM(AC109:AC114) -> 0 | AD116: =SUM(AD109:AD114) -> 0 | AE116: =SUM(AE109:AE114) -> 0 | AF116: =SUM(AF109:AF114) -> 0 | AG116: =SUM(AG109:AG114) -> 0
B117: <Enter substation ID>
B124: Project Totals | L124: =SUM(L117:L122) -> 0 | M124: =SUM(M117:M122) -> 0 | O124: =SUM(O117:O122) -> 0 | Q124: =SUM(Q117:Q122) -> 0 | R124: =SUM(R117:R122) -> 0 | T124: =SUM(T117:T122) -> 0 | U124: 0 | V124: 0 | W124: 0 | X124: 0 | Y124: 0 | Z124: 0 | AA124: =O122+R122+U122+V122+SUM(X122:Z122) -> 0 | AC124: =SUM(AC117:AC122) -> 0 | AD124: =SUM(AD117:AD122) -> 0 | AE124: =SUM(AE117:AE122) -> 0 | AF124: =SUM(AF117:AF122) -> 0 | AG124: =SUM(AG117:AG122) -> 0
B125: <Enter substation ID>
B132: Project Totals | L132: =SUM(L125:L130) -> 0 | M132: =SUM(M125:M130) -> 0 | O132: =SUM(O125:O130) -> 0 | Q132: =SUM(Q125:Q130) -> 0 | R132: =SUM(R125:R130) -> 0 | T132: =SUM(T125:T130) -> 0 | U132: 0 | V132: 0 | W132: 0 | X132: 0 | Y132: 0 | Z132: 0 | AA132: =O130+R130+U130+V130+SUM(X130:Z130) -> 0 | AC132: =SUM(AC125:AC130) -> 0 | AD132: =SUM(AD125:AD130) -> 0 | AE132: =SUM(AE125:AE130) -> 0 | AF132: =SUM(AF125:AF130) -> 0 | AG132: =SUM(AG125:AG130) -> 0
K133: Non material projects | AB133: 32611934.61
K134: Non material projects
B136: NOTE: TNSP MUST PROVIDE EXPENDITURE INFORMATION ON A PROJECT CLOSE BASIS.
B137: 2.3.2 - AUGEX ASSET DATA - LINES
B138: LINE AND PROJECT SUMMARY | L138: PLANT AND EQUIPMENT EXPENDITURE AND VOLUME | Z138: OTHER EXPENDITURE | AB138: TOTAL DIRECT EXPENDITURE ($0's) | AC138: YEARS INCURRED | AD138: ALL RELATED PARTY CONTRACTS | AF138: ALL NON RELATED PARTY CONTRACTS | AG138: LAND AND EASEMENTS | AI138: Comments
B139: LINE ID | D139: PROJECT ID | E139: PROJECT TYPE (drop down) | F139: PROJECT TRIGGER (drop down) | G139: VOLTAGE (KV) (drop down) | H139: ROUTE LINE LENGTH ADDED | L139: TOWERS/POLES (INCLUDING STRUCTURES, AND CIVIL WORKS) | P139: LINES AND CABLES | W139: OTHER PLANT ITEM | X139: INSTALLATION (LABOUR) | Z139: CIVIL WORKS | AA139: OTHER DIRECT | AD139: RELATED PARTY MARGINS | AE139: TOTAL | AG139: LAND PURCHASES | AH139: EASEMENTS
P140: Type | Q140: Rating (MVA) | S140: N-1 Emergency Rating (MVA) | U140: Circuit KM Added | V140: Expenditure ($0's) | W140: Expenditure ($0's)
H141: KM ADDED | L141: Configuration | M141: Towers/Poles Added | N141: Towers/Poles Upgraded | O141: Expenditure ($0's) | Q141: PRE | R141: POST | S141: PRE | T141: POST | X141: Volume | Y141: Expenditure ($0's) | Z141: Expenditure ($0's) | AD141: Expenditure ($0's) | AG141: Expenditure ($0's)
B142: F1949 TIPS - CITY WEST CABLE | D142: 10161 | E142: New line on new route - single circuit | F142: Demand growth | G142: 275 | H142: 18.4 | L142: Other - specify | M142: 0 | N142: 0 | O142: 0 | P142: Underground cable | Q142: 0 | R142: 750 | S142: 0 | T142: 0 | U142: 18.4 | V142: 81368166.19 | Y142: 20247142.57 | AA142: 1658162.593 | AC142: 2004, 2005, 2006, 2007, 2008, 2009, 2010, 2011, 2012, 2013, 2014, 2015, 2016, 2017, 2018 | AG142: 349667.507 | AH142: 375271.5139
AA143: 0
AA144: 0
AA145: 0
AA146: 0
AA147: 0
AA148: 0
B149: Project Totals | M149: =SUM(M142:M148) -> 0 | N149: =SUM(N142:N148) -> 0 | O149: =SUM(O142:O148) -> 0 | U149: =SUM(U142:U148) -> 18.4 | V149: =SUM(V142:V148) -> 81368166.19 | W149: =SUM(W142:W147) -> 0 | X149: =SUM(X142:X147) -> 0 | Y149: =SUM(Y142:Y148) -> 20247142.57 | Z149: =SUM(Z142:Z148) -> 0 | AA149: =SUM(AA142:AA148) -> 1658162.593 | AB149: =O149+V149+W149+Y149+SUM(Z149:AA149) -> 103273471.4 | AD149: =SUM(AD142:AD148) -> 0 | AE149: =SUM(AE142:AE148) -> 0 | AF149: =SUM(AF142:AF148) -> 0 | AG149: =SUM(AG142:AG148) -> 349667.507 | AH149: =SUM(AH142:AH148) -> 375271.5139
B150: F1923 TAILEM BEND - SOUTH EAST No 1 | D150: 10344 | E150: Other | F150: Net market benefit | G150: 275 | H150: 0 | L150: Multiple circuit steel tower | M150: 0 | N150: 0 | O150: 0 | P150: Overhead line | Q150: 450 | R150: 650 | S150: 450 | T150: 650 | U150: 0 | V150: 0 | AA150: 1413164.024 | AC150: 2012, 2013, 2014, 2015, 2016, 2017, 2018
B151: F1923 TAILEM BEND - SOUTH | G151: 275 | H151: 0 | AA151: 0
AA152: 0
AA153: 0
AA154: 0
AA155: 0
AA156: 0
B157: Project Totals | M157: =SUM(M150:M156) -> 0 | N157: =SUM(N150:N156) -> 0 | O157: =SUM(O150:O156) -> 0 | U157: =SUM(U150:U156) -> 0 | V157: =SUM(V150:V156) -> 0 | W157: =SUM(W150:W155) -> 0 | X157: =SUM(X150:X155) -> 0 | Y157: =SUM(Y150:Y156) -> 0 | Z157: =SUM(Z150:Z156) -> 0 | AA157: =SUM(AA150:AA156) -> 1413164.024 | AB157: =O157+V157+W157+Y157+SUM(Z157:AA157) -> 1413164.024 | AD157: =SUM(AD150:AD156) -> 0 | AE157: =SUM(AE150:AE156) -> 0 | AF157: =SUM(AF150:AF156) -> 0 | AG157: =SUM(AG150:AG156) -> 0 | AH157: =SUM(AH150:AH156) -> 0
B158: F1810 CULTANA - YADNARIE | D158: 11101 | E158: Line rebuild over existing route - single circuit | F158: Voltage issues | G158: 132 | H158: 1.8 | L158: Single circuit steel tower | M158: 6 | N158: 5 | O158: 850844.5397 | P158: Overhead line | Q158: 0 | R158: 96 | S158: 0 | T158: 96 | U158: 1.8 | V158: 535312.217 | Y158: 111507.7834 | AA158: 14899686.15 | AC158: 2010, 2011, 2012, 2013, 2014, 2015, 2016, 2017
G159: 275 | H159: 0.5 | L159: Multiple circuit steel tower | M159: 1 | N159: 6 | O159: 1150602.682 | P159: Overhead line | Q159: 0 | R159: 457 | S159: 0 | T159: 457 | U159: 0.5 | V159: 315427.1246 | Y159: 46014.76127 | AA159: 0
B160: F1935 DAVENPORT - CULTANA No 1 | AA160: 0
AA161: 0
AA162: 0
AA163: 0
AA164: 0
B165: Project Totals | M165: =SUM(M158:M164) -> 7 | N165: =SUM(N158:N164) -> 11 | O165: =SUM(O158:O164) -> 2001447.222 | U165: =SUM(U158:U164) -> 2.3 | V165: =SUM(V158:V164) -> 850739.3416 | W165: =SUM(W158:W163) -> 0 | X165: =SUM(X158:X163) -> 0 | Y165: =SUM(Y158:Y164) -> 157522.5447 | Z165: =SUM(Z158:Z164) -> 0 | AA165: =SUM(AA158:AA164) -> 14899686.15 | AB165: =O165+V165+W165+Y165+SUM(Z165:AA165) -> 17909395.26 | AD165: =SUM(AD158:AD164) -> 0 | AE165: =SUM(AE158:AE164) -> 0 | AF165: =SUM(AF158:AF164) -> 0 | AG165: =SUM(AG158:AG164) -> 0 | AH165: =SUM(AH158:AH164) -> 0
B166: <Enter line ID>
B173: Project Totals | M173: =SUM(M166:M172) -> 0 | N173: =SUM(N166:N172) -> 0 | O173: =SUM(O166:O172) -> 0 | U173: =SUM(U166:U172) -> 0 | V173: =SUM(V166:V172) -> 0 | W173: =SUM(W166:W171) -> 0 | X173: =SUM(X166:X171) -> 0 | Y173: =SUM(Y166:Y172) -> 0 | Z173: =SUM(Z166:Z172) -> 0 | AA173: =SUM(AA166:AA172) -> 0 | AB173: =K100+R100+S100+SUM(U100:W100) -> 0 | AD173: =SUM(AD166:AD172) -> 0 | AE173: =SUM(AE166:AE172) -> 0 | AF173: =SUM(AF166:AF172) -> 0 | AG173: =SUM(AG166:AG172) -> 0 | AH173: =SUM(AH166:AH172) -> 0
B174: <Enter line ID>
B181: Project Totals | M181: =SUM(M174:M180) -> 0 | N181: =SUM(N174:N180) -> 0 | O181: =SUM(O174:O180) -> 0 | U181: =SUM(U174:U180) -> 0 | V181: =SUM(V174:V180) -> 0 | W181: =SUM(W174:W179) -> 0 | X181: =SUM(X174:X179) -> 0 | Y181: =SUM(Y174:Y180) -> 0 | Z181: =SUM(Z174:Z180) -> 0 | AA181: =SUM(AA174:AA180) -> 0 | AB181: =K108+R108+S108+SUM(U108:W108) -> 0 | AD181: =SUM(AD174:AD180) -> 0 | AE181: =SUM(AE174:AE180) -> 0 | AF181: =SUM(AF174:AF180) -> 0 | AG181: =SUM(AG174:AG180) -> 0 | AH181: =SUM(AH174:AH180) -> 0
B182: <Enter line ID>
B189: Project Totals | M189: =SUM(M182:M188) -> 0 | N189: =SUM(N182:N188) -> 0 | O189: =SUM(O182:O188) -> 0 | U189: =SUM(U182:U188) -> 0 | V189: =SUM(V182:V188) -> 0 | W189: =SUM(W182:W187) -> 0 | X189: =SUM(X182:X187) -> 0 | Y189: =SUM(Y182:Y188) -> 0 | Z189: =SUM(Z182:Z188) -> 0 | AA189: =SUM(AA182:AA188) -> 0 | AB189: =K116+R116+S116+SUM(U116:W116) -> 0 | AD189: =SUM(AD182:AD188) -> 0 | AE189: =SUM(AE182:AE188) -> 0 | AF189: =SUM(AF182:AF188) -> 0 | AG189: =SUM(AG182:AG188) -> 0 | AH189: =SUM(AH182:AH188) -> 0
B190: <Enter line ID>
B197: Project Totals | M197: =SUM(M190:M196) -> 0 | N197: =SUM(N190:N196) -> 0 | O197: =SUM(O190:O196) -> 0 | U197: =SUM(U190:U196) -> 0 | V197: =SUM(V190:V196) -> 0 | W197: =SUM(W190:W195) -> 0 | X197: =SUM(X190:X195) -> 0 | Y197: =SUM(Y190:Y196) -> 0 | Z197: =SUM(Z190:Z196) -> 0 | AA197: =SUM(AA190:AA196) -> 0 | AB197: =K124+R124+S124+SUM(U124:W124) -> 0 | AD197: =SUM(AD190:AD196) -> 0 | AE197: =SUM(AE190:AE196) -> 0 | AF197: =SUM(AF190:AF196) -> 0 | AG197: =SUM(AG190:AG196) -> 0 | AH197: =SUM(AH190:AH196) -> 0
K198: Non material projects | AB198: 34743667.93 | AG198: 1020427.376 | AH198: 23392567.58
K199: Non material projects

Sheet 2.3 Augex (b)
B1: =(LOOKUP(dms_Model,dms_Model_List,dms_Worksheet_List)) -> REGULATORY REPORTING STATEMENT
B2: =INDEX(dms_TradingNameFull_List,MATCH(dms_TradingName,dms_TradingName_List)) -> ElectraNet
B3: =IF(SUM(dms_SingleYear_Model)>0,CRY,CONCATENATE(FRCP_y1," to ",dms_MultiYear_FinalYear_Result)) -> 2018-19 to 2022-23
B4: 2.3 AUGEX PROJECTS
B6: There are THREE tables on this worksheet - each has been 'grouped' for easy navigation. See the Instructions sheet on how to group or ungroup tables.
B8: 2.3.4 - AUGEX - TOTAL EXPENDITURE
C9: =CONCATENATE("EXPENDITURE Forecast ($0's. real ",dms_DollarReal,")") -> EXPENDITURE Forecast ($0's. real June 2018)
B10: As incurred | C10: =CRCP_y4 -> 2016-17 | D10: =CRCP_y5 -> 2017-18 | E10: =FRCP_y1 -> 2018-19 | F10: =FRCP_y2 -> 2019-20 | G10: =FRCP_y3 -> 2020-21 | H10: =FRCP_y4 -> 2021-22 | I10: =FRCP_y5 -> 2022-23
B11: Substations | C11: 13246963.04 | D11: 15214331.52 | E11: 13380238.04 | F11: 1309866.064 | G11: 4337527.915 | H11: 3146032.117 | I11: 2096598.977
B12: Lines | C12: 8132793.936 | D12: 2201033.866 | E12: 124812.1826 | F12: 15910.97143 | G12: 113160.1321 | H12: 54036.48357 | I12: 72418.26457
B13: Other assets | C13: 2404241.277 | D13: 2028238.842 | E13: 405158.6155 | F13: 1311957.296 | G13: 495662.6593 | H13: 481954.5708 | I13: 198874.2084
B14: Total | C14: =SUM(C11:C13) -> 23783998.26 | D14: =SUM(D11:D13) -> 19443604.23 | E14: 13910208.84 | F14: 2637734.331 | G14: 4946350.706 | H14: 3682023.172 | I14: 2367891.45
B17: 2.3.5 - AUGEX - BY DRIVER
C18: =CONCATENATE("EXPENDITURE Forecast ($0's. real ",dms_DollarReal,")") -> EXPENDITURE Forecast ($0's. real June 2018)
B19: As incurred | C19: =CRCP_y4 -> 2016-17 | D19: =CRCP_y5 -> 2017-18 | E19: =FRCP_y1 -> 2018-19 | F19: =FRCP_y2 -> 2019-20 | G19: =FRCP_y3 -> 2020-21 | H19: =FRCP_y4 -> 2021-22 | I19: =FRCP_y5 -> 2022-23
B20: Demand driven augex | C20: 433953.0313 | D20: 804196.0568 | E20: 0 | F20: 0 | G20: 0 | H20: 0 | I20: 0
B21: Non-demand driven augex | C21: 23350045.22 | D21: 18639408.17 | E21: 13910208.84 | F21: 2637734.331 | G21: 4946350.706 | H21: 3682023.172 | I21: 2367891.45
B22: Total | C22: =SUM(C20:C21) -> 23783998.26 | D22: 19443604.23 | E22: 13910208.84 | F22: 2637734.331 | G22: 4946350.706 | H22: 3682023.172 | I22: 2367891.45
B25: 2.3.6 - AUGEX - DEMAND DRIVEN
C26: =CONCATENATE("EXPENDITURE Forecast ($0's. real ",dms_DollarReal,")") -> EXPENDITURE Forecast ($0's. real June 2018)
B27: As incurred | C27: =CRCP_y4 -> 2016-17 | D27: =CRCP_y5 -> 2017-18 | E27: =FRCP_y1 -> 2018-19 | F27: =FRCP_y2 -> 2019-20 | G27: =FRCP_y3 -> 2020-21 | H27: =FRCP_y4 -> 2021-22 | I27: =FRCP_y5 -> 2022-23
B28: Substations | C28: 140612.853 | D28: 380598.0102 | E28: 0 | F28: 0 | G28: 0 | H28: 0 | I28: 0
B29: Lines | C29: 293340.1782 | D29: 423598.0466 | E29: 0 | F29: 0 | G29: 0 | H29: 0 | I29: 0
B30: Other assets | C30: 0 | D30: 0 | E30: 0 | F30: 0 | G30: 0 | H30: 0 | I30: 0
B31: Total | C31: =SUM(C28:C30) -> 433953.0313 | D31: =SUM(D28:D30) -> 804196.0568 | E31: =SUM(E28:E30) -> 0 | F31: 0 | G31: 0 | H31: 0 | I31: 0

Sheet 2.5 Connections
B1: =(LOOKUP(dms_Model,dms_Model_List,dms_Worksheet_List)) -> REGULATORY REPORTING STATEMENT
B2: =INDEX(dms_TradingNameFull_List,MATCH(dms_TradingName,dms_TradingName_List)) -> ElectraNet
B3: =IF(SUM(dms_SingleYear_Model)>0,CRY,CONCATENATE(FRCP_y1," to ",dms_MultiYear_FinalYear_Result)) -> 2018-19 to 2022-23
B4: 2.5 CONNECTIONS EXPENDITURE
B6: There are TWO tables on this worksheet. Each has been grouped (or sub-grouped). See the Instructions sheet on how to group or ungroup data.
B8: 2.5.1 - EXPENDITURE ON CONNECTION PROJECTS
C9: =CONCATENATE("EXPENDITURE Forecast ($0's. real ",dms_DollarReal,")") -> EXPENDITURE Forecast ($0's. real June 2018)
C10: =CRCP_y4 -> 2016-17 | D10: =CRCP_y5 -> 2017-18 | E10: =FRCP_y1 -> 2018-19 | F10: =FRCP_y2 -> 2019-20 | G10: =FRCP_y3 -> 2020-21 | H10: =FRCP_y4 -> 2021-22 | I10: =FRCP_y5 -> 2022-23
B11: DIRECT MATERIALS EXPENDITURE
B12: EC.10370 Clare North New 132_33 kV Substation | C12: 4122570.044
B13: EC.11209 Munno Para New 275_66 kV Connection Point | C13: 5032823.328
B14: EC.11826 Dalrymple Substation Upgrade | C14: 1041300.806
B15: EC.14085 Gawler East Connection Point | H15: 1129744.553
B37: DIRECT LABOUR EXPENDITURE
B38: =IF(ISBLANK(B12),"",B12) -> EC.10370 Clare North New 132_33 kV Substation | C38: 2032412.757
B39: =IF(ISBLANK(B13),"",B13) -> EC.11209 Munno Para New 275_66 kV Connection Point | C39: 3839556.269
B40: EC.11826 Dalrymple Substation Upgrade | C40: 1542793.286
B41: EC.14085 Gawler East Connection Point | H41: 452416.9392
B66: 2.5.2 - DESCRIPTION OF CONNECTION PROJECTS
C67: CONNECTION RATING (MVA) | D67: CONNECTION VOLTAGE (KV) | E67: UNDERGROUND / OVERHEAD (drop down) | F67: YEAR CONNECTION PROJECT COMPLETED
B68: =IF(ISBLANK(B12),"",B12) -> EC.10370 Clare North New 132_33 kV Substation | C68: 50 | D68: 132 | E68: Overhead | F68: 2017
B69: =IF(ISBLANK(B13),"",B13) -> EC.11209 Munno Para New 275_66 kV Connection Point | C69: 225 | D69: 275 | E69: Overhead | F69: 2017
B70: =IF(ISBLANK(B14),"",B14) -> EC.11826 Dalrymple Substation Upgrade | C70: 25 | D70: 132 | E70: Overhead | F70: 2017
B71: EC.14085 Gawler East Connection Point | C71: 25 | D71: 132 | E71: Overhead | F71: 2019

Sheet 2.6 Non-network
B1: =(LOOKUP(dms_Model,dms_Model_List,dms_Worksheet_List)) -> REGULATORY REPORTING STATEMENT
B2: =INDEX(dms_TradingNameFull_List,MATCH(dms_TradingName,dms_TradingName_List)) -> ElectraNet
B3: =IF(SUM(dms_SingleYear_Model)>0,CRY,CONCATENATE(FRCP_y1," to ",dms_MultiYear_FinalYear_Result)) -> 2018-19 to 2022-23
B4: 2.6 NON NETWORK EXPENDITURE
B6: There are THREE tables on this worksheet - each has been 'grouped' for easy navigation. See the Instructions sheet on how to group or ungroup tables.
B8: 2.6.1 - NON-NETWORK EXPENDITURE
E9: =CONCATENATE("EXPENDITURE Forecast ($0's. real ",dms_DollarReal,")") -> EXPENDITURE Forecast ($0's. real June 2018)
B10: SERVICE SUBCATEGORY | C10: ASSET CATEGORY | E10: =CRCP_y4 -> 2016-17 | F10: =CRCP_y5 -> 2017-18 | G10: =FRCP_y1 -> 2018-19 | H10: =FRCP_y2 -> 2019-20 | I10: =FRCP_y3 -> 2020-21 | J10: =FRCP_y4 -> 2021-22 | K10: =FRCP_y5 -> 2022-23
B11: OPEX
B12: IT & COMMUNICATIONS | C12: Total IT and communications | E12: 7225118.265 | F12: 6975136.053 | G12: 6327341.294 | H12: 6358573.468 | I12: 6396237.073 | J12: 6442543.036 | K12: 6491304.288
B13: MOTOR VEHICLES | C13: Car | E13: 117983.191 | F13: 113901.0849 | G13: 103322.8646 | H13: 103832.8731 | I13: 104447.9042 | J13: 105204.0614 | K13: 106000.3124
C14: Light commercial vehicle
C15: Elevated work platform (LCV)
C16: Elevated work platform (HCV)
C17: Heavy commercial vehicle
B18: BUILDINGS AND PROPERTY | C18: Total buildings and property expenditure | E18: 2382332.301 | F18: 2299905.872 | G18: 2086309.039 | H18: 2096607.198 | I18: 2109025.987 | J18: 2124294.414 | K18: 2140372.422
B19: OTHER | C19: Other expenditure
B20: OTHER - TNSP nominated
B31: CAPEX
B32: IT & COMMUNICATIONS | C32: Total IT and communications | E32: 10843921.15 | F32: 9537334.272 | G32: 10171746.32 | H32: 7771073.864 | I32: 8519017.825 | J32: 8753450.802 | K32: 6226547.186
B33: MOTOR VEHICLES | C33: Car | E33: 269325.0703 | F33: 509385.496 | G33: 146900.7923 | H33: 201063.9161 | I33: 262409.683 | J33: 246896.9675 | K33: 147145.0452
C34: Light commercial vehicle
C35: Elevated work platform (LCV)
C36: Elevated work platform (HCV)
C37: Heavy commercial vehicle
B38: BUILDINGS AND PROPERTY | C38: Total buildings and property expenditure | E38: 1624275.821 | F38: 813883.2093 | G38: 1337822.657 | H38: 956308.7299 | I38: 1247155.993 | J38: 886356.9802 | K38: 513109.3557
B39: OTHER | C39: Other expenditure | E39: 1256018.814 | F39: 0 | G39: 0 | H39: 0 | I39: 0 | J39: 0 | K39: 0
B40: OTHER - TNSP nominated
B54: 2.6.3 - ANNUAL DESCRIPTOR METRICS
B55: IT & COMMUNICATIONS
E56: VOLUMES (0's)
E57: =CRCP_y4 -> 2016-17 | F57: =CRCP_y5 -> 2017-18 | G57: =FRCP_y1 -> 2018-19 | H57: =FRCP_y2 -> 2019-20 | I57: =FRCP_y3 -> 2020-21 | J57: =FRCP_y4 -> 2021-22 | K57: =FRCP_y5 -> 2022-23
B58: Employee numbers | K58: 207.24
B59: User numbers | K59: 230.0004624
B60: Number of devices | K60: 400.9035838
B63: MOTOR VEHICLES
E64: VOLUMES (0's or %)
D65: Units | E65: =CRCP_y4 -> 2016-17 | F65: =CRCP_y5 -> 2017-18 | G65: =FRCP_y1 -> 2018-19 | H65: =FRCP_y2 -> 2019-20 | I65: =FRCP_y3 -> 2020-21 | J65: =FRCP_y4 -> 2021-22 | K65: =FRCP_y5 -> 2022-23
B66: CAR | C66: Average kilometres travelled | D66: 0's | E66: 21140.33041 | F66: 21140.33041 | G66: 21140.33041 | H66: 21140.33041 | I66: 21140.33041 | J66: 21140.33041 | K66: 21140.33041
C67: Number purchased | D67: 0's | E67: 14.13 | F67: 14.13 | G67: 14.13 | H67: 14.13 | I67: 14.13 | J67: 14.13 | K67: 14.13
C68: Number leased | D68: 0's | E68: 4.71 | F68: 4.71 | G68: 4.71 | H68: 4.71 | I68: 4.71 | J68: 3.71 | K68: 2.71
C69: Number in fleet | D69: 0's | E69: 18.84 | F69: 18.84 | G69: 18.84 | H69: 18.84 | I69: 18.84 | J69: 17.84 | K69: 16.84
C70: Proportion of total fleet expenditure allocated as regulatory expenditure | D70: % | E70: 0.942 | F70: 0.942 | G70: 0.942 | H70: 0.942 | I70: 0.942 | J70: 0.942 | K70: 0.942
B71: LIGHT COMMERCIAL VEHICLE | C71: Average kilometres travelled | D71: 0's | E71: 0 | F71: 0 | G71: 0 | H71: 0 | I71: 0 | J71: 0 | K71: 0
C72: Number purchased | D72: 0's | E72: 0 | F72: 0 | G72: 0 | H72: 0 | I72: 0 | J72: 0 | K72: 0
C73: Number leased | D73: 0's | E73: 0 | F73: 0 | G73: 0 | H73: 0 | I73: 0 | J73: 0 | K73: 0
C74: Number in fleet | D74: 0's | E74: 0 | F74: 0 | G74: 0 | H74: 0 | I74: 0 | J74: 0 | K74: 0
C75: Proportion of total fleet expenditure allocated as regulatory expenditure | D75: % | E75: 0 | F75: 0 | G75: 0 | H75: 0 | I75: 0 | J75: 0 | K75: 0
B76: ELEVATED WORK PLATFORM (LCV) | C76: Average kilometres travelled | D76: 0's | E76: 0 | F76: 0 | G76: 0 | H76: 0 | I76: 0 | J76: 0 | K76: 0
C77: Number purchased | D77: 0's | E77: 0 | F77: 0 | G77: 0 | H77: 0 | I77: 0 | J77: 0 | K77: 0
C78: Number leased | D78: 0's | E78: 0 | F78: 0 | G78: 0 | H78: 0 | I78: 0 | J78: 0 | K78: 0
C79: Number in fleet | D79: 0's | E79: 0 | F79: 0 | G79: 0 | H79: 0 | I79: 0 | J79: 0 | K79: 0
C80: Proportion of total fleet expenditure allocated as regulatory expenditure | D80: % | E80: 0 | F80: 0 | G80: 0 | H80: 0 | I80: 0 | J80: 0 | K80: 0
B81: ELEVATED WORK PLATFORM (HCV) | C81: Average kilometres travelled | D81: 0's | E81: 0 | F81: 0 | G81: 0 | H81: 0 | I81: 0 | J81: 0 | K81: 0
C82: Number purchased | D82: 0's | E82: 0 | F82: 0 | G82: 0 | H82: 0 | I82: 0 | J82: 0 | K82: 0
C83: Number leased | D83: 0's | E83: 0 | F83: 0 | G83: 0 | H83: 0 | I83: 0 | J83: 0 | K83: 0
C84: Number in fleet | D84: 0's | E84: 0 | F84: 0 | G84: 0 | H84: 0 | I84: 0 | J84: 0 | K84: 0
C85: Proportion of total fleet expenditure allocated as regulatory expenditure | D85: % | E85: 0 | F85: 0 | G85: 0 | H85: 0 | I85: 0 | J85: 0 | K85: 0
B86: HEAVY COMMERCIAL VEHICLE | C86: Average kilometres travelled | D86: 0's | E86: 0 | F86: 0 | G86: 0 | H86: 0 | I86: 0 | J86: 0 | K86: 0
C87: Number purchased | D87: 0's | E87: 0 | F87: 0 | G87: 0 | H87: 0 | I87: 0 | J87: 0 | K87: 0
C88: Number leased | D88: 0's | E88: 0 | F88: 0 | G88: 0 | H88: 0 | I88: 0 | J88: 0 | K88: 0
C89: Number in fleet | D89: 0's | E89: 0 | F89: 0 | G89: 0 | H89: 0 | I89: 0 | J89: 0 | K89: 0
C90: Proportion of total fleet expenditure allocated as regulatory expenditure | D90: % | E90: 0 | F90: 0 | G90: 0 | H90: 0 | I90: 0 | J90: 0 | K90: 0
B94: 2.6.4 - ITC CAPEX BY PURPOSE AND ASSET CATEGORY
E95: =CONCATENATE("EXPENDITURE Forecast ($0's. real ",dms_DollarReal,")") -> EXPENDITURE Forecast ($0's. real June 2018)
E96: =CRCP_y4 -> 2016-17 | F96: =CRCP_y5 -> 2017-18 | G96: =FRCP_y1 -> 2018-19 | H96: =FRCP_y2 -> 2019-20 | I96: =FRCP_y3 -> 2020-21 | J96: =FRCP_y4 -> 2021-22 | K96: =FRCP_y5 -> 2022-23
B97: ITC capability growth
B98: Various Projects | E98: 1062880.608 | F98: 3900952.289 | G98: 1466715.009 | H98: 1304258.702 | I98: 518869.1945 | J98: 0 | K98: 0
B104: ITC asset extensions
B105: Various Projects | E105: 1654752.602 | F105: 2080127.666 | G105: 5387639.215 | H105: 426552.4165 | I105: 0 | J105: 723484.8029 | K105: 0
B111: ITC asset remediation
B112: Various Projects | E112: 4731680.842 | F112: 0 | G112: 2182145.588 | H112: 1034463.014 | I112: 2842380.352 | J112: 3906729.38 | K112: 2268705.915
B118: ITC asset replacement
B119: Various Projects | E119: 4678229.011 | F119: 5180710.668 | G119: 1423644.532 | H119: 1523665.262 | I119: 5616401.603 | J119: 2543765.881 | K119: 2217864.741

Sheet 2.10 Overheads
B1: =(LOOKUP(dms_Model,dms_Model_List,dms_Worksheet_List)) -> REGULATORY REPORTING STATEMENT
B2: =INDEX(dms_TradingNameFull_List,MATCH(dms_TradingName,dms_TradingName_List)) -> ElectraNet
B3: =IF(SUM(dms_SingleYear_Model)>0,CRY,CONCATENATE(FRCP_y1," to ",dms_MultiYear_FinalYear_Result)) -> 2018-19 to 2022-23
B4: 2.10 OVERHEADS
B6: There are TWO tables on this worksheet. Each table has been 'grouped' (and sub-grouped) for easy navigation. See the Instructions sheet on how to group or ungroup data.
B8: 2.10.1 - NETWORK OVERHEADS EXPENDITURE
D9: =CONCATENATE("EXPENDITURE Forecast ($0's. real ",dms_DollarReal,")") -> EXPENDITURE Forecast ($0's. real June 2018)
D10: =CRCP_y4 -> 2016-17 | E10: =CRCP_y5 -> 2017-18 | F10: =FRCP_y1 -> 2018-19 | G10: =FRCP_y2 -> 2019-20 | H10: =FRCP_y3 -> 2020-21 | I10: =FRCP_y4 -> 2021-22 | J10: =FRCP_y5 -> 2022-23
B11: MAINTENANCE SUPPORT
B12: Prescribed Services | D12: 7011001.083 | E12: 6936076.831 | F12: 6170642.866 | G12: 5861725.108 | H12: 5890325.82 | I12: 5740587.516 | J12: 5523711.673
B37: Negotiated Services | C37: Total | D37: 61708.80668 | E37: 62757.60852 | F37: 59121.77534 | G37: 59413.60432 | H37: 59765.52767 | I37: 60198.20399 | J37: 60653.82219
B38: Unregulated Services | C38: Total | D38: 143987.2156 | E38: 146434.4199 | F38: 137950.8091 | G38: 138631.7434 | H38: 139452.8979 | I38: 140462.476 | J38: 141525.5851
B39: NETWORK MONITORING AND CONTROL
B40: Prescribed Services | D40: 7508368.752 | E40: 7304152.026 | F40: 6157307.79 | G40: 5824248.493 | H40: 5852193.067 | I40: 5688530.942 | J40: 5452793.43
B61: Negotiated Services | C61: Total | D61: 28.27571382 | E61: 28.75628737 | F61: 27.09030509 | G61: 27.22402462 | H61: 27.38528012 | I61: 27.58353759 | J61: 27.7923073
B62: Unregulated Services | C62: Total | D62: 11239.45016 | E62: 11430.47566 | F62: 10768.25631 | G62: 10821.40914 | H62: 10885.50736 | I62: 10964.31368 | J62: 11047.29856
B63: ASSET MANAGEMENT SUPPORT
B64: Prescribed Services | D64: 12757606.61 | E64: 12410618.24 | F64: 11026965.93 | G64: 10463847.53 | H64: 10878467.78 | I64: 10750238.81 | J64: 10102876.8
B90: Negotiated Services | C90: Total | D90: 2.60595525 | E90: 2.650246021 | F90: 2.496705237 | G90: 2.509029139 | H90: 2.523890819 | I90: 2.542162686 | J90: 2.561403386
B91: Unregulated Services | C91: Total | D91: 1350657.585 | E91: 1373613.338 | F91: 1294033.682 | G91: 1300421.117 | H91: 1308123.874 | I91: 1317594.12 | J91: 1327566.508
B95: 2.10.2 - CORPORATE OVERHEADS EXPENDITURE
D96: =CONCATENATE("EXPENDITURE Forecast ($0's. real ",dms_DollarReal,")") -> EXPENDITURE Forecast ($0's. real June 2018)
D97: =CRCP_y4 -> 2016-17 | E97: =CRCP_y5 -> 2017-18 | F97: =FRCP_y1 -> 2018-19 | G97: =FRCP_y2 -> 2019-20 | H97: =FRCP_y3 -> 2020-21 | I97: =FRCP_y4 -> 2021-22 | J97: =FRCP_y5 -> 2022-23
B98: CORPORATE OVERHEADS
B99: Prescribed Services | D99: 26353391.27 | E99: 25590225.94 | F99: 24758296.64 | G99: 23604835.68 | H99: 23924568.55 | I99: 23454454.61 | J99: 22510945
B124: Negotiated Services | C124: Total | D124: 0 | E124: 0 | F124: 0 | G124: 0 | H124: 0 | I124: 0 | J124: 0
B125: Unregulated Services | C125: Total | D125: 23363.60333 | E125: 23760.69074 | F125: 22384.12605 | G125: 22494.61557 | H125: 22627.85746 | I125: 22791.67326 | J125: 22964.1751

Sheet 2.11 Labour
B1: =(LOOKUP(dms_Model,dms_Model_List,dms_Worksheet_List)) -> REGULATORY REPORTING STATEMENT
B2: =INDEX(dms_TradingNameFull_List,MATCH(dms_TradingName,dms_TradingName_List)) -> ElectraNet
B3: =IF(SUM(dms_SingleYear_Model)>0,CRY,CONCATENATE(FRCP_y1," to ",dms_MultiYear_FinalYear_Result)) -> 2018-19 to 2022-23
B4: 2.11 LABOUR
B6: There is ONE table on this worksheet. The table has been 'grouped' (and sub-grouped) for easy navigation. See the Instructions sheet on how to group or ungroup data.
B8: Table numbering in this template starts at 2.11.3. Tables 2.11.1 & 2.11.2 appear in the Category Analysis RIN and are not required for this RIN.
B10: 2.11.3 - LABOUR / NON-LABOUR EXPENDITURE SPLIT
B11: OPEX
C12: EXPENDITURE
C13: ($0's, nominal) | H13: =CONCATENATE("($0's, real ", dms_DollarReal,")") -> ($0's, real June 2018)
C14: =PRCP_y4 -> 2011-12 | D14: =PRCP_y5 -> 2012-13 | E14: =CRCP_y1 -> 2013-14 | F14: =CRCP_y2 -> 2014-15 | G14: =CRCP_y3 -> 2015-16 | H14: =CRCP_y4 -> 2016-17 | I14: =CRCP_y5 -> 2017-18 | J14: =FRCP_y1 -> 2018-19 | K14: =FRCP_y2 -> 2019-20 | L14: =FRCP_y3 -> 2020-21 | M14: =FRCP_y4 -> 2021-22 | N14: =FRCP_y5 -> 2022-23
B15: In-house labour expenditure
B16: Labour expenditure outsourced to related parties
B17: Labour expenditure outsourced to unrelated parties
B18: Controllable non-labour expenditure
B19: Uncontrollable non-labour expenditure
B20: Total | C20: =SUM(C15:C19) -> 0 | D20: =SUM(D15:D19) -> 0 | E20: 0 | F20: 0 | G20: 0 | H20: 0 | I20: =SUM(I15:I19) -> 0 | J20: 0 | K20: 0 | L20: 0 | M20: 0 | N20: 0
B22: CAPEX
C23: EXPENDITURE
C24: ($0's, nominal) | H24: =CONCATENATE("($0's, real ", dms_DollarReal,")") -> ($0's, real June 2018)
C25: =PRCP_y4 -> 2011-12 | D25: =PRCP_y5 -> 2012-13 | E25: =CRCP_y1 -> 2013-14 | F25: =CRCP_y2 -> 2014-15 | G25: =CRCP_y3 -> 2015-16 | H25: =CRCP_y4 -> 2016-17 | I25: =CRCP_y5 -> 2017-18 | J25: =FRCP_y1 -> 2018-19 | K25: =FRCP_y2 -> 2019-20 | L25: =FRCP_y3 -> 2020-21 | M25: =FRCP_y4 -> 2021-22 | N25: =FRCP_y5 -> 2022-23
B26: In-house labour expenditure
B27: Labour expenditure outsourced to related parties
B28: Labour expenditure outsourced to unrelated parties
B29: Controllable non-labour expenditure
B30: Uncontrollable non-labour expenditure
B31: Total | C31: =SUM(C26:C30) -> 0 | D31: =SUM(D26:D30) -> 0 | E31: 0 | F31: 0 | G31: 0 | H31: 0 | I31: =SUM(I26:I30) -> 0 | J31: 0 | K31: 0 | L31: 0 | M31: 0 | N31: 0

Sheet 2.14 Forecast price changes
B1: =(LOOKUP(dms_Model,dms_Model_List,dms_Worksheet_List)) -> REGULATORY REPORTING STATEMENT
B2: =INDEX(dms_TradingNameFull_List,MATCH(dms_TradingName,dms_TradingName_List)) -> ElectraNet
B3: =IF(SUM(dms_SingleYear_Model)>0,CRY,CONCATENATE(FRCP_y1," to ",dms_MultiYear_FinalYear_Result)) -> 2018-19 to 2022-23
B4: 2.14 FORECAST PRICE CHANGES
B6: Instructions
B7: =CONCATENATE(dms_TradingName, " must provide all forecast price changes used to forecast opex and capex, including forecast changes in CPI. "&"Forecast price changes must be expressed in real terms, except for CPI. If the same escalators are not used for capex and opex, report capex and opex escalators separately. "&"If price changes for a given year were not used to forecast either opex or capex enter '0' for that year.") -> ElectraNet must provide all forecast price changes used to forecast opex and capex, including forecast changes in CPI. Forecast price changes must be expressed in real terms, except for CPI. If the same escalators are not used for capex and opex, report capex and opex escalators separately. If price changes for a given year were not used to forecast either opex or capex enter '0' for that year.
B9: 2.14.1 - FORECAST LABOUR AND MATERIALS PRICE CHANGES
C10: Price changes (% YoY real) Current regulatory period | H10: Price changes (%YoY real) Forthcoming regulatory period
C11: Actual | F11: Forecast
C12: =CRCP_y1 -> 2013-14 | D12: =CRCP_y2 -> 2014-15 | E12: =CRCP_y3 -> 2015-16 | F12: =CRCP_y4 -> 2016-17 | G12: =CRCP_y5 -> 2017-18 | H12: =FRCP_y1 -> 2018-19 | I12: =FRCP_y2 -> 2019-20 | J12: =FRCP_y3 -> 2020-21 | K12: =FRCP_y4 -> 2021-22 | L12: =FRCP_y5 -> 2022-23
B13: Materials price changes
B14: Copper | C14: 0.024 | D14: 0.009 | E14: 0.007 | F14: 0 | G14: 0 | H14: 0 | I14: 0 | J14: 0 | K14: 0 | L14: 0
B15: Aluminium | C15: 0.054 | D15: 0.028 | E15: 0.037 | F15: 0 | G15: 0 | H15: 0 | I15: 0 | J15: 0 | K15: 0 | L15: 0
B16: Steel | C16: 0.054 | D16: 0.055 | E16: 0.001 | F16: 0 | G16: 0 | H16: 0 | I16: 0 | J16: 0 | K16: 0 | L16: 0
B17: Oil | C17: 0.031 | D17: -0.039 | E17: -0.033 | F17: 0 | G17: 0 | H17: 0 | I17: 0 | J17: 0 | K17: 0 | L17: 0
B18: Construction Costs | C18: 0.004 | D18: -0.002 | E18: 0.004 | F18: 0 | G18: 0 | H18: 0 | I18: 0 | J18: 0 | K18: 0 | L18: 0
B44: Labour and Other price changes
B45: Internal Labour | C45: 0.02 | D45: 0.02 | E45: 0.004 | F45: 0.006 | G45: 0.0065 | H45: 0.0065 | I45: 0.0075 | J45: 0.009 | K45: 0.011 | L45: 0.0115
B46: External Labour | C46: 0.009 | D46: 0.007 | E46: 0.004 | F46: 0.006 | G46: 0.0065 | H46: 0.0065 | I46: 0.0075 | J46: 0.009 | K46: 0.011 | L46: 0.0115
B60: CPI | C60: 0.029296875 | D60: 0.01328273245 | E60: 0.01310861423 | F60: 0.0197 | G60: 0.0197 | H60: 0.0197 | I60: 0.0197 | J60: 0.0197 | K60: 0.0197 | L60: 0.0197

Sheet 2.16 Opex Summary
B1: =(LOOKUP(dms_Model,dms_Model_List,dms_Worksheet_List)) -> REGULATORY REPORTING STATEMENT
B2: =INDEX(dms_TradingNameFull_List,MATCH(dms_TradingName,dms_TradingName_List)) -> ElectraNet
B3: =IF(SUM(dms_SingleYear_Model)>0,CRY,CONCATENATE(FRCP_y1," to ",dms_MultiYear_FinalYear_Result)) -> 2018-19 to 2022-23
B4: 2.16 OPEX SUMMARY
B6: Instructions
B7: =CONCATENATE("Complete the tables below in accordance with the regulatory information notice. ",dms_TradingName, "'s total forecast opex must reconcile to Table 2.16.1. If ",dms_TradingName," did not forecast its total opex using a Base Year approach, total forecast opex must, in addition, reconcile to Table 2.16.2") -> Complete the tables below in accordance with the regulatory information notice. ElectraNet's total forecast opex must reconcile to Table 2.16.1. If ElectraNet did not forecast its total opex using a Base Year approach, total forecast opex must, in addition, reconcile to Table 2.16.2 | H7: IMPORTANT! Have you used a base-step-trend model to derive your opex forecast? Yes/No | J7: Yes
B8: The total step changes and category specific forecasts in Table 2.16.1 must reconcile (in each year) to the total step changes and category specific forecasts for each year in Tables 2.17.1 and 2.17.5 of worksheet 2.17 Step Changes.")
B10: 2.16.1 - PRESCRIBED TRANSMISSION SERVICES - OPEX BY DRIVER
C11: =CONCATENATE("Forecast ($0's, real ", dms_DollarReal, ")") -> Forecast ($0's, real June 2018)
C12: =CRCP_y4 -> 2016-17 | D12: =CRCP_y5 -> 2017-18 | E12: =FRCP_y1 -> 2018-19 | F12: =FRCP_y2 -> 2019-20 | G12: =FRCP_y3 -> 2020-21 | H12: =FRCP_y4 -> 2021-22 | I12: =FRCP_y5 -> 2022-23
B13: Efficient historic opex | C13: 94767139.32 | D13: 93580055.74 | E13: 85557762.54 | F13: 85557762.54 | G13: 85557762.54 | H13: 85557762.54 | I13: 85557762.54
B14: Real price changes | C14: 0 | D14: 0 | E14: 1074336.749 | F14: 1501958.498 | G14: 2017637.518 | H14: 2651645.168 | I14: 3319269.919
B15: Output growth | C15: 0 | D15: 0 | E15: 0 | F15: 0 | G15: 0 | H15: 0 | I15: 0
B16: Productivity growth | C16: 0 | D16: 0 | E16: 0 | F16: 0 | G16: 0 | H16: 0 | I16: 0
B17: Step changes | C17: 0 | D17: 0 | E17: 0 | F17: 0 | G17: 0 | H17: 0 | I17: 0
B18: Category specific forecasts | C18: 0 | D18: 0 | E18: 153120.0371 | F18: 152839.0317 | G18: 485001.054 | H18: 617870.5595 | I18: 378493.2702
B19: Total opex | C19: =SUM(C13:C18) -> 94767139.32 | D19: 93580055.74 | E19: 86785219.33 | F19: 87212560.07 | G19: 88060401.12 | H19: 88827278.27 | I19: 89255525.73
B23: 2.16.2 - PRESCRIBED TRANSMISSION SERVICES - OPEX BY CATEGORY
C24: =CONCATENATE("Forecast ($0's, real ", dms_DollarReal, ")") -> Forecast ($0's, real June 2018)
C25: =CRCP_y4 -> 2016-17 | D25: =CRCP_y5 -> 2017-18 | E25: =FRCP_y1 -> 2018-19 | F25: =FRCP_y2 -> 2019-20 | G25: =FRCP_y3 -> 2020-21 | H25: =FRCP_y4 -> 2021-22 | I25: =FRCP_y5 -> 2022-23
B56: Total opex | C56: =SUM(C26:C55) -> 0 | D56: 0 | E56: 0 | F56: 0 | G56: 0 | H56: 0 | I56: 0

Sheet 2.17 Step Changes
B1: =(LOOKUP(dms_Model,dms_Model_List,dms_Worksheet_List)) -> REGULATORY REPORTING STATEMENT
B2: =INDEX(dms_TradingNameFull_List,MATCH(dms_TradingName,dms_TradingName_List)) -> ElectraNet
B3: =IF(SUM(dms_SingleYear_Model)>0,CRY,CONCATENATE(FRCP_y1," to ",dms_MultiYear_FinalYear_Result)) -> 2018-19 to 2022-23
B4: 2.17 STEP CHANGES
B6: Instructions
B7: Complete the Tables below in accordance with the regulatory information notice. The total step changes and category specific forecasts in Tables 2.17.1 and 2.17.5 must reconcile (in each year) to the total step changes and category specific forecasts for each year in Table 2.16.1 of worksheet 2.16 Opex Summary.
B9: 2.17.1 - FORECAST OPEX STEP CHANGES
D10: EXPENDITURE
D11: =CONCATENATE("Forecast ($0's, real ", dms_DollarReal, ")") -> Forecast ($0's, real June 2018)
B12: Step change | C12: Description | D12: =CRCP_y4 -> 2016-17 | E12: =CRCP_y5 -> 2017-18 | F12: =FRCP_y1 -> 2018-19 | G12: =FRCP_y2 -> 2019-20 | H12: =FRCP_y3 -> 2020-21 | I12: =FRCP_y4 -> 2021-22 | J12: =FRCP_y5 -> 2022-23
B27: Total | D27: =SUM(D13:D26) -> 0 | E27: 0 | F27: 0 | G27: 0 | H27: 0 | I27: 0 | J27: 0
B28: Check | F28: =IF(F$27-'2.16 Opex Summary'!C$17=0,"OK","Error") -> OK | G28: =IF(G$27-'2.16 Opex Summary'!D$17=0,"OK","Error") -> OK | H28: =IF(H$27-'2.16 Opex Summary'!E$17=0,"OK","Error") -> OK | I28: =IF(I$27-'2.16 Opex Summary'!F$17=0,"OK","Error") -> OK | J28: =IF(J$27-'2.16 Opex Summary'!G$17=0,"OK","Error") -> OK
B30: 2.17.2 - FORECAST CAPEX STEP CHANGES
D31: EXPENDITURE
D32: =CONCATENATE("Forecast ($0's, real ", dms_DollarReal, ")") -> Forecast ($0's, real June 2018)
B33: Step change | C33: Description | D33: =CRCP_y4 -> 2016-17 | E33: =CRCP_y5 -> 2017-18 | F33: =FRCP_y1 -> 2018-19 | G33: =FRCP_y2 -> 2019-20 | H33: =FRCP_y3 -> 2020-21 | I33: =FRCP_y4 -> 2021-22 | J33: =FRCP_y5 -> 2022-23
B49: Total | D49: =SUM(D34:D48) -> 0 | E49: 0 | F49: 0 | G49: 0 | H49: 0 | I49: 0 | J49: 0
B53: 2.17.5 - FORECAST CATEGORY SPECIFIC OPEX
D54: EXPENDITURE
D55: =CONCATENATE("Forecast ($0's, real ", dms_DollarReal, ")") -> Forecast ($0's, real June 2018)
B56: Step change | C56: Description | D56: =CRCP_y4 -> 2016-17 | E56: =CRCP_y5 -> 2017-18 | F56: =FRCP_y1 -> 2018-19 | G56: =FRCP_y2 -> 2019-20 | H56: =FRCP_y3 -> 2020-21 | I56: =FRCP_y4 -> 2021-22 | J56: =FRCP_y5 -> 2022-23
B71: Total | D71: =SUM(D57:D70) -> 0 | E71: 0 | F71: 0 | G71: 0 | H71: 0 | I71: 0 | J71: 0
B72: Check | F72: =IF(F$71-'2.16 Opex Summary'!C$18=0,"OK","Error") -> OK | G72: =IF(G$71-'2.16 Opex Summary'!D$18=0,"OK","Error") -> OK | H72: =IF(H$71-'2.16 Opex Summary'!E$18=0,"OK","Error") -> Error | I72: =IF(I$71-'2.16 Opex Summary'!F$18=0,"OK","Error") -> Error | J72: =IF(J$71-'2.16 Opex Summary'!G$18=0,"OK","Error") -> Error

Sheet 3.1 Revenue
B1: =(LOOKUP(dms_Model,dms_Model_List,dms_Worksheet_List)) -> REGULATORY REPORTING STATEMENT
B2: =INDEX(dms_TradingNameFull_List,MATCH(dms_TradingName,dms_TradingName_List)) -> ElectraNet
B3: =IF(SUM(dms_SingleYear_Model)>0,CRY,CONCATENATE(FRCP_y1," to ",dms_MultiYear_FinalYear_Result)) -> 2018-19 to 2022-23
B4: 3.1 REVENUE
B8: 3.1.1 - REVENUE GROUPING BY CHARGEABLE QUANTITY
C9: REVENUE
C10: =CONCATENATE("Forecast ($0's, real ",dms_DollarReal,")") -> Forecast ($0's, real June 2018)
C11: =CRCP_y4 -> 2016-17 | D11: =CRCP_y5 -> 2017-18 | E11: =FRCP_y1 -> 2018-19 | F11: =FRCP_y2 -> 2019-20 | G11: =FRCP_y3 -> 2020-21 | H11: =FRCP_y4 -> 2021-22 | I11: =FRCP_y5 -> 2022-23
A12: TREV0101 | B12: From Fixed Customer (Exit Point) Charges | C12: 31440154.74 | D12: 33149276.49 | E12: 29045180.36 | F12: 30011031.1 | G12: 31008999.64 | H12: 32040154.02 | I12: 33105597.78
A13: TREV0102 | B13: From Variable Customer (Exit Point) Charges | C13: 0 | D13: 0 | E13: 0 | F13: 0 | G13: 0 | H13: 0 | I13: 0
A14: TREV0103 | B14: From Fixed Generator (Entry Point) Charges | C14: 3151628.212 | D14: 3322954.223 | E14: 2911550.868 | F14: 3008369.807 | G14: 3108408.304 | H14: 3211773.42 | I14: 3318575.776
A15: TREV0104 | B15: From Variable Generator (Entry Point) Charges | C15: 0 | D15: 0 | E15: 0 | F15: 0 | G15: 0 | H15: 0 | I15: 0
A16: TREV0105 | B16: From Fixed Energy Usage Charges (Charge per day basis) | C16: 104421464.3 | D16: 110097931.2 | E16: 96467090.9 | F16: 99674948.76 | G16: 102989478.8 | H16: 106414228.2 | I16: 109952862.1
A17: TREV0106 | B17: From Variable Energy Usage charges (Charge per kWh basis) | C17: 0 | D17: 0 | E17: 0 | F17: 0 | G17: 0 | H17: 0 | I17: 0
A18: TREV0107 | B18: From Energy based Common Service and General Charges | C18: 68307782.11 | D18: 72021069.05 | E18: 63104392.06 | F18: 65202827.07 | G18: 67371042.16 | H18: 69611357.75 | I18: 71926171.43
A19: TREV0108 | B19: From Fixed Demand based Usage Charges | C19: 82096496.47 | D19: 86559353.25 | E19: 75842742.08 | F19: 78364770.42 | G19: 80970664.75 | H19: 83663213.9 | I19: 86445299.45
A20: TREV0109 | B20: From Variable Demand based Usage Charges | C20: 0 | D20: 0 | E20: 0 | F20: 0 | G20: 0 | H20: 0 | I20: 0
A21: TREV0110 | B21: Revenue from other Sources | C21: 42117018.67 | D21: 44406546.6 | E21: 38908727.18 | F21: 40202574.29 | G21: 41539446.2 | H21: 42920773.64 | I21: 44348034.9
A22: TREV01 | B22: Total revenue by chargeable quantity | C22: =SUM(C12:C21) -> 331534544.5 | D22: =SUM(D12:D21) -> 349557130.8 | E22: 306279683.5 | F22: 316464521.4 | G22: 326988039.8 | H22: 337861500.9 | I22: 349096541.4
B25: 3.1.2 - REVENUE GROUPING BY TYPE OF CONNECTED EQUIPMENT
C26: REVENUE
C27: =CONCATENATE("Forecast ($0's, real ",dms_DollarReal,")") -> Forecast ($0's, real June 2018)
C28: =CRCP_y4 -> 2016-17 | D28: =CRCP_y5 -> 2017-18 | E28: =FRCP_y1 -> 2018-19 | F28: =FRCP_y2 -> 2019-20 | G28: =FRCP_y3 -> 2020-21 | H28: =FRCP_y4 -> 2021-22 | I28: =FRCP_y5 -> 2022-23
A29: TREV0201 | B29: From Other connected transmission networks
A30: TREV0202 | B30: From Distribution networks
A31: TREV0203 | B31: From Directly connected end–users
A32: TREV0204 | B32: From Generators
A33: TREV0205 | B33: Other revenue
A34: TREV02 | B34: Total revenue by type of connected equipment | C34: =SUM(C29:C33) -> 0 | D34: =SUM(D29:D33) -> 0 | E34: 0 | F34: 0 | G34: 0 | H34: 0 | I34: 0
B37: 3.1.3 - REVENUE (penalties) ALLOWED (deducted) THROUGH INCENTIVE SCHEMES
C38: =CONCATENATE("Forecast ($0's, real ",dms_DollarReal,")") -> Forecast ($0's, real June 2018)
C39: =CRCP_y4 -> 2016-17 | D39: =CRCP_y5 -> 2017-18 | E39: =FRCP_y1 -> 2018-19 | F39: =FRCP_y2 -> 2019-20 | G39: =FRCP_y3 -> 2020-21 | H39: =FRCP_y4 -> 2021-22 | I39: =FRCP_y5 -> 2022-23
A40: TREV0301 | B40: EBSS
A41: TREV0302 | B41: STPIS
A42: TREV0303 | B42: Other
A43: TREV03 | B43: Total revenue from incentive schemes | C43: =SUM(C40:C42) -> 0 | D43: =SUM(D40:D42) -> 0 | E43: 0 | F43: 0 | G43: 0 | H43: 0 | I43: 0

Sheet 3.2 Operating expenditure
B1: =(LOOKUP(dms_Model,dms_Model_List,dms_Worksheet_List)) -> REGULATORY REPORTING STATEMENT
B2: =INDEX(dms_TradingNameFull_List,MATCH(dms_TradingName,dms_TradingName_List)) -> ElectraNet
B3: =IF(SUM(dms_SingleYear_Model)>0,CRY,CONCATENATE(FRCP_y1," to ",dms_MultiYear_FinalYear_Result)) -> 2018-19 to 2022-23
B4: 3.2 OPERATING EXPENDITURE
B7: Instructions Table 3.2.1.2 must be completed if there are any proposed changes to the CAM reported in response to Schedule 1, paragraph 1.3. | F7: =CONCATENATE("IMPORTANT! Does ",dms_TradingName, " propose to change its CAM? Yes / No" ) -> IMPORTANT! Does ElectraNet propose to change its CAM? Yes / No | H7: No
B9: 3.2.1 - OPEX CATEGORIES
B10: 3.2.1.1 - CURRENT OPEX CATEGORIES AND COST ALLOCATIONS
C11: EXPENDITURE
C12: =CONCATENATE("Forecast ($0's, real ",dms_DollarReal,")") -> Forecast ($0's, real June 2018)
C13: =CRCP_y4 -> 2016-17 | D13: =CRCP_y5 -> 2017-18 | E13: =FRCP_y1 -> 2018-19 | F13: =FRCP_y2 -> 2019-20 | G13: =FRCP_y3 -> 2020-21 | H13: =FRCP_y4 -> 2021-22 | I13: =FRCP_y5 -> 2022-23
B14: Maintenance Communications | C14: 2299890.403 | D14: 2619654.502 | E14: 2126830.661 | F14: 2137328.837 | G14: 2149988.832 | H14: 2165553.812 | I14: 2181944.097
B15: Maintenance Lines | C15: 18100433.79 | D15: 15941983.78 | E15: 15083069.11 | F15: 15157520.14 | G15: 15247302.36 | H15: 15357686.17 | I15: 15473922.88
B16: Maintenance Secondary Systems | C16: 3612046.643 | D16: 3842669.078 | E16: 3134791.432 | F16: 3150264.969 | G16: 3168924.867 | H16: 3191866.499 | I16: 3216024.57
B17: Maintenance Substations | C17: 16353877.48 | D17: 17817034.15 | E17: 17696740.58 | F17: 17784092.86 | G17: 17889433 | H17: 18018944.68 | I17: 18155323.49
B18: Maintenance Easements | C18: 2014117.269 | D18: 2034159.996 | E18: 2129319.667 | F18: 2139830.129 | G18: 2152504.94 | H18: 2168088.136 | I18: 2184497.602
B19: Field Support | C19: 13343912.18 | D19: 12159000.78 | E19: 11388362.95 | F19: 11444576.66 | G19: 11512366.09 | H19: 11595710.59 | I19: 11683474.28
B20: Operations | C20: 10954965.25 | D20: 10469310.6 | E20: 9383622.617 | F20: 9429940.796 | G20: 9485796.967 | H20: 9554469.994 | I20: 9626784.284
B21: Asset Manager Support | C21: 9523134.077 | D21: 10130649.4 | E21: 9541261.358 | F21: 9588357.653 | G21: 9978491.837 | H21: 10181978.49 | I21: 10017496.72
B22: Insurance | C22: 2787015.957 | D22: 2614939.526 | E22: 2746140.826 | F22: 2759695.958 | G22: 2776042.407 | H22: 2796139.742 | I22: 2817302.701
B23: Corporate Support | C23: 4880594.165 | D23: 4821143.596 | E23: 2940813.231 | F23: 2955329.279 | G23: 2972834.518 | H23: 2994356.542 | I23: 3017019.732
B24: Self-insurance | C24: 1546575.5 | D24: 1583187.402 | E24: 1444052.532 | F24: 1451180.47 | G24: 1459776.217 | H24: 1470344.36 | I24: 1481472.858
B25: Network Support | C25: 9350576.611 | D25: 9546322.927 | E25: 9017094.32 | F25: 9061603.292 | G25: 9115277.697 | H25: 9181268.326 | I25: 9250757.989
B26: Debt Raising Costs | E26: 153120.0371 | F26: 152839.0317 | G26: 151661.3878 | H26: 150870.9291 | I26: 149504.5332
B27: Provision movements | C27: -679598.7392 | D27: -683131.0265 | E27: -683131.0265 | F27: -731874.8259 | G27: -724612.9649 | H27: -737711.4807 | I27: -751991.3578
B48: Total opex | C48: =SUM(C14:C47) -> 94087540.58 | D48: =SUM(D14:D47) -> 92896924.72 | E48: 86102088.3 | F48: 86480685.25 | G48: 87335788.15 | H48: 88089566.79 | I48: 88503534.37
B50: 3.2.1.2 - PROPOSED OPEX CATEGORIES AND COST ALLOCATIONS
C51: EXPENDITURE
C52: =CONCATENATE("Forecast ($0's, real ",dms_DollarReal,")") -> Forecast ($0's, real June 2018)
C53: =CRCP_y4 -> 2016-17 | D53: =CRCP_y5 -> 2017-18 | E53: =FRCP_y1 -> 2018-19 | F53: =FRCP_y2 -> 2019-20 | G53: =FRCP_y3 -> 2020-21 | H53: =FRCP_y4 -> 2021-22 | I53: =FRCP_y5 -> 2022-23
B88: Total opex | C88: =SUM(C54:C87) -> 0 | D88: =SUM(D54:D87) -> 0 | E88: =SUM(E54:E87) -> 0 | F88: 0 | G88: 0 | H88: 0 | I88: 0
B92: 3.2.2 - OPEX CONSISTENCY
B93: CURRENT COST ALLOCATION APPROACH
C94: EXPENDITURE
C95: =CONCATENATE("Forecast ($0's, real ",dms_DollarReal,")") -> Forecast ($0's, real June 2018)
C96: =CRCP_y4 -> 2016-17 | D96: =CRCP_y5 -> 2017-18 | E96: =FRCP_y1 -> 2018-19 | F96: =FRCP_y2 -> 2019-20 | G96: =FRCP_y3 -> 2020-21 | H96: =FRCP_y4 -> 2021-22 | I96: =FRCP_y5 -> 2022-23
A97: TOPEX0201 | B97: Opex for subtransmission assets
A98: TOPEX0202 | B98: Opex for HV assets

Sheet 3.3 Assets (RAB)
B1: =(LOOKUP(dms_Model,dms_Model_List,dms_Worksheet_List)) -> REGULATORY REPORTING STATEMENT
B2: =INDEX(dms_TradingNameFull_List,MATCH(dms_TradingName,dms_TradingName_List)) -> ElectraNet
B3: =IF(SUM(dms_SingleYear_Model)>0,CRY,CONCATENATE(FRCP_y1," to ",dms_MultiYear_FinalYear_Result)) -> 2018-19 to 2022-23
B4: 3.3 ASSETS
B6: There are FOUR tables on this worksheet. Each table has been grouped (and sub-grouped) for ease of navigation. See the Instructions sheet on how to group or ungroup tables.
B8: 3.3.1 - REGULATORY ASSET BASE VALUES
C9: =CONCATENATE("Forecast ($0's, real ",dms_DollarReal,")") -> Forecast ($0's, real June 2018)
C10: =CRCP_y4 -> 2016-17 | D10: =CRCP_y5 -> 2017-18 | E10: =FRCP_y1 -> 2018-19 | F10: =FRCP_y2 -> 2019-20 | G10: =FRCP_y3 -> 2020-21 | H10: =FRCP_y4 -> 2021-22 | I10: =FRCP_y5 -> 2022-23
B11: For total asset base:
A12: TRAB0101 | B12: Opening value | C12: 2429856277 | D12: 2494542384 | E12: 2552000619 | F12: 2547317196 | G12: 2527689797 | H12: 2514515486 | I12: 2491742220
A13: TRAB0102 | B13: Inflation addition | C13: 0 | D13: 0 | E13: 0 | F13: 0 | G13: 0 | H13: 0 | I13: 0
A14: TRAB0103 | B14: Straight line depreciation | C14: -105324756.3 | D14: -109372711.6 | E14: -103493233.1 | F14: -121903390.4 | G14: -124427749 | H14: -125572684.8 | I14: -124781171.2
A15: TRAB0105 | B15: Actual additions (recognised in RAB) | C15: 170010579.2 | D15: 166830638.1 | E15: 98809809.9 | F15: 102275992 | G15: 111253437.3 | H15: 102799419 | I15: 54511018.09
A16: TRAB0106 | B16: Disposals | C16: 0 | D16: 0 | E16: 0 | F16: 0 | G16: 0 | H16: 0 | I16: 0
A17: TRAB0107 | B17: Closing value | C17: 2494542100 | D17: 2552000311 | E17: 2547317196 | F17: 2527689797 | G17: 2514515486 | H17: 2491742220 | I17: 2421472067
B20: 3.3.2 - ASSET VALUE ROLL FORWARD
C21: =CONCATENATE("Forecast ($0's, real ",dms_DollarReal,")") -> Forecast ($0's, real June 2018)
C22: =CRCP_y4 -> 2016-17 | D22: =CRCP_y5 -> 2017-18 | E22: =FRCP_y1 -> 2018-19 | F22: =FRCP_y2 -> 2019-20 | G22: =FRCP_y3 -> 2020-21 | H22: =FRCP_y4 -> 2021-22 | I22: =FRCP_y5 -> 2022-23
B23: For overhead assets:
A24: TRAB0201 | B24: Opening value | C24: 551247010.9 | D24: 560077930.1 | E24: 562128887.7 | F24: 553191591.7 | G24: 572701744.4 | H24: 602023802.1 | I24: 631621005.9
A25: TRAB0202 | B25: Inflation addition | C25: 0 | D25: 0 | E25: 0 | F25: 0 | G25: 0 | H25: 0 | I25: 0
A26: TRAB0203 | B26: Straight line depreciation | C26: -25939298.61 | D26: -21104672.92 | E26: -20286075.27 | F26: -20452763.78 | G26: -20835751.51 | H26: -21645841.29 | I26: -24079063.94
A27: TRAB0205 | B27: Actual additions (recognised in RAB) | C27: 34770217.82 | D27: 23155630.43 | E27: 11348779.34 | F27: 39962916.42 | G27: 50157809.24 | H27: 51243045.15 | I27: 22375995.4
A28: TRAB0206 | B28: Disposals | C28: 0 | D28: 0 | E28: 0 | F28: 0 | G28: 0 | H28: 0 | I28: 0
A29: TRAB0207 | B29: Closing value | C29: 560077930.1 | D29: 562128887.7 | E29: 553191591.7 | F29: 572701744.4 | G29: 602023802.1 | H29: 631621005.9 | I29: 629917937.4
B30: For underground assets:
A31: TRAB0301 | B31: Opening value | C31: 116217927.2 | D31: 115298119.4 | E31: 114023281.9 | F31: 110824248.4 | G31: 107352848.5 | H31: 103899670.4 | I31: 100461518.3
A32: TRAB0302 | B32: Inflation addition | C32: 0 | D32: 0 | E32: 0 | F32: 0 | G32: 0 | H32: 0 | I32: 0
A33: TRAB0303 | B33: Straight line depreciation | C33: -3293500.183 | D33: -3387852.085 | E33: -3468641.417 | F33: -3483283.049 | G33: -3483283.049 | H33: -3483865.726 | I33: -3484199.054
A34: TRAB0305 | B34: Actual additions (recognised in RAB) | C34: 2373692.425 | D34: 2113014.542 | E34: 269607.9797 | F34: 11883.1152 | G34: 30104.9795 | H34: 45713.60382 | I34: 70047.56886
A35: TRAB0306 | B35: Disposals | C35: 0 | D35: 0 | E35: 0 | F35: 0 | G35: 0 | H35: 0 | I35: 0
A36: TRAB0307 | B36: Closing value | C36: 115298119.4 | D36: 114023281.9 | E36: 110824248.4 | F36: 107352848.5 | G36: 103899670.4 | H36: 100461518.3 | I36: 97047366.82
B37: For switchyards, substations
A38: TRAB0401 | B38: Opening value | C38: 994642723.9 | D38: 1019853624 | E38: 1074003199 | F38: 1065905596 | G38: 1053302533 | H38: 1038793160 | I38: 1018030938
A39: TRAB0402 | B39: Inflation addition | C39: 0 | D39: 0 | E39: 0 | F39: 0 | G39: 0 | H39: 0 | I39: 0
A40: TRAB0403 | B40: Straight line depreciation | C40: -29709411.06 | D40: -32132885.13 | E40: -36409664.06 | F40: -37268762.3 | G40: -37733454.88 | H40: -38388626.17 | I40: -38513353.67
A41: TRAB0405 | B41: Actual additions (recognised in RAB) | C41: 54920033.76 | D41: 86282158.97 | E41: 28312060.52 | F41: 24665700.09 | G41: 23224081.53 | H41: 17626403.74 | I41: 12381608.27
A42: TRAB0406 | B42: Disposals | C42: 0 | D42: 0 | E42: 0 | F42: 0 | G42: 0 | H42: 0 | I42: 0
A43: TRAB0407 | B43: Closing value | C43: 1019853624 | D43: 1074003199 | E43: 1065905596 | F43: 1053302533 | G43: 1038793160 | H43: 1018030938 | I43: 991899192.2
B44: For easements:
A45: TRAB0501 | B45: Opening value | C45: 134877847.3 | D45: 138289173.4 | E45: 120404359.9 | F45: 120409408.8 | G45: 120409408.8 | H45: 120409408.8 | I45: 120409408.8
A46: TRAB0502 | B46: Inflation addition | C46: 0 | D46: 0 | E46: 0 | F46: 0 | G46: 0 | H46: 0 | I46: 0
A47: TRAB0503 | B47: Straight line depreciation | C47: 0 | D47: 0 | E47: 0 | F47: 0 | G47: 0 | H47: 0 | I47: 0
A48: TRAB0505 | B48: Actual additions (recognised in RAB) | C48: 3411326.075 | D48: -17884813.44 | E48: 5048.838571 | F48: 0 | G48: 0 | H48: 0 | I48: 0
A49: TRAB0506 | B49: Disposals | C49: 0 | D49: 0 | E49: 0 | F49: 0 | G49: 0 | H49: 0 | I49: 0
A50: TRAB0507 | B50: Closing value | C50: 138289173.4 | D50: 120404359.9 | E50: 120409408.8 | F50: 120409408.8 | G50: 120409408.8 | H50: 120409408.8 | I50: 120409408.8
B51: For “other” assets with long lives:
A52: TRAB0601 | B52: Opening value | C52: 590771927.4 | D52: 614725138.5 | E52: 636490116.8 | F52: 641220392.8 | G52: 627655393.1 | H52: 609586812.4 | I52: 587633889.3
A53: TRAB0602 | B53: Inflation addition | C53: 0 | D53: 0 | E53: 0 | F53: 0 | G53: 0 | H53: 0 | I53: 0
A54: TRAB0603 | B54: Straight line depreciation | C54: -32022803.94 | D54: -37616084.02 | E54: -36188347.69 | F54: -40353188.39 | G54: -42753175.13 | H54: -44202115.05 | I54: -44006321.44
A55: TRAB0605 | B55: Actual additions (recognised in RAB) | C55: 55976008.06 | D55: 59381054.98 | E55: 40918623.73 | F55: 26788188.73 | G55: 24684594.4 | H55: 22249191.92 | I55: 10140086.07
A56: TRAB0606 | B56: Disposals | C56: 0 | D56: 0 | E56: 0 | F56: 0 | G56: 0 | H56: 0 | I56: 0
A57: TRAB0607 | B57: Closing value | C57: 614725138.5 | D57: 636490116.8 | E57: 641220392.8 | F57: 627655393.1 | G57: 609586812.4 | H57: 587633889.3 | I57: 553767653.9
B58: For “other” assets with short lives:
A59: TRAB0701 | B59: Opening value | C59: 42098839.96 | D59: 46298398.57 | E59: 44950773.7 | F59: 55765958.5 | G59: 46267869.26 | H59: 39802632.05 | I59: 33585460
A60: TRAB0702 | B60: Inflation addition | C60: 0 | D60: 0 | E60: 0 | F60: 0 | G60: 0 | H60: 0 | I60: 0
A61: TRAB0703 | B61: Straight line depreciation | C61: -14359742.45 | D61: -15131217.47 | E61: -7140504.695 | F61: -20345392.9 | G61: -19622084.38 | H61: -17852236.58 | I61: -14698233.15
A62: TRAB0705 | B62: Actual additions (recognised in RAB) | C62: 18559301.05 | D62: 13783592.6 | E62: 17955689.49 | F62: 10847303.66 | G62: 13156847.17 | H62: 11635064.54 | I62: 9543280.781
A63: TRAB0706 | B63: Disposals | C63: 0 | D63: 0 | E63: 0 | F63: 0 | G63: 0 | H63: 0 | I63: 0
A64: TRAB0707 | B64: Closing value | C64: 46298398.57 | D64: 44950773.7 | E64: 55765958.5 | F64: 46267869.26 | G64: 39802632.05 | H64: 33585460 | I64: 28430507.64
B69: 3.3.3 - TOTAL DISAGGREGATED RAB ASSET VALUES
C70: =CONCATENATE("Forecast ($0's, real ",dms_DollarReal,")") -> Forecast ($0's, real June 2018)
C71: =CRCP_y4 -> 2016-17 | D71: =CRCP_y5 -> 2017-18 | E71: =FRCP_y1 -> 2018-19 | F71: =FRCP_y2 -> 2019-20 | G71: =FRCP_y3 -> 2020-21 | H71: =FRCP_y4 -> 2021-22 | I71: =FRCP_y5 -> 2022-23
A72: TRAB0801 | B72: Overhead transmission assets (wires and towers/poles etc) | C72: 555662470.5 | D72: 561103408.9 | E72: 557660239.7 | F72: 562946668 | G72: 587362773.2 | H72: 616822404 | I72: 630769471.7
A73: TRAB0802 | B73: Underground transmission assets (cables, ducts etc) | C73: 115758023.3 | D73: 114660700.6 | E73: 112423765.2 | F73: 109088548.5 | G73: 105626259.5 | H73: 102180594.4 | I73: 98754442.57
A74: TRAB0803 | B74: Substations, switchyards, Transformers etc with transmission function | C74: 1007248174 | D74: 1046928412 | E74: 1069954397 | F74: 1059604064 | G74: 1046047847 | H74: 1028412049 | I74: 1004965065
A75: TRAB0804 | B75: Easements | C75: 136583510.3 | D75: 129346766.7 | E75: 120406884.4 | F75: 120409408.8 | G75: 120409408.8 | H75: 120409408.8 | I75: 120409408.8
A76: TRAB0805 | B76: Other assets with long lives (please specify) | C76: 602748533 | D76: 625607627.6 | E76: 638855254.8 | F76: 634437893 | G76: 618621102.8 | H76: 598610350.8 | I76: 570700771.6
A77: TRAB0806 | B77: Other assets with short lives (please specify) | C77: 44198619.27 | D77: 45624586.14 | E77: 50358366.1 | F77: 51016913.88 | G77: 43035250.65 | H77: 36694046.02 | I77: 31007983.82
B80: 3.3.4 - ASSET LIVES
C81: =CONCATENATE("Forecast ($0's, real ",dms_DollarReal,")") -> Forecast ($0's, real June 2018)
C82: =CRCP_y4 -> 2016-17 | D82: =CRCP_y5 -> 2017-18 | E82: =FRCP_y1 -> 2018-19 | F82: =FRCP_y2 -> 2019-20 | G82: =FRCP_y3 -> 2020-21 | H82: =FRCP_y4 -> 2021-22 | I82: =FRCP_y5 -> 2022-23
B83: ESTIMATED SERVICE LIFE OF NEW ASSETS
A84: TRAB0901 | B84: Overhead transmission assets | C84: 31.79701574 | D84: 39.55152443 | E84: 29.87997153 | F84: 27.55783527 | G84: 27.53941025 | H84: 31.93900309 | I84: 27.12855831
A85: TRAB0902 | B85: Underground transmission assets | C85: 40 | D85: 40 | E85: 40 | F85: 40 | G85: 40 | H85: 40 | I85: 40
A86: TRAB0903 | B86: Switchyard, substation and transformer assets | C86: 47.25809659 | D86: 48.21146126 | E86: 49.99309162 | F86: 49.5722059 | G86: 47.01700188 | H86: 45.56384266 | I86: 45.49477257
A87: TRAB0904 | B87: “Other” assets with long lives | C87: 17.25961448 | D87: 22.01992575 | E87: 16.91556833 | F87: 16.57744812 | G87: 16.92198693 | H87: 17.49978598 | I87: 14.20880538
A88: TRAB0905 | B88: “Other assets with short lives | C88: 4.017727273 | D88: 4.061229001 | E88: 4.025925093 | F88: 4 | G88: 4.013212282 | H88: 4.055823852 | I88: 4.089547857
B89: ESTIMATED RESIDUAL SERVICE LIFE
A90: TRAB1001 | B90: Overhead transmission assets | C90: 29.44567585 | D90: 29.25607529 | E90: 28.36683973 | F90: 27.44547248 | G90: 26.58202203 | H90: 26.33068741 | I90: 25.61272523
A91: TRAB1002 | B91: Underground transmission assets | C91: 32.7573927 | D91: 32.07928325 | E91: 31.12994898 | F91: 30.13413569 | G91: 29.14114555 | H91: 28.14763524 | I91: 27.16957442
A92: TRAB1003 | B92: Switchyard, substation and transformer assets | C92: 35.97564544 | D92: 35.76540495 | E92: 35.42769607 | F92: 34.91209149 | G92: 34.44785066 | H92: 33.64144038 | I92: 33.17927855
A93: TRAB1004 | B93: Other assets with long lives | C93: 15.86771034 | D93: 15.39612034 | E93: 15.78334534 | F93: 15.33383226 | G93: 15.12280107 | H93: 15.08036746 | I93: 14.82666944
A94: TRAB1005 | B94: Other assets with short lives | C94: 3.431749345 | D94: 3.197239634 | E94: 3.209863346 | F94: 2.750263277 | G94: 2.7567318 | H94: 2.756192243 | I94: 3.162795053

Sheet 3.4 Operational data
B1: =(LOOKUP(dms_Model,dms_Model_List,dms_Worksheet_List)) -> REGULATORY REPORTING STATEMENT
B2: =INDEX(dms_TradingNameFull_List,MATCH(dms_TradingName,dms_TradingName_List)) -> ElectraNet
B3: =IF(SUM(dms_SingleYear_Model)>0,CRY,CONCATENATE(FRCP_y1," to ",dms_MultiYear_FinalYear_Result)) -> 2018-19 to 2022-23
B4: 3.4 OPERATIONAL DATA
B6: There are THREE tables on this worksheet. Each table has been grouped for ease of navigation. See the Instructions sheet on how to group or ungroup tables.
B8: 3.4.1 - ENERGY DELIVERY
D9: Forecast (0's)
C10: Units | D10: =CRCP_y4 -> 2016-17 | E10: =CRCP_y5 -> 2017-18 | F10: =FRCP_y1 -> 2018-19 | G10: =FRCP_y2 -> 2019-20 | H10: =FRCP_y3 -> 2020-21 | I10: =FRCP_y4 -> 2021-22 | J10: =FRCP_y5 -> 2022-23
B11: Energy grouping by downstream connection type
A12: TOPED0101 | B12: To Other connected transmission networks | C12: GWh | D12: 2665.2 | E12: 2864.3 | F12: 3063.4 | G12: 3262.5 | H12: 3461.6 | I12: 3660.8 | J12: 3859.9
A13: TOPED0102 | B13: To Distribution networks | C13: GWh | D13: 10192.5 | E13: 10195.5 | F13: 10160.9 | G13: 10141.5 | H13: 10160.2 | I13: 10086.5 | J13: 10038.5
A14: TOPED0103 | B14: To Directly connected end–users (330 kV) | C14: GWh
A15: TOPED0104 | B15: To Directly connected end–users (275 kV) | C15: GWh | D15: 1350.8 | E15: 1350.8 | F15: 1350.8 | G15: 1350.8 | H15: 1350.8 | I15: 1350.8 | J15: 1350.8
A16: TOPED0105 | B16: To Directly connected end–users (220 kV) | C16: GWh
A17: TOPED0106 | B17: To Directly connected end–users (132 kV) | C17: GWh | D17: 631.1 | E17: 631.1 | F17: 631.1 | G17: 631.1 | H17: 631.1 | I17: 631.1 | J17: 631.1
A18: TOPED0107 | B18: To Directly connected end–users (110 kV) | C18: GWh
A19: TOPED0108 | B19: To Directly connected end–users (44 kV) | C19: GWh
A20: TOPED0109 | B20: To Directly connected end–users (33 kV) | C20: GWh | D20: 2.4 | E20: 2.4 | F20: 2.4 | G20: 2.4 | H20: 2.4 | I20: 2.4 | J20: 2.4
A21: TOPED0110 | B21: To Directly connected end–users (22 kV) | C21: GWh
A22: TOPED0111 | B22: To Directly connected end–users (11 kV) | C22: GWh
A23: TOPED0112 | B23: To Directly connected end–users (6.6 kV) | C23: GWh
A24: TOPED0113 | B24: Pumping and Power Station Auxillaries | C24: GWh
A25: TOPED01 | B25: Total energy transported | C25: GWh | D25: =SUM(D12:D24) -> 14842 | E25: =SUM(E12:E24) -> 15044.1 | F25: =SUM(F12:F24) -> 15208.6 | G25: 15388.3 | H25: 15606.1 | I25: 15731.6 | J25: 15882.7
B28: 3.4.2 - CONNECTION POINTS
D29: Forecast (0's)
C30: Units | D30: =CRCP_y4 -> 2016-17 | E30: =CRCP_y5 -> 2017-18 | F30: =FRCP_y1 -> 2018-19 | G30: =FRCP_y2 -> 2019-20 | H30: =FRCP_y3 -> 2020-21 | I30: =FRCP_y4 -> 2021-22 | J30: =FRCP_y5 -> 2022-23
B31: Number of entry points at each transmission voltage level
A32: TOPCP0101 | B32: 500kV | C32: number
A33: TOPCP0102 | B33: 330kV | C33: number
A34: TOPCP0103 | B34: 275kV | C34: number | D34: 7 | E34: 7 | F34: 7 | G34: 7 | H34: 7 | I34: 7 | J34: 7
A35: TOPCP0104 | B35: 220kV | C35: number
A36: TOPCP0105 | B36: 132 kV | C36: number | D36: 12 | E36: 12 | F36: 12 | G36: 12 | H36: 12 | I36: 12 | J36: 12
A37: TOPCP0106 | B37: 110kV | C37: number
A38: TOPCP0107 | B38: 66 kV | C38: number | D38: 3 | E38: 3 | F38: 3 | G38: 3 | H38: 3 | I38: 3 | J38: 3
A39: TOPCP0108 | B39: 33 kV | C39: number
A40: TOPCP0109 | B40: 22 kV | C40: number
A41: TOPCP0110 | B41: 11 kV | C41: number
A42: TOPCP0111 | B42: 6.6 kV | C42: number
B43: Number of exit points at each transmission voltage level
A44: TOPCP0201 | B44: 500kV | C44: number
A45: TOPCP0202 | B45: 330kV | C45: number
A46: TOPCP0203 | B46: 275kV | C46: number | D46: 13 | E46: 13 | F46: 13 | G46: 13 | H46: 13 | I46: 13 | J46: 13
A47: TOPCP0204 | B47: 220kV | C47: number
A48: TOPCP0205 | B48: 132 kV | C48: number | D48: 57 | E48: 57 | F48: 57 | G48: 58 | H48: 58 | I48: 58 | J48: 58
A49: TOPCP0206 | B49: 110kV | C49: number
A50: TOPCP0207 | B50: 66 kV | C50: number | D50: 3 | E50: 3 | F50: 3 | G50: 3 | H50: 3 | I50: 3 | J50: 3
A51: TOPCP0208 | B51: 44 kV | C51: number
A52: TOPCP0209 | B52: 33kV | C52: number
A53: TOPCP0210 | B53: 22kV | C53: number
A54: TOPCP0211 | B54: 11kV | C54: number
A55: TOPCP0212 | B55: 6.6kV | C55: number
B59: 3.4.3 - SYSTEM DEMAND
D60: Forecast (0's)
C61: Units | D61: =CRCP_y4 -> 2016-17 | E61: =CRCP_y5 -> 2017-18 | F61: =FRCP_y1 -> 2018-19 | G61: =FRCP_y2 -> 2019-20 | H61: =FRCP_y3 -> 2020-21 | I61: =FRCP_y4 -> 2021-22 | J61: =FRCP_y5 -> 2022-23
B62: Annual system maximum demand characteristics – MW measure
A63: TOPSD0101 | B63: Transmission System coincident maximum demand | C63: MW
A64: TOPSD0102 | B64: Transmission System coincident weather adjusted maximum demand 10% POE | C64: MW | D64: 3243.228027 | E64: 3197.797088 | F64: 3194.177283 | G64: 3083.204902 | H64: 3030.859569 | I64: 2954.624057 | J64: 2903.927632
A65: TOPSD0103 | B65: Transmission System coincident weather adjusted maximum demand 50% POE | C65: MW | D65: 2849.07183 | E65: 2807.93767 | F65: 2747.055034 | G65: 2687.308833 | H65: 2655.408549 | I65: 2570.218369 | J65: 2541.629708
A66: TOPSD0104 | B66: Transmission System non-coincident summated maximum demand | C66: MW
A67: TOPSD0105 | B67: Transmission System non-coincident weather adjusted summated maximum demand 10% POE | C67: MW | D67: 3594.351568 | E67: 3575.206019 | F67: 3549.292658 | G67: 3451.489613 | H67: 3363.731984 | I67: 3281.015509 | J67: 3226.000866
A68: TOPSD0106 | B68: Transmission System non-coincident weather adjusted summated maximum demand 50% POE | C68: MW | D68: 3315.886644 | E68: 3298.022957 | F68: 3242.349068 | G68: 3168.905751 | H68: 3099.369149 | I68: 3004.210909 | J68: 2972.249428
B69: Annual system maximum demand characteristics – MVA measure
A70: TOPSD0201 | B70: Transmission System coincident maximum demand | C70: MVA
A71: TOPSD0202 | B71: Transmission System coincident weather adjusted maximum demand 10% POE | C71: MVA | D71: 3336.202947 | E71: 3289.919114 | F71: 3286.544401 | G71: 3173.205064 | H71: 3119.804645 | I71: 3041.973575 | J71: 2990.26263
A72: TOPSD0203 | B72: Transmission System coincident weather adjusted maximum demand 50% POE | C72: MVA | D72: 2927.294334 | E72: 2885.399697 | F72: 2823.436231 | G72: 2762.457626 | H72: 2729.95423 | I72: 2642.962789 | J72: 2613.851595
A73: TOPSD0204 | B73: Transmission System non-coincident summated maximum demand | C73: MVA
A74: TOPSD0205 | B74: Transmission System non-coincident weather adjusted summated maximum demand 10% POE | C74: MVA | D74: 3698.140083 | E74: 3678.742872 | F74: 3652.591605 | G74: 3552.650016 | H74: 3462.983153 | I74: 3378.470199 | J74: 3322.312997
A75: TOPSD0206 | B75: Transmission System non-coincident weather adjusted summated maximum demand 50% POE | C75: MVA | D75: 3413.143453 | E75: 3395.063764 | F75: 3338.42431 | G75: 3263.398367 | H75: 3192.370143 | I75: 3095.125147 | J75: 3062.557901
B76: Power factor
B77: Power factor conversion between MVA and MW
A78: TOPSD0301 | B78: Average overall network power factor conversion between MVA and MW | C78: Factor | D78: 0.9721 | E78: 0.9721 | F78: 0.9721 | G78: 0.9721 | H78: 0.9721 | I78: 0.9721 | J78: 0.9721
A79: TOPSD0302 | B79: Average power factor conversion for 500 kV lines | C79: Factor
A80: TOPSD0303 | B80: Average power factor conversion for 330 kV lines | C80: Factor
A81: TOPSD0304 | B81: Average power factor conversion for 275 kV lines | C81: Factor | D81: 0.9877 | E81: 0.9877 | F81: 0.9877 | G81: 0.9877 | H81: 0.9877 | I81: 0.9877 | J81: 0.9877
A82: TOPSD0305 | B82: Average power factor conversion for 220 kV lines | C82: Factor
A83: TOPSD0306 | B83: Average power factor conversion for 132 kV lines | C83: Factor | D83: 0.9601 | E83: 0.9601 | F83: 0.9601 | G83: 0.9601 | H83: 0.9601 | I83: 0.9601 | J83: 0.9601
A84: TOPSD0307 | B84: Average power factor conversion for 110 kV lines | C84: Factor
A85: TOPSD0308 | B85: Average power factor conversion for 88 kV lines | C85: Factor
A86: TOPSD0309 | B86: Average power factor conversion for 66 kV lines | C86: Factor | D86: 0.9741 | E86: 0.9741 | F86: 0.9741 | G86: 0.9741 | H86: 0.9741 | I86: 0.9741 | J86: 0.9741
A87: TOPSD0310 | B87: Average power factor conversion for 33 kV lines | C87: Factor
A88: TOPSD0311 | B88: Average power factor conversion for 22 kV lines | C88: Factor
A89: TOPSD0311 | B89: Average power factor conversion for 11 kV lines | C89: Factor
A90: TOPSD0312 | B90: Average power factor conversion for 6.6 kV lines | C90: Factor

Sheet 3.5 Physical assets
B1: =(LOOKUP(dms_Model,dms_Model_List,dms_Worksheet_List)) -> REGULATORY REPORTING STATEMENT
B2: =INDEX(dms_TradingNameFull_List,MATCH(dms_TradingName,dms_TradingName_List)) -> ElectraNet
B3: =IF(SUM(dms_SingleYear_Model)>0,CRY,CONCATENATE(FRCP_y1," to ",dms_MultiYear_FinalYear_Result)) -> 2018-19 to 2022-23
B4: 3.5 PHYSICAL ASSETS
B7: There is ONE table on this worksheet. It has been sub-grouped for ease of navigation. See the Instructions sheet on how to group or ungroup tables.
B9: 3.5.1 - TRANSMISSION SYSTEM CAPACITIES
D10: Forecast (0's)
C11: Units | D11: =CRCP_y4 -> 2016-17 | E11: =CRCP_y5 -> 2017-18 | F11: =FRCP_y1 -> 2018-19 | G11: =FRCP_y2 -> 2019-20 | H11: =FRCP_y3 -> 2020-21 | I11: =FRCP_y4 -> 2021-22 | J11: =FRCP_y5 -> 2022-23
B12: Overhead network length of circuit at each voltage
A13: TPA0101 | B13: 500 kV | C13: km
A14: TPA0102 | B14: 330 kV | C14: km
A15: TPA0103 | B15: 275 kV | C15: km | D15: 2613 | E15: 2613 | F15: 2613 | G15: 2613 | H15: 2613 | I15: 2613 | J15: 2613
A16: TPA0104 | B16: 220 kV | C16: km
A17: TPA0105 | B17: 132 kV | C17: km | D17: 2868 | E17: 2851.7 | F17: 2851.7 | G17: 2851.7 | H17: 2851.7 | I17: 2851.7 | J17: 2851.7
A18: TPA0106 | B18: 110 kV | C18: km
A19: TPA0107 | B19: 88 kV | C19: km
A20: TPA0108 | B20: 66 kV | C20: km | D20: 13.36 | E20: 13.36 | F20: 13.36 | G20: 13.36 | H20: 13.36 | I20: 13.36 | J20: 13.36
A21: TPA0109 | B21: 33 kV | C21: km
A22: TPA0109 | B22: 22 kV | C22: km
A23: TPA0109 | B23: 11 kV | C23: km
A24: TPA01 | B24: Total | D24: =SUM(D13:D23) -> 5494.36 | E24: =SUM(E13:E23) -> 5478.06 | F24: =SUM(F13:F23) -> 5478.06 | G24: 5478.06 | H24: 5478.06 | I24: 5478.06 | J24: 5478.06
B26: Underground cable circuit length at each voltage
A27: TPA0201 | B27: 500 kV | C27: km
A28: TPA0202 | B28: 330 kV | C28: km
A29: TPA0203 | B29: 275 kV | C29: km | D29: 26.27 | E29: 26.27 | F29: 26.27 | G29: 26.27 | H29: 26.27 | I29: 26.27 | J29: 26.27
A30: TPA0204 | B30: 220 kV | C30: km
A31: TPA0205 | B31: 132 kV | C31: km
A32: TPA0206 | B32: 110 kV | C32: km
A33: TPA0207 | B33: 88 kV | C33: km
A34: TPA0208 | B34: 66 kV | C34: km | D34: 0.919 | E34: 0.919 | F34: 0.919 | G34: 0.919 | H34: 0.919 | I34: 0.919 | J34: 0.919
A35: TPA0209 | B35: 33 kV | C35: km
A36: TPA0210 | B36: 22 kV | C36: km
A37: TPA0211 | B37: 11 kV | C37: km
A38: TPA02 | B38: Total | D38: =SUM(D27:D37) -> 27.189 | E38: =SUM(E27:E37) -> 27.189 | F38: =SUM(F27:F37) -> 27.189 | G38: 27.189 | H38: 27.189 | I38: 27.189 | J38: 27.189
B40: Estimated overhead network weighted average MVA capacity by voltage class
A41: TPA0301 | B41: 500 kV | C41: MVA
A42: TPA0302 | B42: 330 kV | C42: MVA
A43: TPA0303 | B43: 275 kV | C43: MVA | D43: 568.5698733 | E43: 568.5698733 | F43: 568.5698733 | G43: 568.5698733 | H43: 568.5698733 | I43: 568.5698733 | J43: 568.5698733
A44: TPA0304 | B44: 220 kV | C44: MVA
A45: TPA0305 | B45: 132 kV | C45: MVA | D45: 112.3280434 | E45: 112.3280434 | F45: 112.3280434 | G45: 112.3280434 | H45: 112.3280434 | I45: 112.3280434 | J45: 112.3280434
A46: TPA0306 | B46: 110 kV | C46: MVA
A47: TPA0307 | B47: 88 kV | C47: MVA
A48: TPA0308 | B48: 66 kV | C48: MVA | D48: 108.9729436 | E48: 108.9729436 | F48: 108.9729436 | G48: 108.9729436 | H48: 108.9729436 | I48: 108.9729436 | J48: 108.9729436
A49: TPA0309 | B49: 33 kV | C49: MVA
A50: TPA0310 | B50: 22 kV | C50: MVA
A51: TPA0311 | B51: 11 kV | C51: MVA
B53: Estimated underground network weighted average MVA capacity by voltage class
A54: TPA0401 | B54: 500 kV | C54: MVA
A55: TPA0402 | B55: 330 kV | C55: MVA
A56: TPA0403 | B56: 275 kV | C56: MVA | D56: 660 | E56: 660 | F56: 660 | G56: 660 | H56: 660 | I56: 660 | J56: 660
A57: TPA0404 | B57: 220 kV | C57: MVA
A58: TPA0405 | B58: 132 kV | C58: MVA
A59: TPA0406 | B59: 110 kV | C59: MVA
A60: TPA0407 | B60: 88 kV | C60: MVA
A61: TPA0408 | B61: 66 kV | C61: MVA
A62: TPA0409 | B62: 33 kV | C62: MVA
A63: TPA0410 | B63: 22 kV | C63: MVA
A64: TPA0411 | B64: 11 kV | C64: MVA
B66: Installed transmission system transformer capacity
A67: TPA0501 | B67: Transmission substations (eg 500 kV to 330 kV) | C67: MVA | D67: 3840 | E67: 3840 | F67: 3840 | G67: 3840 | H67: 3840 | I67: 3840 | J67: 3840
A68: TPA0502 | B68: Terminal points to DNSP systems | C68: MVA | D68: 7562.6 | E68: 7562.6 | F68: 7587.6 | G68: 7587.6 | H68: 7582.6 | I68: 7567.6 | J68: 7567.6
A69: TPA0503 | B69: Transformer capacity for directly connected end–users owned by the TNSP | C69: MVA | D69: 345 | E69: 371 | F69: 371 | G69: 371 | H69: 371 | I69: 371 | J69: 371
A70: TPA0504 | B70: Transformer capacity for directly connected end–users owned by the end–user | C70: MVA | D70: 440 | E70: 440 | F70: 440 | G70: 440 | H70: 440 | I70: 440 | J70: 440
A71: TPA0505 | B71: Interconnector capacity | C71: MVA | D71: 870 | E71: 870 | F71: 870 | G71: 870 | H71: 870 | I71: 870 | J71: 870
A72: TPA0506 | B72: Other | C72: MVA
B74: Cold spare capacity
A75: TPA06 | B75: Cold spare capacity included in 3.5.1.5 | C75: MVA | D75: 907.6 | E75: 907.6 | F75: 907.6 | G75: 907.6 | H75: 907.6 | I75: 907.6 | J75: 907.6

Sheet 3.7 Operating environment
B1: =(LOOKUP(dms_Model,dms_Model_List,dms_Worksheet_List)) -> REGULATORY REPORTING STATEMENT
B2: =INDEX(dms_TradingNameFull_List,MATCH(dms_TradingName,dms_TradingName_List)) -> ElectraNet
B3: =IF(SUM(dms_SingleYear_Model)>0,CRY,CONCATENATE(FRCP_y1," to ",dms_MultiYear_FinalYear_Result)) -> 2018-19 to 2022-23
B4: 3.7 OPERATING ENVIRONMENT FACTORS
A7: TEF01 | B7: 3.7.1 - TERRAIN FACTORS
D8: Forecast (0's)
C9: Units | D9: =CRCP_y4 -> 2016-17 | E9: =CRCP_y5 -> 2017-18 | F9: =FRCP_y1 -> 2018-19 | G9: =FRCP_y2 -> 2019-20 | H9: =FRCP_y3 -> 2020-21 | I9: =FRCP_y4 -> 2021-22 | J9: =FRCP_y5 -> 2022-23
A10: TEF0101 | B10: Total number of vegetation maintenance spans | C10: Number of spans | D10: 1149
A11: TEF0102 | B11: Average vegetation maintenance span cycle | C11: Years | D11: 1.38094628
A12: TEF0103 | B12: Average number of trees per vegetation maintenance span | C12: Trees | D12: 13.375
A13: TEF0104 | B13: Average number of defects per vegetation maintenance span | C13: Defects | D13: 1.598828648
A14: TEF0105 | B14: Tropical proportion | C14: Number of spans | D14: 0
A15: TEF0106 | B15: Standard vehicle access | C15: km | D15: 4194.715
A16: TEF0107 | B16: Altitude | C16: km | D16: 10.2
A17: TEF0108 | B17: Bushfire risk | C17: Number of spans | D17: 927.9408429
A19: TEF02 | B19: 3.7.2 - NETWORK CHARACTERISTICS
D20: Forecast (0's)
C21: Units | D21: =CRCP_y4 -> 2016-17 | E21: =CRCP_y5 -> 2017-18 | F21: =FRCP_y1 -> 2018-19 | G21: =FRCP_y2 -> 2019-20 | H21: =FRCP_y3 -> 2020-21 | I21: =FRCP_y4 -> 2021-22 | J21: =FRCP_y5 -> 2022-23
A22: TEF0201 | B22: Route line length | C22: km | D22: 4537.6 | E22: 4521.3 | F22: 4521.3 | G22: 4521.3 | H22: 4521.3 | I22: 4521.3 | J22: 4521.3
A23: TEF0202 | B23: Variability of dispatch | C23: % | D23: 0.3998362723 | E23: 0.4163321871 | F23: 0.4319455561 | G23: 0.4319455561 | H23: 0.4319455561 | I23: 0.4319455561 | J23: 0.4319455561
A24: TEF0203 | B24: Concentrated load distance | C24: km | D24: 478.5 | E24: 478.5 | F24: 478.5 | G24: 478.5 | H24: 478.5 | I24: 478.5 | J24: 478.5
A25: TEF0204 | B25: Total number of spans | C25: number | D25: 13369 | E25: 13292 | F25: 13292 | G25: 13292 | H25: 13292 | I25: 13292 | J25: 13292

Sheet 5.4 MD & Utilisation - Spatial
B1: =(LOOKUP(dms_Model,dms_Model_List,dms_Worksheet_List)) -> REGULATORY REPORTING STATEMENT
B2: =INDEX(dms_TradingNameFull_List,MATCH(dms_TradingName,dms_TradingName_List)) -> ElectraNet
B3: =IF(SUM(dms_SingleYear_Model)>0,CRY,CONCATENATE(FRCP_y1," to ",dms_MultiYear_FinalYear_Result)) -> 2018-19 to 2022-23
B4: 5.4 MAXIMUM DEMAND AND UTILISATION AT SPATIAL LEVEL
B6: There is ONE table on this worksheet. It has been sub-grouped into blocks of approximately 1000 rows for ease of navigation. See the Instructions sheet on how to group or ungroup data.
B8: 5.4.1 - NON-COINCIDENT & COINCIDENT MAXIMUM DEMAND
B9: CONNECTION POINT | C9: FORECASTING ELEMENTS | D9: UNIT | E9: MAX DEMAND | G9: TNSP NAME | H9: SERVICE | I9: SERVICE SUBCATEGORY | J9: DATA TYPE | K9: DATA TYPE SUBCATEGORY | L9: LOCATION | M9: LOCATION SUBCATEGORY | N9: MEASUREMENT | O9: DENOMINATION | Q9: =CRCP_y4 -> 2016-17 | R9: =CRCP_y5 -> 2017-18 | S9: =FRCP_y1 -> 2018-19 | T9: =FRCP_y2 -> 2019-20 | U9: =FRCP_y3 -> 2020-21 | V9: =FRCP_y4 -> 2021-22 | W9: =FRCP_y5 -> 2022-23
B10: ACR | C10: CONNECTION POINT RATING | D10: MVA | E10: Non-coincident | G10: TNSP NAME | H10: DEMAND FORECASTING | I10: NON-COINCIDENT MAXIMUM DEMAND | J10: DESCRIPTOR METRIC | K10: CONNECTION POINT RATING | L10: CONNECTION POINT | M10: =B10 -> ACR | N10: RATING | O10: MVA | Q10: 600 | R10: 600 | S10: 600 | T10: 600 | U10: 600 | V10: 600 | W10: 600
E11: Coincident | G11: TNSP NAME | H11: DEMAND FORECASTING | I11: COINCIDENT MAXIMUM DEMAND | J11: DESCRIPTOR METRIC | K11: CONNECTION POINT RATING | L11: CONNECTION POINT | M11: =M10 -> ACR | N11: RATING | O11: MVA | Q11: 600 | R11: 600 | S11: 600 | T11: 600 | U11: 600 | V11: 600 | W11: 600
C12: WINTER/SUMMER PEAKING | E12: Non-coincident | G12: TNSP NAME | H12: DEMAND FORECASTING | I12: NON-COINCIDENT MAXIMUM DEMAND | J12: DESCRIPTOR METRIC | K12: WINTER/SUMMER PEAKING | L12: CONNECTION POINT | M12: =#REF! ->  | N12: WINTER/SUMMER | O12: WINTER/SUMMER | Q12: Summer | R12: Summer | S12: Summer | T12: Summer | U12: Summer | V12: Summer | W12: Summer
E13: Coincident | G13: TNSP NAME | H13: DEMAND FORECASTING | I13: COINCIDENT MAXIMUM DEMAND | J13: DESCRIPTOR METRIC | K13: WINTER/SUMMER PEAKING | L13: CONNECTION POINT | N13: WINTER/SUMMER | O13: WINTER/SUMMER | Q13: Summer | R13: Summer | S13: Summer | T13: Summer | U13: Summer | V13: Summer | W13: Summer
C14: ADJUSTMENTS - EMBEDDED GENERATION | D14: MW | E14: Non-coincident | G14: TNSP NAME | H14: DEMAND FORECASTING | I14: NON-COINCIDENT MAXIMUM DEMAND | J14: DESCRIPTOR METRIC | K14: ADJUSTMENTS - EMBEDDED GENERATION | L14: CONNECTION POINT | N14: GENERATED LOAD | O14: MW | Q14: 0.349043215 | R14: 0.379476064 | S14: 0.411969721 | T14: 0.439287397 | U14: 0.466365444 | V14: 0.494066525 | W14: 0.52128835
E15: Coincident | G15: TNSP NAME | H15: DEMAND FORECASTING | I15: COINCIDENT MAXIMUM DEMAND | J15: DESCRIPTOR METRIC | K15: ADJUSTMENTS - EMBEDDED GENERATION | L15: CONNECTION POINT | N15: GENERATED LOAD | O15: MW | Q15: 0.349043215 | R15: 0.379476064 | S15: 0.411969721 | T15: 0.439287397 | U15: 0.466365444 | V15: 0.494066525 | W15: 0.52128835
C16: WEATHER CORRECTED MD 10% POE | D16: MW | E16: Non-coincident | G16: TNSP NAME | H16: DEMAND FORECASTING | I16: NON-COINCIDENT MAXIMUM DEMAND | J16: DESCRIPTOR METRIC | K16: WEATHER CORRECTED MD 10% POE | L16: CONNECTION POINT | N16: MAXIMUM DEMAND | O16: MW | Q16: 203.0745819 | R16: 200.5064599 | S16: 198.8274178 | T16: 191.7071535 | U16: 185.4169207 | V16: 179.5655664 | W16: 175.5569831
E17: Coincident | G17: TNSP NAME | H17: DEMAND FORECASTING | I17: COINCIDENT MAXIMUM DEMAND | J17: DESCRIPTOR METRIC | K17: WEATHER CORRECTED MD 10% POE | L17: CONNECTION POINT | N17: MAXIMUM DEMAND | O17: MW | Q17: 176.9505965 | R17: 173.0517798 | S17: 172.8770198 | T17: 165.4154665 | U17: 161.6889067 | V17: 156.6039579 | W17: 153.1270114
C18: WEATHER CORRECTED MD 10% POE | D18: MVA | E18: Non-coincident | G18: TNSP NAME | H18: DEMAND FORECASTING | I18: NON-COINCIDENT MAXIMUM DEMAND | J18: DESCRIPTOR METRIC | K18: WEATHER CORRECTED MD 10% POE | L18: CONNECTION POINT | N18: MAXIMUM DEMAND | O18: MVA | Q18: 210.5491186 | R18: 207.8864721 | S18: 206.1456297 | T18: 198.7632909 | U18: 192.2415344 | V18: 186.1748102 | W18: 182.0186835
E19: Coincident | G19: TNSP NAME | H19: DEMAND FORECASTING | I19: COINCIDENT MAXIMUM DEMAND | J19: DESCRIPTOR METRIC | K19: WEATHER CORRECTED MD 10% POE | L19: CONNECTION POINT | N19: MAXIMUM DEMAND | O19: MVA | Q19: 183.4635914 | R19: 179.4212715 | S19: 179.2400793 | T19: 171.5038896 | U19: 167.6401668 | V19: 162.3680571 | W19: 158.7631351
C20: WEATHER CORRECTED MD 50% POE | D20: MW | E20: Non-coincident | G20: TNSP NAME | H20: DEMAND FORECASTING | I20: NON-COINCIDENT MAXIMUM DEMAND | J20: DESCRIPTOR METRIC | K20: WEATHER CORRECTED MD 50% POE | L20: CONNECTION POINT | N20: MAXIMUM DEMAND | O20: MW | Q20: 191.2594627 | R20: 188.7679355 | S20: 184.9486704 | T20: 179.285699 | U20: 174.0566907 | V20: 167.233927 | W20: 164.6701687
E21: Coincident | G21: TNSP NAME | H21: DEMAND FORECASTING | I21: COINCIDENT MAXIMUM DEMAND | J21: DESCRIPTOR METRIC | K21: WEATHER CORRECTED MD 50% POE | L21: CONNECTION POINT | N21: MAXIMUM DEMAND | O21: MW | Q21: 161.8986628 | R21: 158.2443383 | S21: 154.3543347 | T21: 149.9579752 | U21: 147.4506702 | V21: 141.688715 | W21: 139.5339145
C22: WEATHER CORRECTED MD 50% POE | D22: MVA | E22: Non-coincident | G22: TNSP NAME | H22: DEMAND FORECASTING | I22: NON-COINCIDENT MAXIMUM DEMAND | J22: DESCRIPTOR METRIC | K22: WEATHER CORRECTED MD 50% POE | L22: CONNECTION POINT | N22: MAXIMUM DEMAND | O22: MVA | Q22: 198.299122 | R22: 195.7158896 | S22: 191.7560493 | T22: 185.8846418 | U22: 180.4631701 | V22: 173.3892819 | W22: 170.7311597
E23: Coincident | G23: TNSP NAME | H23: DEMAND FORECASTING | I23: COINCIDENT MAXIMUM DEMAND | J23: DESCRIPTOR METRIC | K23: WEATHER CORRECTED MD 50% POE | L23: CONNECTION POINT | N23: MAXIMUM DEMAND | O23: MVA | Q23: 167.8576435 | R23: 164.0688148 | S23: 160.0356323 | T23: 155.4774567 | U23: 152.8778656 | V23: 146.903831 | W23: 144.669719
B24: Angas Creek | C24: CONNECTION POINT RATING | D24: MVA | E24: Non-coincident | G24: TNSP NAME | H24: DEMAND FORECASTING | I24: NON-COINCIDENT MAXIMUM DEMAND | J24: DESCRIPTOR METRIC | K24: CONNECTION POINT RATING | L24: CONNECTION POINT | M24: =B24 -> Angas Creek | N24: RATING | O24: MVA | Q24: 56.6 | R24: 56.6 | S24: 56.6 | T24: 56.6 | U24: 56.6 | V24: 56.6 | W24: 56.6
E25: Coincident | G25: TNSP NAME | H25: DEMAND FORECASTING | I25: COINCIDENT MAXIMUM DEMAND | J25: DESCRIPTOR METRIC | K25: CONNECTION POINT RATING | L25: CONNECTION POINT | M25: Angas Creek | N25: RATING | O25: MVA | Q25: 56.6 | R25: 56.6 | S25: 56.6 | T25: 56.6 | U25: 56.6 | V25: 56.6 | W25: 56.6
C26: WINTER/SUMMER PEAKING | E26: Non-coincident | G26: TNSP NAME | H26: DEMAND FORECASTING | I26: NON-COINCIDENT MAXIMUM DEMAND | J26: DESCRIPTOR METRIC | K26: WINTER/SUMMER PEAKING | L26: CONNECTION POINT | M26: =#REF! ->  | N26: WINTER/SUMMER | O26: WINTER/SUMMER | Q26: Summer | R26: Summer | S26: Summer | T26: Summer | U26: Summer | V26: Summer | W26: Summer
E27: Coincident | G27: TNSP NAME | H27: DEMAND FORECASTING | I27: COINCIDENT MAXIMUM DEMAND | J27: DESCRIPTOR METRIC | K27: WINTER/SUMMER PEAKING | L27: CONNECTION POINT | N27: WINTER/SUMMER | O27: WINTER/SUMMER | Q27: Summer | R27: Summer | S27: Summer | T27: Summer | U27: Summer | V27: Summer | W27: Summer
C28: ADJUSTMENTS - EMBEDDED GENERATION | D28: MW | E28: Non-coincident | G28: TNSP NAME | H28: DEMAND FORECASTING | I28: NON-COINCIDENT MAXIMUM DEMAND | J28: DESCRIPTOR METRIC | K28: ADJUSTMENTS - EMBEDDED GENERATION | L28: CONNECTION POINT | N28: GENERATED LOAD | O28: MW | Q28: 1.371891235 | R28: 1.491505533 | S28: 1.619219697 | T28: 1.726590012 | U28: 1.833018482 | V28: 1.941895749 | W28: 2.048889326
E29: Coincident | G29: TNSP NAME | H29: DEMAND FORECASTING | I29: COINCIDENT MAXIMUM DEMAND | J29: DESCRIPTOR METRIC | K29: ADJUSTMENTS - EMBEDDED GENERATION | L29: CONNECTION POINT | N29: GENERATED LOAD | O29: MW | Q29: 1.371891235 | R29: 1.491505533 | S29: 1.619219697 | T29: 1.726590012 | U29: 1.833018482 | V29: 1.941895749 | W29: 2.048889326
C30: WEATHER CORRECTED MD 10% POE | D30: MW | E30: Non-coincident | G30: TNSP NAME | H30: DEMAND FORECASTING | I30: NON-COINCIDENT MAXIMUM DEMAND | J30: DESCRIPTOR METRIC | K30: WEATHER CORRECTED MD 10% POE | L30: CONNECTION POINT | N30: MAXIMUM DEMAND | O30: MW | Q30: 18.46423519 | R30: 18.39290227 | S30: 18.45789238 | T30: 18.06642086 | U30: 17.79177594 | V30: 17.59508886 | W30: 17.61420562
E31: Coincident | G31: TNSP NAME | H31: DEMAND FORECASTING | I31: COINCIDENT MAXIMUM DEMAND | J31: DESCRIPTOR METRIC | K31: WEATHER CORRECTED MD 10% POE | L31: CONNECTION POINT | N31: MAXIMUM DEMAND | O31: MW | Q31: 15.17476379 | R31: 14.972424 | S31: 15.13691101 | T31: 14.70293616 | U31: 14.63336866 | V31: 14.47322427 | W31: 14.49075162
C32: WEATHER CORRECTED MD 10% POE | D32: MVA | E32: Non-coincident | G32: TNSP NAME | H32: DEMAND FORECASTING | I32: NON-COINCIDENT MAXIMUM DEMAND | J32: DESCRIPTOR METRIC | K32: WEATHER CORRECTED MD 10% POE | L32: CONNECTION POINT | N32: MAXIMUM DEMAND | O32: MVA | Q32: 19.18107316 | R32: 19.10697088 | S32: 19.1744841 | T32: 18.76781447 | U32: 18.48250699 | V32: 18.27818392 | W32: 18.29804285
E33: Coincident | G33: TNSP NAME | H33: DEMAND FORECASTING | I33: COINCIDENT MAXIMUM DEMAND | J33: DESCRIPTOR METRIC | K33: WEATHER CORRECTED MD 10% POE | L33: CONNECTION POINT | N33: MAXIMUM DEMAND | O33: MVA | Q33: 15.76389444 | R33: 15.55369921 | S33: 15.72457209 | T33: 15.27374902 | U33: 15.2014807 | V33: 15.03511901 | W33: 15.05332683
C34: WEATHER CORRECTED MD 50% POE | D34: MW | E34: Non-coincident | G34: TNSP NAME | H34: DEMAND FORECASTING | I34: NON-COINCIDENT MAXIMUM DEMAND | J34: DESCRIPTOR METRIC | K34: WEATHER CORRECTED MD 50% POE | L34: CONNECTION POINT | N34: MAXIMUM DEMAND | O34: MW | Q34: 16.71577208 | R34: 16.66624881 | S34: 16.54324092 | T34: 16.29415478 | U34: 16.11815052 | V34: 15.82228912 | W34: 15.95822452
E35: Coincident | G35: TNSP NAME | H35: DEMAND FORECASTING | I35: COINCIDENT MAXIMUM DEMAND | J35: DESCRIPTOR METRIC | K35: WEATHER CORRECTED MD 50% POE | L35: CONNECTION POINT | N35: MAXIMUM DEMAND | O35: MW | Q35: 13.34568668 | R35: 13.17746796 | S35: 13.02214013 | T35: 12.85434375 | U35: 12.87850316 | V35: 12.64370467 | W35: 12.75391657
C36: WEATHER CORRECTED MD 50% POE | D36: MVA | E36: Non-coincident | G36: TNSP NAME | H36: DEMAND FORECASTING | I36: NON-COINCIDENT MAXIMUM DEMAND | J36: DESCRIPTOR METRIC | K36: WEATHER CORRECTED MD 50% POE | L36: CONNECTION POINT | N36: MAXIMUM DEMAND | O36: MVA | Q36: 17.36472937 | R36: 17.31328346 | S36: 17.18550003 | T36: 16.92674361 | U36: 16.74390632 | V36: 16.43655868 | W36: 16.5777715
E37: Coincident | G37: TNSP NAME | H37: DEMAND FORECASTING | I37: COINCIDENT MAXIMUM DEMAND | J37: DESCRIPTOR METRIC | K37: WEATHER CORRECTED MD 50% POE | L37: CONNECTION POINT | N37: MAXIMUM DEMAND | O37: MVA | Q37: 13.86380697 | R37: 13.68905749 | S37: 13.52769936 | T37: 13.35338861 | U37: 13.37848597 | V37: 13.13457188 | W37: 13.24906254
B38: Ardrossan West | C38: CONNECTION POINT RATING | D38: MVA | E38: Non-coincident | Q38: 50 | R38: 50 | S38: 50 | T38: 50 | U38: 50 | V38: 50 | W38: 50
E39: Coincident | Q39: 50 | R39: 50 | S39: 50 | T39: 50 | U39: 50 | V39: 50 | W39: 50
C40: WINTER/SUMMER PEAKING | E40: Non-coincident | Q40: Summer | R40: Summer | S40: Summer | T40: Summer | U40: Summer | V40: Summer | W40: Summer
E41: Coincident | Q41: Summer | R41: Summer | S41: Summer | T41: Summer | U41: Summer | V41: Summer | W41: Summer
C42: ADJUSTMENTS - EMBEDDED GENERATION | D42: MW | E42: Non-coincident | Q42: 0.972692439 | R42: 1.057500855 | S42: 1.148052204 | T42: 1.224179444 | U42: 1.299638902 | V42: 1.376834594 | W42: 1.452694721
E43: Coincident | Q43: 0.972692439 | R43: 1.057500855 | S43: 1.148052204 | T43: 1.224179444 | U43: 1.299638902 | V43: 1.376834594 | W43: 1.452694721
C44: WEATHER CORRECTED MD 10% POE | D44: MW | E44: Non-coincident | Q44: 11.9409386 | R44: 9.753818556 | S44: 9.688218767 | T44: 9.352292111 | U44: 9.075082018 | V44: 8.809628489 | W44: 8.626455046
E45: Coincident | Q45: 9.796588017 | R45: 7.926150054 | S45: 7.931308604 | T45: 7.597938519 | U45: 7.451116186 | V45: 7.233978018 | W45: 7.084447354
C46: WEATHER CORRECTED MD 10% POE | D46: MVA | E46: Non-coincident | Q46: 12.16232466 | R46: 9.934655219 | S46: 9.867839203 | T46: 9.525684437 | U46: 9.243334845 | V46: 8.972959784 | W46: 8.786390289
E47: Coincident | Q47: 9.978217629 | R47: 8.07310158 | S47: 8.07835577 | T47: 7.738804974 | U47: 7.589260542 | V47: 7.368096613 | W47: 7.215793637
C48: WEATHER CORRECTED MD 50% POE | D48: MW | E48: Non-coincident | Q48: 10.33771673 | R48: 8.15925817 | S48: 8.034101371 | T48: 7.818646881 | U48: 7.61184713 | V48: 7.326799793 | W48: 7.221347182
E49: Coincident | Q49: 8.239196765 | R49: 6.44006938 | S49: 6.313131571 | T49: 6.157372599 | U49: 6.07136025 | V49: 5.844738899 | W49: 5.761333152
C50: WEATHER CORRECTED MD 50% POE | D50: MVA | E50: Non-coincident | Q50: 10.52937891 | R50: 8.310531541 | S50: 8.183054324 | T50: 7.963605289 | U50: 7.752971452 | V50: 7.462639312 | W50: 7.355231601
E51: Coincident | Q51: 8.391952205 | R51: 6.559468838 | S51: 6.430177591 | T51: 6.271530834 | U51: 6.183923808 | V51: 5.953100877 | W51: 5.868148781
C52: CONNECTION POINT RATING | D52: MVA | E52: Non-coincident
E53: Coincident
C54: WINTER/SUMMER PEAKING | E54: Non-coincident
E55: Coincident
C56: ADJUSTMENTS - EMBEDDED GENERATION | D56: MW | E56: Non-coincident
E57: Coincident
C58: WEATHER CORRECTED MD 10% POE | D58: MW | E58: Non-coincident
E59: Coincident
C60: WEATHER CORRECTED MD 10% POE | D60: MVA | E60: Non-coincident
E61: Coincident
C62: WEATHER CORRECTED MD 50% POE | D62: MW | E62: Non-coincident
E63: Coincident
C64: WEATHER CORRECTED MD 50% POE | D64: MVA | E64: Non-coincident
E65: Coincident
B66: Baroota | C66: CONNECTION POINT RATING | D66: MVA | E66: Non-coincident | Q66: 11.8 | R66: 11.8 | S66: 11.8 | T66: 11.8 | U66: 11.8 | V66: 11.8 | W66: 11.8
E67: Coincident | Q67: 11.8 | R67: 11.8 | S67: 11.8 | T67: 11.8 | U67: 11.8 | V67: 11.8 | W67: 11.8
C68: WINTER/SUMMER PEAKING | E68: Non-coincident | Q68: Summer | R68: Summer | S68: Summer | T68: Summer | U68: Summer | V68: Summer | W68: Summer
E69: Coincident | Q69: Summer | R69: Summer | S69: Summer | T69: Summer | U69: Summer | V69: Summer | W69: Summer
C70: ADJUSTMENTS - EMBEDDED GENERATION | D70: MW | E70: Non-coincident | Q70: 0.601394543 | R70: 0.653829739 | S70: 0.709815666 | T70: 0.75688348 | U70: 0.803538418 | V70: 0.851266833 | W70: 0.898169497
E71: Coincident | Q71: 0.601394543 | R71: 0.653829739 | S71: 0.709815666 | T71: 0.75688348 | U71: 0.803538418 | V71: 0.851266833 | W71: 0.898169497
C72: WEATHER CORRECTED MD 10% POE | D72: MW | E72: Non-coincident | Q72: 7.913046519 | R72: 7.809561585 | S72: 7.734243523 | T72: 7.440833069 | U72: 7.173840451 | V72: 6.918925868 | W72: 6.730615986
E73: Coincident | Q73: 6.294173279 | R73: 6.152800987 | S73: 6.138713294 | T73: 5.86081307 | U73: 5.710591397 | V73: 5.508290858 | W73: 5.359040301
C74: WEATHER CORRECTED MD 10% POE | D74: MVA | E74: Non-coincident | Q74: 7.913362446 | R74: 7.80987338 | S74: 7.734552312 | T74: 7.441130143 | U74: 7.174126866 | V74: 6.919202105 | W74: 6.730884705
E75: Coincident | Q75: 6.294424573 | R75: 6.153046636 | S75: 6.138958381 | T75: 5.861047062 | U75: 5.710819392 | V75: 5.508510775 | W75: 5.359254259
C76: WEATHER CORRECTED MD 50% POE | D76: MW | E76: Non-coincident | Q76: 7.211429671 | R76: 7.108286773 | S76: 6.948996478 | T76: 6.714451595 | U76: 6.490644981 | V76: 6.203157778 | W76: 6.069745304
E77: Coincident | Q77: 5.572373471 | R77: 5.439555447 | S77: 5.294052226 | T77: 5.126641859 | U77: 5.01929125 | V77: 4.797579879 | W77: 4.694980884
C78: WEATHER CORRECTED MD 50% POE | D78: MVA | E78: Non-coincident | Q78: 7.211717586 | R78: 7.10857057 | S78: 6.949273916 | T78: 6.714719668 | U78: 6.490904119 | V78: 6.203405438 | W78: 6.069987637
E79: Coincident | Q79: 5.572595947 | R79: 5.43977262 | S79: 5.29426359 | T79: 5.12684654 | U79: 5.019491645 | V79: 4.797771421 | W79: 4.69516833
B80: Berri | C80: CONNECTION POINT RATING | D80: MVA | E80: Non-coincident | Q80: 200.1 | R80: 200.1 | S80: 200.1 | T80: 200.1 | U80: 200.1 | V80: 200.1 | W80: 200.1
E81: Coincident | Q81: 200.1 | R81: 200.1 | S81: 200.1 | T81: 200.1 | U81: 200.1 | V81: 200.1 | W81: 200.1
C82: WINTER/SUMMER PEAKING | E82: Non-coincident | Q82: Summer | R82: Summer | S82: Summer | T82: Summer | U82: Summer | V82: Summer | W82: Summer
E83: Coincident | Q83: Summer | R83: Summer | S83: Summer | T83: Summer | U83: Summer | V83: Summer | W83: Summer
C84: ADJUSTMENTS - EMBEDDED GENERATION | D84: MW | E84: Non-coincident | Q84: 3.728394815 | R84: 4.053471117 | S84: 4.40056046 | T84: 4.692361235 | U84: 4.981602354 | V84: 5.277498579 | W84: 5.568275491
E85: Coincident | Q85: 3.728394815 | R85: 4.053471117 | S85: 4.40056046 | T85: 4.692361235 | U85: 4.981602354 | V85: 5.277498579 | W85: 5.568275491
C86: WEATHER CORRECTED MD 10% POE | D86: MW | E86: Non-coincident | Q86: 88.46360704 | R86: 89.02488093 | S86: 89.96854203 | T86: 88.38029704 | U86: 87.022566 | V86: 85.72652512 | W86: 85.18306627
E87: Coincident | Q87: 80.40951327 | R87: 80.15035112 | S87: 81.60147414 | T87: 79.54988917 | U87: 79.16059903 | V87: 77.99041315 | W87: 77.50563755
C88: WEATHER CORRECTED MD 10% POE | D88: MVA | E88: Non-coincident | Q88: 91.99750576 | R88: 92.58120114 | S88: 93.56255913 | T88: 91.91086775 | U88: 90.49889877 | V88: 89.1510843 | W88: 88.58591564
E89: Coincident | Q89: 83.6216712 | R89: 83.35215617 | S89: 84.86124791 | T89: 82.72770728 | U89: 82.32286597 | V89: 81.10593411 | W89: 80.60179295
C90: WEATHER CORRECTED MD 50% POE | D90: MW | E90: Non-coincident | Q90: 82.64291996 | R90: 83.28565104 | S90: 83.3027603 | T90: 82.36934564 | U90: 81.50050635 | V90: 79.73769603 | W90: 79.87921195
E91: Coincident | Q91: 72.97469872 | R91: 72.83103241 | S91: 72.52259504 | T91: 71.86805004 | U91: 72.02158294 | V91: 70.47269554 | W91: 70.60654263
C92: WEATHER CORRECTED MD 50% POE | D92: MVA | E92: Non-coincident | Q92: 85.94429687 | R92: 86.61270345 | S92: 86.63049618 | T92: 85.65979395 | U92: 84.75624671 | V92: 82.92301654 | W92: 83.07018568
E93: Coincident | Q93: 75.88985449 | R93: 75.74044908 | S93: 75.41969041 | T93: 74.73899799 | U93: 74.89866414 | V93: 73.28790258 | W93: 73.42709652
B94: Blanche | C94: CONNECTION POINT RATING | D94: MVA | E94: Non-coincident | Q94: 134.8 | R94: 134.8 | S94: 134.8 | T94: 134.8 | U94: 134.8 | V94: 134.8 | W94: 134.8
E95: Coincident | Q95: 134.8 | R95: 134.8 | S95: 134.8 | T95: 134.8 | U95: 134.8 | V95: 134.8 | W95: 134.8
C96: WINTER/SUMMER PEAKING | E96: Non-coincident | Q96: Summer | R96: Summer | S96: Summer | T96: Summer | U96: Summer | V96: Summer | W96: Summer
E97: Coincident | Q97: Summer | R97: Summer | S97: Summer | T97: Summer | U97: Summer | V97: Summer | W97: Summer
C98: ADJUSTMENTS - EMBEDDED GENERATION | D98: MW | E98: Non-coincident | Q98: 1.08950911 | R98: 1.184502695 | S98: 1.285928918 | T98: 1.37119875 | U98: 1.455720602 | V98: 1.542187205 | W98: 1.627157845
E99: Coincident | Q99: 1.08950911 | R99: 1.184502695 | S99: 1.285928918 | T99: 1.37119875 | U99: 1.455720602 | V99: 1.542187205 | W99: 1.627157845
C100: WEATHER CORRECTED MD 10% POE | D100: MW | E100: Non-coincident | Q100: 33.79660062 | R100: 33.49282593 | S100: 33.30409152 | T100: 32.16628893 | U100: 31.12945029 | V100: 30.13602564 | W100: 29.42717541
E101: Coincident | Q101: 29.80034098 | R101: 29.25170897 | S101: 29.30288205 | T101: 28.08603965 | U101: 27.46970924 | V101: 26.59606597 | W101: 25.97371231
C102: WEATHER CORRECTED MD 10% POE | D102: MVA | E102: Non-coincident | Q102: 35.17907401 | R102: 34.8628732 | S102: 34.66641848 | T102: 33.48207329 | U102: 32.40282205 | V102: 31.36876068 | W102: 30.63091443
E103: Coincident | Q103: 31.0193446 | R103: 30.44827042 | S103: 30.50153676 | T103: 29.23491858 | U103: 28.59337675 | V103: 27.6839965 | W103: 27.03618503
C104: WEATHER CORRECTED MD 50% POE | D104: MW | E104: Non-coincident | Q104: 31.95924629 | R104: 31.61477891 | S104: 31.01390186 | T104: 30.06760633 | U104: 29.15883822 | V104: 27.95606085 | W104: 27.44309957
E105: Coincident | Q105: 27.37591286 | R105: 26.81895517 | S105: 26.19242903 | T105: 25.44922287 | U105: 24.9964305 | V105: 23.96837559 | W105: 23.531508
C106: WEATHER CORRECTED MD 50% POE | D106: MVA | E106: Non-coincident | Q106: 33.26656143 | R106: 32.90800337 | S106: 32.28254703 | T106: 31.29754263 | U106: 30.35160072 | V106: 29.09962291 | W106: 28.56567859
E107: Coincident | Q107: 28.49574356 | R107: 27.91600313 | S107: 27.2638485 | T107: 26.49024099 | U107: 26.01892682 | V107: 24.94881862 | W107: 24.49408066
B108: Brinkworth | C108: CONNECTION POINT RATING | D108: MVA | E108: Non-coincident | Q108: 24.6 | R108: 24.6 | S108: 24.6 | T108: 24.6 | U108: 24.6 | V108: 24.6 | W108: 24.6
E109: Coincident | Q109: 24.6 | R109: 24.6 | S109: 24.6 | T109: 24.6 | U109: 24.6 | V109: 24.6 | W109: 24.6
C110: WINTER/SUMMER PEAKING | E110: Non-coincident | Q110: Summer | R110: Summer | S110: Summer | T110: Summer | U110: Summer | V110: Summer | W110: Summer
E111: Coincident | Q111: Summer | R111: Summer | S111: Summer | T111: Summer | U111: Summer | V111: Summer | W111: Summer
C112: ADJUSTMENTS - EMBEDDED GENERATION | D112: MW | E112: Non-coincident | Q112: 0.304969446 | R112: 0.331559532 | S112: 0.359950207 | T112: 0.383818473 | U112: 0.407477369 | V112: 0.431680628 | W112: 0.455465146
E113: Coincident | Q113: 0.304969446 | R113: 0.331559532 | S113: 0.359950207 | T113: 0.383818473 | U113: 0.407477369 | V113: 0.431680628 | W113: 0.455465146
C114: WEATHER CORRECTED MD 10% POE | D114: MW | E114: Non-coincident | Q114: 4.815305954 | R114: 4.78876681 | S114: 4.778140715 | T114: 4.632483427 | U114: 4.511873191 | V114: 4.39658801 | W114: 4.321766381
E115: Coincident | Q115: 3.310149103 | R115: 3.260608059 | S115: 3.277533487 | T115: 3.153398645 | U115: 3.103951683 | V115: 3.024981008 | W115: 2.973871448
C116: WEATHER CORRECTED MD 10% POE | D116: MVA | E116: Non-coincident | Q116: 4.841908987 | R116: 4.815223222 | S116: 4.804538422 | T116: 4.658076423 | U116: 4.536799854 | V116: 4.420877759 | W116: 4.345642765
E117: Coincident | Q117: 3.328436624 | R117: 3.278621881 | S117: 3.295640816 | T117: 3.170820169 | U117: 3.121100028 | V117: 3.041693066 | W117: 2.990301141
C118: WEATHER CORRECTED MD 50% POE | D118: MW | E118: Non-coincident | Q118: 4.403022974 | R118: 4.375217568 | S118: 4.312624663 | T118: 4.212016655 | U118: 4.116255146 | V118: 3.977733437 | W118: 3.936167652
E119: Coincident | Q119: 2.940346345 | R119: 2.893522181 | S119: 2.83946478 | T119: 2.77933698 | U119: 2.750967898 | V119: 2.658727068 | W119: 2.631271384
C120: WEATHER CORRECTED MD 50% POE | D120: MVA | E120: Non-coincident | Q120: 4.427348275 | R120: 4.399389253 | S120: 4.336450542 | T120: 4.235286707 | U120: 4.138996145 | V120: 3.999709149 | W120: 3.957913725
E121: Coincident | Q121: 2.956590823 | R121: 2.909507971 | S121: 2.855151919 | T121: 2.794691932 | U121: 2.76616612 | V121: 2.673415688 | W121: 2.645808321
B122: Clare North | C122: CONNECTION POINT RATING | D122: MVA | E122: Non-coincident | Q122: 50 | R122: 50 | S122: 50 | T122: 50 | U122: 50 | V122: 50 | W122: 50
E123: Coincident | Q123: 50 | R123: 50 | S123: 50 | T123: 50 | U123: 50 | V123: 50 | W123: 50
C124: WINTER/SUMMER PEAKING | E124: Non-coincident | Q124: Summer | R124: Summer | S124: Summer | T124: Summer | U124: Summer | V124: Summer | W124: Summer
E125: Coincident | Q125: Summer | R125: Summer | S125: Summer | T125: Summer | U125: Summer | V125: Summer | W125: Summer
C126: ADJUSTMENTS - EMBEDDED GENERATION | D126: MW | E126: Non-coincident | Q126: 0.625170439 | R126: 0.67967864 | S126: 0.737877948 | T126: 0.786806569 | U126: 0.835305992 | V126: 0.884921331 | W126: 0.933678273
E127: Coincident | Q127: 0.625170439 | R127: 0.67967864 | S127: 0.737877948 | T127: 0.786806569 | U127: 0.835305992 | V127: 0.884921331 | W127: 0.933678273
C128: WEATHER CORRECTED MD 10% POE | D128: MW | E128: Non-coincident | Q128: 13.37540551 | R128: 13.46170917 | S128: 13.59446311 | T128: 13.3351262 | U128: 13.10770293 | V128: 12.88886126 | W128: 12.78362337
E129: Coincident | Q129: 12.57290681 | R129: 12.53372555 | S129: 12.75132549 | T129: 12.41272693 | U129: 12.33075663 | V129: 12.12624948 | W129: 12.02873453
C130: WEATHER CORRECTED MD 10% POE | D130: MVA | E130: Non-coincident | Q130: 14.16339064 | R130: 14.25477871 | S130: 14.39535358 | T130: 14.12073835 | U130: 13.8799169 | V130: 13.64818261 | W130: 13.53674484
E131: Coincident | Q131: 13.31361434 | R131: 13.2721248 | S131: 13.5025442 | T131: 13.14399779 | U131: 13.05719837 | V131: 12.84064309 | W131: 12.73738325
C132: WEATHER CORRECTED MD 50% POE | D132: MW | E132: Non-coincident | Q132: 12.14048435 | R132: 12.19970657 | S132: 12.1577771 | T132: 11.97479076 | U132: 11.79928866 | V132: 11.49513766 | W132: 11.46703417
E133: Coincident | Q133: 11.08635088 | R133: 11.03269508 | S133: 10.94596537 | T133: 10.80498401 | U133: 10.78311236 | V133: 10.50648213 | W133: 10.48209835
C134: WEATHER CORRECTED MD 50% POE | D134: MVA | E134: Non-coincident | Q134: 12.85571658 | R134: 12.91842776 | S134: 12.8740281 | T134: 12.68026148 | U134: 12.49442004 | V134: 12.17235058 | W134: 12.14259143
E135: Coincident | Q135: 11.73948096 | R135: 11.68266414 | S135: 11.59082491 | T135: 11.44153792 | U135: 11.41837775 | V135: 11.1254504 | W135: 11.0996301
B136: Dalrymple | C136: CONNECTION POINT RATING | D136: MVA | E136: Non-coincident | Q136: 25 | R136: 25 | S136: 25 | T136: 25 | U136: 25 | V136: 25 | W136: 25
E137: Coincident | Q137: 25 | R137: 25 | S137: 25 | T137: 25 | U137: 25 | V137: 25 | W137: 25
C138: WINTER/SUMMER PEAKING | E138: Non-coincident | Q138: Summer | R138: Summer | S138: Summer | T138: Summer | U138: Summer | V138: Summer | W138: Summer
E139: Coincident | Q139: Summer | R139: Summer | S139: Summer | T139: Summer | U139: Summer | V139: Summer | W139: Summer
C140: ADJUSTMENTS - EMBEDDED GENERATION | D140: MW | E140: Non-coincident | Q140: 0.623264132 | R140: 0.677606123 | S140: 0.735627966 | T140: 0.784407392 | U140: 0.832758927 | V140: 0.882222976 | W140: 0.930831246
E141: Coincident | Q141: 0.623264132 | R141: 0.677606123 | S141: 0.735627966 | T141: 0.784407392 | U141: 0.832758927 | V141: 0.882222976 | W141: 0.930831246
C142: WEATHER CORRECTED MD 10% POE | D142: MW | E142: Non-coincident | Q142: 7.864841453 | R142: 9.92483678 | S142: 9.973139764 | T142: 9.733512839 | U142: 9.518119257 | V142: 9.310622898 | W142: 9.18695148
E143: Coincident | Q143: 5.871965029 | R143: 7.339527456 | S143: 7.43001902 | T143: 7.196219911 | U143: 7.11179169 | V143: 6.957535587 | W143: 6.865973853
C144: WEATHER CORRECTED MD 10% POE | D144: MVA | E144: Non-coincident | Q144: 8.617207623 | R144: 10.87426615 | S144: 10.92718989 | T144: 10.66463978 | U144: 10.42864123 | V144: 10.20129536 | W144: 10.06579329
E145: Coincident | Q145: 6.433688729 | R145: 8.041641058 | S145: 8.140789223 | T145: 7.884624432 | U145: 7.792119642 | V145: 7.623107097 | W145: 7.522786388
C146: WEATHER CORRECTED MD 50% POE | D146: MW | E146: Non-coincident | Q146: 6.968931978 | R146: 9.015692746 | S146: 8.942257037 | T146: 8.764882998 | U146: 8.593183584 | V146: 8.329314066 | W146: 8.267010157
E147: Coincident | Q147: 5.054562619 | R147: 6.475839588 | S147: 6.394576556 | T147: 6.281553561 | U147: 6.237450958 | V147: 6.046682107 | W147: 6.002198363
C148: WEATHER CORRECTED MD 50% POE | D148: MVA | E148: Non-coincident | Q148: 7.635593689 | R148: 9.878151609 | S148: 9.797690896 | T148: 9.603348908 | U148: 9.415224391 | V148: 9.126112598 | W148: 9.057848575
E149: Coincident | Q149: 5.538092 | R149: 7.095331113 | S149: 7.0062943 | T149: 6.882459303 | U149: 6.834137759 | V149: 6.625119585 | W149: 6.576380439
C150: CONNECTION POINT RATING | D150: MVA | E150: Non-coincident
E151: Coincident
C152: WINTER/SUMMER PEAKING | E152: Non-coincident
E153: Coincident
C154: ADJUSTMENTS - EMBEDDED GENERATION | D154: MW | E154: Non-coincident
E155: Coincident
C156: WEATHER CORRECTED MD 10% POE | D156: MW | E156: Non-coincident
E157: Coincident
C158: WEATHER CORRECTED MD 10% POE | D158: MVA | E158: Non-coincident
E159: Coincident
C160: WEATHER CORRECTED MD 50% POE | D160: MW | E160: Non-coincident
E161: Coincident
C162: WEATHER CORRECTED MD 50% POE | D162: MVA | E162: Non-coincident
E163: Coincident
B164: Dorrien | C164: CONNECTION POINT RATING | D164: MVA | E164: Non-coincident | Q164: 216 | R164: 216 | S164: 216 | T164: 216 | U164: 216 | V164: 216 | W164: 216
E165: Coincident | Q165: 216 | R165: 216 | S165: 216 | T165: 216 | U165: 216 | V165: 216 | W165: 216
C166: WINTER/SUMMER PEAKING | E166: Non-coincident | Q166: Summer | R166: Summer | S166: Summer | T166: Summer | U166: Summer | V166: Summer | W166: Summer
E167: Coincident | Q167: Summer | R167: Summer | S167: Summer | T167: Summer | U167: Summer | V167: Summer | W167: Summer
C168: ADJUSTMENTS - EMBEDDED GENERATION | D168: MW | E168: Non-coincident | Q168: 2.407439103 | R168: 2.617342141 | S168: 2.841459086 | T168: 3.029875987 | U168: 3.216640108 | V168: 3.407701457 | W168: 3.595457246
E169: Coincident | Q169: 27.4074391 | R169: 27.61734214 | S169: 27.84145909 | T169: 28.02987599 | U169: 28.21664011 | V169: 28.40770146 | W169: 28.59545725
C170: WEATHER CORRECTED MD 10% POE | D170: MW | E170: Non-coincident | Q170: 61.03957769 | R170: 60.61640611 | S170: 60.40854875 | T170: 58.48437367 | U170: 56.74536289 | V170: 55.08240679 | W170: 53.93466539
E171: Coincident | Q171: 51.9243326 | R171: 51.07411201 | S171: 51.27696796 | T171: 49.26523721 | U171: 48.30856951 | V171: 46.89812955 | W171: 45.92663495
C172: WEATHER CORRECTED MD 10% POE | D172: MVA | E172: Non-coincident | Q172: 64.36200183 | R172: 63.91579673 | S172: 63.69662556 | T172: 61.66771637 | U172: 59.8340501 | V172: 58.08057821 | W172: 56.8703645
E173: Coincident | Q173: 54.75060798 | R173: 53.85410933 | S173: 54.06800686 | T173: 51.94677629 | U173: 50.93803655 | V173: 49.45082541 | W173: 48.42645173
C174: WEATHER CORRECTED MD 50% POE | D174: MW | E174: Non-coincident | Q174: 56.55136472 | R174: 56.10088904 | S174: 55.20000883 | T174: 53.68699183 | U174: 52.2419899 | V174: 50.26464403 | W174: 49.52120289
E175: Coincident | Q175: 46.73329043 | R175: 45.91267937 | S175: 44.97484794 | T175: 43.83852457 | U175: 43.20546457 | V175: 41.5753989 | W175: 40.96556723
C176: WEATHER CORRECTED MD 50% POE | D176: MVA | E176: Non-coincident | Q176: 59.62949249 | R176: 59.15449712 | S176: 58.20458141 | T176: 56.60920991 | U176: 55.08555558 | V176: 53.00058148 | W176: 52.21667435
E177: Coincident | Q177: 49.27701399 | R177: 48.41173653 | S177: 47.42285833 | T177: 46.22468413 | U177: 45.55716626 | V177: 43.83837505 | W177: 43.19534984
B178: Eastern Suburbs | C178: CONNECTION POINT RATING | D178: MVA | E178: Non-coincident | Q178: 1675 | R178: 1675 | S178: 1675 | T178: 1675 | U178: 1675 | V178: 1675 | W178: 1675
E179: Coincident | Q179: 1675 | R179: 1675 | S179: 1675 | T179: 1675 | U179: 1675 | V179: 1675 | W179: 1675
C180: WINTER/SUMMER PEAKING | E180: Non-coincident | Q180: Summer | R180: Summer | S180: Summer | T180: Summer | U180: Summer | V180: Summer | W180: Summer
E181: Coincident | Q181: Summer | R181: Summer | S181: Summer | T181: Summer | U181: Summer | V181: Summer | W181: Summer
C182: ADJUSTMENTS - EMBEDDED GENERATION | D182: MW | E182: Non-coincident | Q182: 22.4314994 | R182: 24.38728714 | S182: 26.47551405 | T182: 28.23110304 | U182: 29.97129214 | V182: 31.75152098 | W182: 33.50095001
E183: Coincident | Q183: 22.4314994 | R183: 24.38728714 | S183: 26.47551405 | T183: 28.23110304 | U183: 29.97129214 | V183: 31.75152098 | W183: 33.50095001
C184: WEATHER CORRECTED MD 10% POE | D184: MW | E184: Non-coincident | Q184: 722.0540828 | R184: 716.5435124 | S184: 713.2581194 | T184: 689.3533093 | U184: 667.3059721 | V184: 646.0479476 | W184: 630.8522395
E185: Coincident | Q185: 685.8028871 | R185: 674.098541 | S185: 675.9908805 | T185: 648.3548711 | U185: 634.2916434 | V185: 614.1543654 | W185: 599.7834312
C186: WEATHER CORRECTED MD 10% POE | D186: MVA | E186: Non-coincident | Q186: 739.3245037 | R186: 733.6821289 | S186: 730.3181544 | T186: 705.8415781 | U186: 683.2669026 | V186: 661.5004189 | W186: 645.9412528
E187: Coincident | Q187: 702.2062352 | R187: 690.2219392 | S187: 692.1595406 | T187: 663.8625205 | U187: 649.462922 | V187: 628.8439914 | W187: 614.1293266
C188: WEATHER CORRECTED MD 50% POE | D188: MW | E188: Non-coincident | Q188: 660.3014607 | R188: 655.128327 | S188: 644.3743609 | T188: 626.1053565 | U188: 608.2659289 | V188: 584.0989965 | W188: 574.2678141
E189: Coincident | Q189: 609.2502366 | R189: 598.6313416 | S189: 586.1907845 | T189: 570.8269333 | U189: 561.671823 | V189: 539.4242319 | W189: 530.4109016
C190: WEATHER CORRECTED MD 50% POE | D190: MVA | E190: Non-coincident | Q190: 676.094854 | R190: 670.797987 | S190: 659.7868026 | T190: 641.0808318 | U190: 622.8147125 | V190: 598.0697443 | W190: 588.0034152
E191: Coincident | Q191: 623.8225633 | R191: 612.9496808 | S191: 600.2115647 | T191: 584.4802338 | U191: 575.1061474 | V191: 552.3264282 | W191: 543.097513
B192: Hummocks | C192: CONNECTION POINT RATING | D192: MVA | E192: Non-coincident | Q192: 50 | R192: 50 | S192: 50 | T192: 50 | U192: 50 | V192: 50 | W192: 50
E193: Coincident | Q193: 50 | R193: 50 | S193: 50 | T193: 50 | U193: 50 | V193: 50 | W193: 50
C194: WINTER/SUMMER PEAKING | E194: Non-coincident | Q194: Summer | R194: Summer | S194: Summer | T194: Summer | U194: Summer | V194: Summer | W194: Summer
E195: Coincident | Q195: Summer | R195: Summer | S195: Summer | T195: Summer | U195: Summer | V195: Summer | W195: Summer
C196: ADJUSTMENTS - EMBEDDED GENERATION | D196: MW | E196: Non-coincident | Q196: 0.535605856 | R196: 0.582304979 | S196: 0.632166406 | T196: 0.674085305 | U196: 0.715636493 | V196: 0.758143727 | W196: 0.799915542
E197: Coincident | Q197: 0.535605856 | R197: 0.582304979 | S197: 0.632166406 | T197: 0.674085305 | U197: 0.715636493 | V197: 0.758143727 | W197: 0.799915542
C198: WEATHER CORRECTED MD 10% POE | D198: MW | E198: Non-coincident | Q198: 14.668468 | R198: 14.80479338 | S198: 14.99288193 | T198: 14.74835806 | U198: 14.53791169 | V198: 14.33540257 | W198: 14.25773718
E199: Coincident | Q199: 13.14637532 | R199: 13.14240535 | S199: 13.40821367 | T199: 13.08899418 | U199: 13.03940255 | V199: 12.85921252 | W199: 12.79113576
C200: WEATHER CORRECTED MD 10% POE | D200: MVA | E200: Non-coincident | Q200: 16.0926351 | R200: 16.24219638 | S200: 16.44854651 | T200: 16.18028173 | U200: 15.94940304 | V200: 15.72723223 | W200: 15.64202628
E201: Coincident | Q201: 14.42276188 | R201: 14.41840646 | S201: 14.71002221 | T201: 14.35980958 | U201: 14.30540307 | V201: 14.10771833 | W201: 14.03303197
C202: WEATHER CORRECTED MD 50% POE | D202: MW | E202: Non-coincident | Q202: 13.83506135 | R202: 13.98952404 | S202: 14.027733 | T202: 13.90152335 | U202: 13.78157062 | V202: 13.50748836 | W202: 13.55457061
... 4679 more rows

Sheet 7.1 Policies and Procedures
B1: =(LOOKUP(dms_Model,dms_Model_List,dms_Worksheet_List)) -> REGULATORY REPORTING STATEMENT
B2: =INDEX(dms_TradingNameFull_List,MATCH(dms_TradingName,dms_TradingName_List)) -> ElectraNet
B3: =IF(SUM(dms_SingleYear_Model)>0,CRY,CONCATENATE(FRCP_y1," to ",dms_MultiYear_FinalYear_Result)) -> 2018-19 to 2022-23
B4: 7.1 PLANS, POLICIES, PROCEDURES AND STRATEGIES
B6: Instructions
B7: =CONCATENATE(dms_TradingName, " must list and provide a brief description of key internal plans, "&"policies, procedures or strategies that are used by it to plan and conduct its day to day operations and that have been relied upon in the development of its regulatory proposal. "&dms_TradingName," must identify any internal plans, policies, procedures and strategies that have changed in the current regulatory control period "&"or that are expected to change before the next regulatory control period where the change has been identified as a step change.") -> ElectraNet must list and provide a brief description of key internal plans, policies, procedures or strategies that are used by it to plan and conduct its day to day operations and that have been relied upon in the development of its regulatory proposal. ElectraNet must identify any internal plans, policies, procedures and strategies that have changed in the current regulatory control period or that are expected to change before the next regulatory control period where the change has been identified as a step change.
B11: 7.1.1 - PLANS, POLICIES, PROCEDURES AND STRATEGIES
C12: Brief description | D12: Relevance to regulatory proposal | E12: Expenditure impact
C13: Description of the plan, policy, procedure or strategy. | D13: Identify the element of the proposal/supporting documents that the policy, plan, procedure or strategy is relevant to e.g. replacement capex, capacity utilisation thresholds, opex | E13: Is this policy, plan or procedure identified in the response to section 4 'Step Changes' of the notice (yes or no)?
B14: Corporate
B15: Health Safety and Sustainability Policy | C15: This policy provides for the establishment of practices and processes through the implementation of a WHS Safety Manual that aims to protect and promote the safety and well-being of workers and others. | D15: Forecast Capital and Operating Expenditure | E15: No
B16: Environmental Management Policy | C16: This policy sets out ElectraNet's commitment to an Environmental Management System focusing on improved environmental performance in accordance with relevant legislation, standards and codes. | D16: Forecast Capital and Operating Expenditure | E16: No
B17: Bushfire Risk Management Guideline | C17: This document establishes ElectraNet's approach for bushfire risk management in planing and operating the network | D17: Forecast Capital and Operating Expenditure | E17: No
B18: Governance framework
B19: Corporate Governance Policy | C19: This policy provides the foundation for corporate governance within ElectraNet, demonstrating ElectraNet's commitment to governance practices that ensure accountability, adequate controls and reporting. | D19: Forecast Capital and Operating Expenditure | E19: No
B20: Risk Management Policy | C20: This policy sets out a structured approach to risk management acknowledging that the effective management of risk is a key prerequisite to the achievement of ElectraNet's strategic and operational objectives. | D20: Forecast Capital and Operating Expenditure | E20: No
B21: Insurance Policy | C21: This policy provides a framework for the cost effective transfer of risk to insurers. | D21: Forecast Capital and Operating Expenditure | E21: No
B22: Accounting policies, procedures and methodologies (including a capitalisation policy, depreciation policy and an approved expenditure allocation methodology)
B23: Cost Allocation Methodology | C23: This AER approved policy details the principles for attributing costs to, and allocating costs between or within, the categories of transmission services under the Rules. | D23: Forecast Capital Expenditure | E23: No
B24: Capitalisation Policy | C24: This policy establishes a framework for the capitalisation of property, plant, equipment and intangible assets. | D24: Forecast Capital Expenditure | E24: No
B25: Asset Disposal Policy | C25: This policy establishes a framework for the disposal of assets within ElectraNet for accounting, taxation and regulatory purposes. | D25: Regulatory Asset Base | E25: No
B26: Depreciation and Amortisation of Asset Policy | C26: This policy is to establish a framework for the depreciation and amortisation of assets at ElectraNet for accounting, regulatory and taxation purposes. | D26: Depreciation, Regulatory Asset Base | E26: No
B27: Asset management plan or equivalent documentation
B28: Asset Management Policies
B29: Asset Management Policy | C29: This policy sets out ElectraNet’s commitments and expectations for decisions, activities and behaviours concerning asset management. | D29: Forecast Capital and Operating Expenditure | E29: No
B30: Asset Management Strategies
B31: Strategic Asset Management Plan (SAMP) | C31: A SAMP is defined by ISO 55000 as documented “information that specifies how organisational objectives are to be converted into asset management objectives, the approach for developing asset management plans, and the role of the asset management system in supporting achievement of the asset management objectives”It is a high level strategic plan that documents the relationship between the organisational objectives and the asset management objectives, defines “the framework required to achieve the asset management objectives” and “should be used to develop the asset management plan(s).” | D31: Forecast Capital and Operating Expenditure | E31: No
B32: Asset Class Strategies (ACS) - Instrument Transformers - Line conductors - Disconnectors and Earth Switches - Secondary Systems - Protection - Line Insulators - Circuit Breakers - DC Supplies | C32: The purpose of each ACS is to define the lifecyle asset management of a particular class of asset, provide strategic guidance for the development and implemention of each stage of the asset lifecycle and to explain the medium and long term strategy for development of that asset class. | D32: Forecast Capital and Operating Expenditure | E32: No
B33: Asset Management Plans
B34: Operational Technology Systems Development Plan | C34: This document outlines the plan to transform ElectraNet’s Operational Technology Systems to ensure it can meet future demands and help reduce the lifecycle costs of ElectraNet’s assets. It provides the context for the management of the Operational Technology Systems. | D34: Forecast Capital and Operating Expenditure | E34: No
B35: Operational Data Network Development Plan | C35: This plan provides the basis for the current and ongoing development of the operational data network, infrastructure and systems, as well as the underlying telecommunications that link the substation to the main and backup control rooms and data centres. | D35: Forecast Capital and Operating Expenditure | E35: No
B36: Asset Data and Information Management Plan | C36: This plan provides a framework for improving asset data and information management to support driving best possible asset management and investment decisions. | D36: Forecast Capital Expenditure, Forecast Operating Expenditure | E36: No
B37: Capital expenditure policies and procedures (including capex approval policies and procedures and replacement policy)
B38: Expenditure Forecasting Methodolgy | C38: This document sets out ElectraNet's (capital and operating) expenditure forecasting methodology | D38: Forecast Capital and Operating Expenditure | E38: No
B39: Project Management System | C39: This system ensures appropriate controls are in place and in use across ElectraNet to achieve optimum outcomes in the delivery of capex projects. | D39: Forecast Capital Expenditure | E39: No
B40: Line Design Manual | C40: This document sets out the design standards for ElectraNet's overhead transmission line structures. | D40: Forecast Capital Expenditure | E40: No
B41: Substation Design Manual | C41: This document sets out the design requirements for substations. | D41: Forecast Capital Expenditure | E41: No
B42: Transmission Asset Life Cycle (TALC) | C42: This document sets out a framework for understanding substation and transmission line asset lifecycle indicators. It defines processes for asset condition and provides information to asset cost / risk optimisation decision support tools and informs asset replacement decision making. | D42: Replacement Forecast Capital Expenditure | E42: No
B43: Internal standards for network planning, design, maintenance and operation
B44: Transmission Annual Planning Report 2016 (T-APR) | C44: This report provides information to interested parties on network developments and potential opportunities for provision of demand management solutions. It is important in providing context for future expenditure. In addition the T-APR is an important consultation and network planning document, informing stakeholders of future network developments and proposed augmentations. | D44: Forecast Capital and Operating Expenditure | E44: No
B45: RIT-T Handbook | C45: This Handbook documents the assessment approaches and methods used in applying the RIT-T in accordance with the requirements of the Rules and AER RIT-T Guideline. | D45: Forecast Capital and Operating Expenditure | E45: No
B46: Guideline for Undertaking Cost-Benefit Analyses | C46: This guideline sets out the economic evaluation framework used to assess and identify preferred options to address identified needs. | D46: Forecast Capital and Operating Expenditure | E46: No
B47: Risk cost evaluation framework | C47: This framework sets out a systematic process for undertaking detailed risk assessments in our asset management decision making, as a key input to the economic analysis of available options to address risk. | D47: Forecast Capital and Operating Expenditure | E47: No
B48: Procurement and contracting out policies
B49: Procurement Business Guideline | C49: These guidelines establish high level directions and principles in relation to the procurement of services and materials. It defines the way that procurement activities are undertaken in ElectraNet in relataion to externally sourced services and materials. | D49: Forecast Capital and Operating Expenditure | E49: No
B50: Information technology policies or strategies
B51: IT Strategy 2016-17 to 2022-23 | C51: Describes ElectraNet's proposed ICT strategy to 2023 and the overal IT Systems. | D51: Forecast Capital and Operating Expenditure | E51: No
B52: Demand management policies or strategies
B53: Non-Network Solutions Policy | C53: This policy describes the principles and approach to the identification and assessment of non-network solutions including demand management options. | D53: Forecast Capital Expenditure, Contingent Projects | E53: No
B54: Self insurance guidelines or policy
B55: Self Insurance Board Resolution | C55: This resolution documents the specific risks that ElectraNet has resolved to manage through its self insurance allowance. | D55: Forecast Operating Expenditure | E55: No
B56: Land and easement acquisition polices
B57: Strategic Land Acquisition Policy | C57: The purpose of the policy is to develop a practical framework for establishing ElectraNet’s land acquisition requirements in a timely manner in accordance with its legislative obligations. The framework will enable ElectraNet to forecast, plan for and secure land and easements in order to meet its service delivery obligations at least long-run cost. | D57: Forecast Capital Expenditure | E57: No
B58: Asset security plans and policies
B59: Information Security Policy | C59: The purpose of this document is to provide a high-level policy to ensure a secure ICT environment at ElectraNet, describing how IT security is managed. | D59: Forecast Operating Expenditure | E59: No
B60: Disaster recovery policy
B61: Business Continuity Plan | C61: This plan provides the mechanisms to ensure ElectraNet has the capability, flexibility and resilience to deal with unplanned and extended disruptions to normal business operations at key business locations, specifically occupied sites. | D61: Operating and Capital Expenditure | E61: No

Sheet 7.2 Contingent projects
B1: =(LOOKUP(dms_Model,dms_Model_List,dms_Worksheet_List)) -> REGULATORY REPORTING STATEMENT
B2: =INDEX(dms_TradingNameFull_List,MATCH(dms_TradingName,dms_TradingName_List)) -> ElectraNet
B3: =IF(SUM(dms_SingleYear_Model)>0,CRY,CONCATENATE(FRCP_y1," to ",dms_MultiYear_FinalYear_Result)) -> 2018-19 to 2022-23
B4: 7.2 CONTINGENT PROJECTS
B7: Instructions
B8: =CONCATENATE(dms_TradingName," is required to populate all input cells (yellow) in table 7.2.1 presented below. Additional rows may be added by ",dms_TradingName," if required." ) -> ElectraNet is required to populate all input cells (yellow) in table 7.2.1 presented below. Additional rows may be added by ElectraNet if required.
B10: 7.2.1 - PROPOSED CONTINGENT PROJECTS FOR THE FORTHCOMING REGULATORY CONTROL PERIOD
B11: Proposed contingent project name | C11: Proposed contingent capital expenditure ($0's, nominal) | D11: Proposed trigger events | E11: =CONCATENATE("Proposed MAR for ", FRCP_y1," ($0's, nominal)") -> Proposed MAR for 2018-19 ($0's, nominal) | F11: =CONCATENATE("5 per cent of the ", FRCP_y1," ($0's, nominal) MAR") -> 5 per cent of the 2018-19 ($0's, nominal) MAR
B12: Eyre Peninsula Reinforcement | C12: 200000000 | D12: Successful completion of RIT-T,NER 5.16.6 determination (if applicable) by the AER,ElectraNet Board Commitment | E12: 312313393.2 | F12: =+E12*0.05 -> 15615669.66
B13: South Australian Energy Transformation | C13: 200,000,000-500,000,000 | D13: Successful completion of RIT-T (demonstrating positive net market benefits; and/or addressing a reliability corrective action), NER 5.16.6 determination (if applicable) by the AER, ElectraNet Board Commitment | E13: =+$E$12 -> 312313393.2 | F13: =+E13*0.05 -> 15615669.66
B14: Upper North-East Line Reinforcement | C14: 60000000 | D14: Customer commitment for additional load to connect to the transmission network causing the Davenport to Leigh Creek 132kV line to exceed its thermal limit of 10 MVA, Sucessful completion of RIT-T, NER 5.16.6 determination by the AERElectraNet Board Commitment | E14: =+$E$12 -> 312313393.2 | F14: 15615669.66
B15: Upper North-West Line Reinforcement | C15: 110000000 | D15: Customer commitment for additional load to connect to the transmission network causing the Davenport to Pimba 132kV line to exceed its thermal limit of 76 MVA, successful completion of RIT-T, NER 5.16.6 determination by the AER, ElectraNet Board Commitment | E15: 312313393.2 | F15: 15615669.66
B16: Main Grid System Strength Support | C16: 60,000,000-80,000,000 | D16: Confirmation by AEMO of the existence of an Network Support and Control Ancillary Services (NSCAS) gap relating to system strength, or other requirement for ElectraNet to address a system strength requirement, in the South Australian region, successful completion of RIT-T, NER 5.16.6 determination (if applicable) by the AER, ElectraNet Board Commitment | E16: 312313393.2 | F16: 15615669.66

Sheet 7.3 Obligations
B1: =(LOOKUP(dms_Model,dms_Model_List,dms_Worksheet_List)) -> REGULATORY REPORTING STATEMENT
B2: =INDEX(dms_TradingNameFull_List,MATCH(dms_TradingName,dms_TradingName_List)) -> ElectraNet
B3: =IF(SUM(dms_SingleYear_Model)>0,CRY,CONCATENATE(FRCP_y1," to ",dms_MultiYear_FinalYear_Result)) -> 2018-19 to 2022-23
B4: 7.3 OBLIGATIONS, REQUIREMENTS & STANDARDS
B6: There is ONE table on this worksheet. It has been sub-grouped for ease of navigation. See the Instructions sheet on how to group or ungroup data.
B8: Instructions
B9: =CONCATENATE("Outline those obligations and requirements that ",dms_TradingName, " identifies as having a material impact on expenditure requirements.") -> Outline those obligations and requirements that ElectraNet identifies as having a material impact on expenditure requirements.
B12: 7.3.1 - OBLIGATIONS OR REQUIREMENTS
C13: Brief description | D13: Relevance to regulatory proposal | E13: Expenditure impact
C14: Description of relevant obligations or requirements within the instrument (e.g. safety obligations, reliability targets) | D14: Identify what element of the proposal/supporting documents the obligation or requirement is relevant to e.g. replacement capex, capacity utilisation thresholds, opex | E14: Is the obligation or requirement identified in the response to section 4 'Step Changes' of the notice (yes or no)?
B15: Legislation
B16: National Electricity (South Australia) Act 1996 (SA) and Regulations and National Electricity Law (NEL) | C16: Electricity transmission entities have a large number of obligations under the NEL. The most significant obligations are to: register with AEMO as a "Registered Participant"; comply with the transmission determination that applies to the electricity transmission network services provided; provide the AER with necessary information or prepare, maintain or keep the information as is requested by the AER in either a "relevant notice" or a "regulatory information instrument"; provide information to the AER for the purpose of the preparation of ElectraNet's financial and operational performance ; comply with the guidelines established by AEMO in relation to the shedding and restoration of loads and AEMO directions in order to ensure the safety and security of the transmission network and broader national electricity system ; comply with a wide range of obligations relating to the determination and resolution of access disputes, comply with access determinations; and comply with the general obligation not to prevent or hinder the access of another person to a regulated network service. In addition the Act and Regulations cover such system operations functions that ElectraNet exercises. | D16: Regulatory Proposal and Forecast Operating Expenditure | E16: No
B17: Electricity Act 1996 (SA) | C17: This Act sets out a requirement for ElectraNet to comply with the terms of its transmission licence, requires vegetation clearance to be undertaken, and sets out obligations in relation to the access of land. | D17: Forecast Capital and Operating Expenditure | E17: No
B18: Electricity (General) Regulations 2012 (SA) | C18: These Regulations set out a range of obligations for electricity entities covering safety, design parameters, inspection and maintenance requirements for electricity transmission infrastructure. | D18: Forecast Capital and Operating Expenditure | E18: No
B19: Electricity (Prinicples of Vegetation Clearance ) Regulations 2010 | C19: These Regulations define clearance obligations and provide further detail on the principles and processes which ElectraNet must comply with in relation to vegetation impacting its transmission lines. | D19: Forecast Operating Expenditure | E19: No
B20: Workplace Health and Safety Act 2012 (SA) | C20: This Act sets out obligations for ElectraNet to maintain appropriate health and safety standards at its place of business to ensure the safety of workers and other persons and sets out safety related duties that must be complied with. | D20: Forecast Capital and Operating Expenditure | E20: No
B21: Workplace Health and Safety Regulations 2012 (SA) | C21: These Regulations set out detailed requirements in relation to the identification and management of hazards and risks to safety, high risk construction work and undertaking construction projects relevant to ElectraNet's business. | D21: Forecast Capital and Operating Expenditure | E21: No
B22: Return to Work Act 2014 and associated regulations | C22: This Act and Regulations set out obligations for employers in relation to worker recovery and return to work and as a self-insured employer is relevant to ElectraNet's obligation to pay self-insured fees. | D22: Forecast Operating Expenditure | E22: No
B23: Native Vegetation Act 1991 (SA) and associated regulations | C23: This Act sets out requirements for the clearing, conservation and management of native vegetation relevant to constructing and maintaining ElectraNet's transmission network. | D23: Forecast Capital and Operating Expenditure | E23: No
B24: Development Act 1993 (SA) and associated regulations | C24: This Act sets out the framework for obtaining development approval for ElectraNet's electricity transmission infrastructure and may contain conditions of approval that impact on ongoing operations. | D24: Forecast Capital and Operating Expenditure | E24: No
B25: Environment Protection Act 1993 (SA) and associated regulations | C25: This Act sets out the environmental requirements that ElectraNet must take into account and comply with when constructing, operating and maintaining its network infrastructure or in undertaking related operations. | D25: Forecast Capital and Operating Expenditure | E25: No
B26: Land Tax Act 1936 (SA) | C26: This Act requires the payment of a tax based on site values of land owned by ElectraNet. | D26: Forecast Operating Expenditure | E26: No
B27: Environmental Protection and Biodiversity Conservation Act 1999 (Cth) and associated regulations | C27: This Act aims to protect the environment, particularly related to environmentally sensitive species and habitats and matters of national environmental significance and is relevant when undertaking development activities or in relation to ongoing site management. | D27: Forecast Capital and Operating Expenditure | E27: No
B28: Fair Work Act and Regulations 2009 (Cth) | C28: This Act and Regulations are focused on providing a balanced framework for cooperative and productive workplace relations that promotes national economic prosperity and social inclusion for all Australians. | D28: Escalation Rates & Project Cost Escalation Forecast Capital and Operating Expenditure | E28: No
B29: Licences
B30: Electricity Transmission Licence | C30: Licence issued by the Essential Services Commission enabling ElectraNet to operate the transmission network in South Australia with conditions covering compliance with codes, guidelines and reporting obligations. | D30: Forecast Operating Expenditure | E30: No
B31: System Control Licence | C31: Licence issued by the Essential Services Commission to enable ElectraNet to exercise system control over the transmission network. | D31: Forecast Operating Expenditure | E31: No
B32: Rules
B33: National Electricity Rules Version 89 | C33: The National Electricity Rules govern the registration of ElectraNet as a network services provider, set out the process and requirements for lodgement and the content of ElectraNet's revenue proposal, the process for making a revenue determination, technical and operational requirements that ElectraNet must meet in relation to the transmission system, network augmentation processes, connection processes, obligations to co-operate with AEMO in relation to power system security and comply with the directions of AEMO to ensure the safety and security of the national electricity market, comply with confidentiality obligations and manage NER disputes in accordance with the framework set out in the Rules. | D33: Regulatory Proposal and Forecast Capital and Operating Expenditure | E33: No
B34: Orders
B35: Codes
B36: Electricity Transmission Code TC/09 (SA) | C36: This Code made by the Essential Services Commission of South Australia sets out quality of supply, reliability standards and design requirements. These obligations impacting on the planning, development and operation of the transmision network. | D36: Forecast Capital and Operating Expenditure | E36: No
B37: Applicable Codes made under the Work Health and Safety Act 2012 (SA) | C37: Compliance with these Codes relating to work, health and safety are relevant to ElectraNet's buiness and operations. | D37: Forecast Capital and Operating Expenditure | E37: No
B38: Guidelines
B39: AER's Better Regulation Guidelines and Schemes | C39: Guidelines relate to confidentiality, expenditure forecast assessment, cost allocation, capital expenditure incentives, rate of return and consumer engagement. Schemes include STPIS and EBSS. | D39: Regulatory Proposal | E39: No
B40: Default agreements
B41: Other

Sheet 7.4 Shared Assets
B1: =(LOOKUP(dms_Model,dms_Model_List,dms_Worksheet_List)) -> REGULATORY REPORTING STATEMENT
B2: =INDEX(dms_TradingNameFull_List,MATCH(dms_TradingName,dms_TradingName_List)) -> ElectraNet
B3: =IF(SUM(dms_SingleYear_Model)>0,CRY,CONCATENATE(FRCP_y1," to ",dms_MultiYear_FinalYear_Result)) -> 2018-19 to 2022-23
B4: 7.4 SHARED ASSETS
B6: 7.4.1 - TOTAL UNREGULATED REVENUE EARNED WITH SHARED ASSETS
B7: Name of shared asset unregulated service | C7: Description of shared assets used to provide the service | D7: Shared asset unregulated revenue ($0's, nominal) | L7: =CONCATENATE("Shared asset unregulated revenue ($0's, real ", dms_DollarReal,")") -> Shared asset unregulated revenue ($0's, real June 2018)
D8: =PRCP_y1 -> 2008-09 | E8: =PRCP_y2 -> 2009-10 | F8: =PRCP_y3 -> 2010-11 | G8: =PRCP_y4 -> 2011-12 | H8: =PRCP_y5 -> 2012-13 | I8: =CRCP_y1 -> 2013-14 | J8: =CRCP_y2 -> 2014-15 | K8: =CRCP_y3 -> 2015-16 | L8: =CRCP_y4 -> 2016-17 | M8: =CRCP_y5 -> 2017-18 | N8: =FRCP_y1 -> 2018-19 | O8: =FRCP_y2 -> 2019-20 | P8: =FRCP_y3 -> 2020-21 | Q8: =FRCP_y4 -> 2021-22 | R8: =FRCP_y5 -> 2022-23 | S8: =CONCATENATE("Total ",FRCP_y1, " to ", dms_MultiYear_FinalYear_Result) -> Total 2018-19 to 2022-23
B9: Telecommunications Revenue | C9: Transmission and telecommunications towers and telecommunication bandwidth | D9: 462231 | E9: 303466 | F9: 267065 | G9: 410970 | H9: 479328 | I9: 799983 | J9: 555494 | K9: 594775 | L9: 587601.1053 | M9: 587601.1053 | N9: 587601.1053 | O9: 587601.1053 | P9: 587601.1053 | Q9: 587601.1053 | R9: 587601.1053 | S9: =SUM(N9:R9) -> 2938005.527
S10: =SUM(N10:R10) -> 0
S11: 0
S12: 0
S13: 0
S14: 0
S15: 0
S16: 0
S17: 0
S18: 0
S19: 0
S20: =SUM(N20:R20) -> 0
S21: =SUM(N21:R21) -> 0
S22: =SUM(N22:R22) -> 0
S23: =SUM(N23:R23) -> 0
B25: 7.4.2 - SHARED ASSET UNREGULATED SERVICES - APPORTIONMENT METHODOLOGY
B26: Name of shared asset unregulated service for which revenues were apportioned | C26: Apportionment methodology

Sheet 7.5 EBSS
B1: =(LOOKUP(dms_Model,dms_Model_List,dms_Worksheet_List)) -> REGULATORY REPORTING STATEMENT
B2: =INDEX(dms_TradingNameFull_List,MATCH(dms_TradingName,dms_TradingName_List)) -> ElectraNet
B3: =IF(SUM(dms_SingleYear_Model)>0,CRY,CONCATENATE(FRCP_y1," to ",dms_MultiYear_FinalYear_Result)) -> 2018-19 to 2022-23
B4: 7.5 EBSS
B7: Instructions
B8: =CONCATENATE(dms_TradingName, " is required to populate all input cells (yellow) in table 7.5.2 presented below.") -> ElectraNet is required to populate all input cells (yellow) in table 7.5.2 presented below.
B9: Efficiency gains are calculated using the formulae below. Adjusted target and actual amounts are used to calculate the carry-over amounts. We will calculate the efficiency gain in 2012–13 (year 6) as follows: E6 = (F6 – A6) – (F5 – A5) + (F3 – A3) where F6 is the forecast opex we approved for year 6 (2012-13), and A6 is the actual opex incurred for year 6, and so on. The formula references year 3 (2010-11) because it is the base year used to forecast opex. Actual opex in 2017-18 should be set so that any incremental efficiency gains made after the base year sum to zero.
B12: CPI
C13: 2007-08 | D13: =PRCP_y1 -> 2008-09 | E13: =PRCP_y2 -> 2009-10 | F13: =PRCP_y3 -> 2010-11 | G13: =PRCP_y4 -> 2011-12 | H13: =PRCP_y5 -> 2012-13 | I13: =CRCP_y1 -> 2013-14 | J13: =CRCP_y2 -> 2014-15 | K13: =CRCP_y3 -> 2015-16 | L13: =CRCP_y4 -> 2016-17 | M13: =CRCP_y5 -> 2017-18
B14: ABS CPI index Jun qtr (old base) | C14: 164.6 | D14: 167 | E14: 172.1 | F14: 178.3 | G14: 180.4
B15: ABS CPI index Jun qtr (rebased index) | F15: 99.2 | G15: 100.4 | H15: 102.8 | I15: 105.9 | J15: 107.5 | K15: 108.6 | L15: =ROUND(K15*(1+L$16),1) -> 110.7 | M15: =ROUND(L15*(1+M$16),1) -> 112.9
B16: Inflation rate (per cent) | D16: =D14/C14-1 -> 0.01458080194 | E16: 0.03053892216 | F16: 0.03602556653 | G16: =G14/F14-1 -> 0.01177790241 | H16: =H15/G15-1 -> 0.02390438247 | I16: 0.03015564202 | J16: 0.01510859301 | K16: 0.01023255814 | L16: 0.0197 | M16: 0.0197
B17: Reconstructed cumulative index (2015=1) | C17: =D17/(1+D16) -> 0.8111407462 | D17: 0.8229678287 | E17: 0.8481003792 | F17: =F15/$M$15 -> 0.8786536758 | G17: =G15/$M$15 -> 0.8892825509 | H17: =H15/$M$15 -> 0.9105403012 | I17: =I15/$M$15 -> 0.9379982285 | J17: 0.952170062 | K17: 0.9619131975 | L17: 0.980513729 | M17: 1
B21: 7.5.1 - The carryover amounts that arise from applying the EBSS during the current regulatory control period
B22: 7.5.1.1 - Opex allowance applicable to EBSS (EBSS target)
C23: $m, Jun 2013 | G23: $m, Jun 2013 | M23: =CONCATENATE("$m, real ",dms_DollarReal) -> $m, real June 2018
C24: Previous period | G24: Current regulatory control period | M24: Previous period | Q24: Current regulatory control period
C25: =PRCP_y2 -> 2009-10 | D25: =PRCP_y3 -> 2010-11 | E25: =PRCP_y4 -> 2011-12 | F25: =PRCP_y5 -> 2012-13 | G25: =CRCP_y1 -> 2013-14 | H25: =CRCP_y2 -> 2014-15 | I25: =CRCP_y3 -> 2015-16 | J25: =CRCP_y4 -> 2016-17 | K25: =CRCP_y5 -> 2017-18 | M25: =PRCP_y2 -> 2009-10 | N25: =PRCP_y3 -> 2010-11 | O25: =PRCP_y4 -> 2011-12 | P25: =PRCP_y5 -> 2012-13 | Q25: =CRCP_y1 -> 2013-14 | R25: =CRCP_y2 -> 2014-15 | S25: =CRCP_y3 -> 2015-16 | T25: =CRCP_y4 -> 2016-17 | U25: =CRCP_y5 -> 2017-18
B26: Total opex allowance | D26: 67.8652177 | E26: 71.09334552 | F26: 73.79348921 | G26: 79.9638 | H26: 82.9998 | I26: 84.5007 | J26: 87.9411 | K26: 88.5937 | M26: =+C26/$H$17 -> 0 | N26: =+D26/$H$17 -> 74.53290933 | O26: =+E26/$H$17 -> 78.07819756 | P26: 81.04362775 | Q26: =+G26/$H$17 -> 87.82016556 | R26: =+H26/$H$17 -> 91.15444961 | S26: 92.80281158 | T26: 96.58122753 | U26: 97.29794484
B27: Approved excludable costs - allowance
B28: Equity raising costs | D28: 0 | E28: 0 | F28: 0 | G28: 0 | H28: 0 | I28: 0 | J28: 0 | K28: 0 | M28: =+C28/$H$17 -> 0 | N28: =+D28/$H$17 -> 0 | O28: =+E28/$H$17 -> 0 | P28: 0 | Q28: =+G28/$H$17 -> 0 | R28: =+H28/$H$17 -> 0 | S28: =+I28/$H$17 -> 0 | T28: =+J28/$H$17 -> 0 | U28: =+K28/$H$17 -> 0
B29: Debt raising costs | D29: -0.8376004496 | E29: -0.9383441104 | F29: -1.005530031 | G29: -1.1169 | H29: -1.1898 | I29: -1.2208 | J29: -1.2548 | K29: -1.2693 | M29: =+C29/$H$17 -> 0 | N29: -0.919893879 | O29: =+E29/$H$17 -> -1.030535506 | P29: -1.104322378 | Q29: =+G29/$H$17 -> -1.226634339 | R29: =+H29/$H$17 -> -1.306696693 | S29: =+I29/$H$17 -> -1.340742412 | T29: =+J29/$H$17 -> -1.378082879 | U29: =+K29/$H$17 -> -1.39400749
B30: Network support costs | D30: -5.775086187 | E30: -6.142574099 | F30: -7.221256521 | G30: -8.2345 | H30: -8.3017 | I30: -8.3542 | J30: -8.6149 | K30: -8.7001 | M30: 0 | N30: -6.342482787 | O30: -6.746076029 | P30: -7.93073795 | Q30: =+G30/$H$17 -> -9.043531615 | R30: -9.117333949 | S30: -9.174992023 | T30: -9.461305545 | U30: -9.554876362
B31: Self insurance | D31: -1.95896069 | E31: -1.979662839 | F31: -2.031274955 | G31: -1.3189 | H31: -1.3493 | I31: -1.3828 | J31: -1.4143 | K31: -1.4478 | M31: 0 | N31: -2.151426673 | O31: -2.174162787 | P31: -2.230845744 | Q31: -1.448480642 | R31: -1.481867412 | S31: -1.518658755 | T31: -1.553253599 | U31: -1.590044942
B32: Land tax | D32: -1.347421049 | E32: -1.538958015 | F32: -1.62846495 | G32: -2.1305 | H32: -2.232 | I32: -2.3334 | J32: -2.5364 | K32: -2.7393 | M32: 0 | N32: -1.479803856 | O32: -1.690159143 | P32: -1.788460047 | Q32: -2.339819553 | R32: -2.451291829 | S32: -2.56265428 | T32: -2.785598833 | U32: -3.00843356
B33: Reset Costs | D33: 0 | E33: 0 | F33: 0 | G33: 0 | H33: 0 | I33: 0 | J33: -1.4634 | K33: -1.4753 | M33: 0 | N33: 0 | O33: 0 | P33: 0 | Q33: 0 | R33: 0 | S33: 0 | T33: -1.607177626 | U33: -1.62024679
B34: Adjustment for provisions | D34: 0 | E34: 0 | F34: 0 | G34: 0 | H34: 0 | I34: 0 | J34: 0 | K34: 0 | M34: 0 | N34: 0 | O34: 0 | P34: 0 | Q34: =+G34/$H$17 -> 0 | R34: =+H34/$H$17 -> 0 | S34: =+I34/$H$17 -> 0 | T34: =+J34/$H$17 -> 0 | U34: =+K34/$H$17 -> 0
B35: Superannuation defined benefits contributions | D35: -1.189187318 | E35: -1.189187318 | F35: -1.189187318 | G35: -1.8262 | H35: -1.6233 | I35: -1.4204 | J35: -1.4204 | K35: -1.0145 | M35: 0 | N35: -1.306023816 | O35: -1.306023816 | P35: -1.306023816 | Q35: -2.005622374 | R35: -1.782787646 | S35: -1.559952918 | T35: -1.559952918 | U35: -1.114173638
B36: Heywood Opex allowance | D36: 0 | E36: 0 | F36: 0 | G36: 0 | H36: 0 | I36: 0 | J36: 1.089618852 | K36: 0.7832269586 | M36: 0 | N36: 0 | O36: 0 | P36: 0 | Q36: =+G36/$H$17 -> 0 | R36: =+H36/$H$17 -> 0 | S36: =+I36/$H$17 -> 0 | T36: =+J36/$H$17 -> 1.196672844 | U36: =+K36/$H$17 -> 0.8601782454
B37: Other adjustments or exclusions required by the EBSS | D37: 0 | E37: 0 | F37: 0 | G37: 0 | H37: 0 | I37: 0 | J37: 0 | K37: 0 | M37: 0 | N37: 0 | O37: 0 | P37: 0 | Q37: 0 | R37: 0 | S37: 0 | T37: 0 | U37: 0
B38: Forecast opex for EBSS purposes | C38: =(C26+SUM(C28:C37)) -> 0 | D38: 56.75696201 | E38: 59.30461914 | F38: 60.71777544 | G38: 65.3368 | H38: 68.3037 | I38: 69.7891 | J38: 72.32651885 | K38: 72.73062696 | M38: =+SUM(M26:M37) -> 0 | N38: 62.33327831 | O38: 65.13124028 | P38: 66.68323781 | Q38: 71.75607704 | R38: 75.01447208 | S38: 76.64581119 | T38: 79.43252897 | U38: 79.87634031
B40: 7.5.1.2 - Actual and estimated opex applicable to EBSS
C41: $m, Actual | M41: =CONCATENATE("$m, real ",dms_DollarReal) -> $m, real June 2018
C42: Previous period | G42: Current regulatory control period | M42: Previous period | Q42: Current regulatory control period
C43: =PRCP_y2 -> 2009-10 | D43: =PRCP_y3 -> 2010-11 | E43: =PRCP_y4 -> 2011-12 | F43: =PRCP_y5 -> 2012-13 | G43: =CRCP_y1 -> 2013-14 | H43: =CRCP_y2 -> 2014-15 | I43: =CRCP_y3 -> 2015-16 | J43: =CRCP_y4 -> 2016-17 | K43: =CRCP_y5 -> 2017-18 | M43: =PRCP_y2 -> 2009-10 | N43: =PRCP_y3 -> 2010-11 | O43: =PRCP_y4 -> 2011-12 | P43: =PRCP_y5 -> 2012-13 | Q43: =CRCP_y1 -> 2013-14 | R43: =CRCP_y2 -> 2014-15 | S43: =CRCP_y3 -> 2015-16 | T43: =CRCP_y4 -> 2016-17 | U43: =CRCP_y5 -> 2017-18
B44: Total opex | D44: 64.37 | E44: 72.58 | F44: 70.533139 | G44: 75.5 | H44: 80.99 | I44: 84.71 | J44: 92.03 | M44: =+C44/E$17*(1+M$16)^0.5 -> 0 | N44: =+D44/F$17*(1+M$16)^0.5 -> 73.97789824 | O44: =+E44/G$17*(1+M$16)^0.5 -> 82.41635489 | P44: =+F44/H$17*(1+M$16)^0.5 -> 78.22224011 | Q44: =+G44/I$17*(1+M$16)^0.5 -> 81.27952241 | R44: =+H44/J$17*(1+M$16)^0.5 -> 85.89207335 | S44: =+I44/K$17*(1+M$16)^0.5 -> 88.92727984 | T44: =+J44/L$17*(1+M$16)^0.5 -> 94.77896301 | U44: =+K44/M$17*(1+M$16)^0.5 -> 0
B45: Approved excludable costs
B46: =B28 -> Equity raising costs | D46: 0 | E46: 0 | F46: 0 | G46: 0 | H46: 0 | I46: 0 | J46: 0 | M46: =+C46/E$17*(1+M$16)^0.5 -> 0 | N46: =+D46/F$17*(1+M$16)^0.5 -> 0 | O46: =+E46/G$17*(1+M$16)^0.5 -> 0 | P46: =+F46/H$17*(1+M$16)^0.5 -> 0 | Q46: =+G46/I$17*(1+M$16)^0.5 -> 0 | R46: =+H46/J$17*(1+M$16)^0.5 -> 0 | S46: =+I46/K$17*(1+M$16)^0.5 -> 0 | T46: =+J46/L$17*(1+M$16)^0.5 -> 0 | U46: =+K46/M$17*(1+M$16)^0.5 -> 0
B47: Debt raising costs | D47: 0 | E47: 0 | F47: 0 | G47: 0 | H47: 0 | I47: 0 | J47: 0 | M47: =+C47/E$17*(1+M$16)^0.5 -> 0 | N47: =+D47/F$17*(1+M$16)^0.5 -> 0 | O47: =+E47/G$17*(1+M$16)^0.5 -> 0 | P47: =+F47/H$17*(1+M$16)^0.5 -> 0 | Q47: =+G47/I$17*(1+M$16)^0.5 -> 0 | R47: =+H47/J$17*(1+M$16)^0.5 -> 0 | S47: =+I47/K$17*(1+M$16)^0.5 -> 0 | T47: =+J47/L$17*(1+M$16)^0.5 -> 0
B48: =B30 -> Network support costs | D48: -6.6184656 | E48: -6.48 | F48: -7.367570561 | G48: -7.37 | H48: -8.68 | I48: -8.09 | J48: -9.081 | M48: 0 | N48: =+D48/F$17*(1+M$16)^0.5 -> -7.606341069 | O48: -7.358197571 | P48: -8.170739054 | Q48: -7.934173248 | R48: -9.205373462 | S48: -8.492759933 | T48: -9.352252126 | U48: 0
B49: Self insurance | D49: -1.873509265 | E49: -1.92330986 | F49: -2.022495922 | G49: -1.34 | H49: -1.39 | I49: -1.44 | J49: -1.502 | M49: 0 | N49: -2.15315019 | O49: -2.183965114 | P49: -2.242976335 | Q49: -1.442576954 | R49: -1.474132386 | S49: -1.511690272 | T49: -1.546865179 | U49: 0
B50: Land tax | D50: -1.059193553 | E50: -1.212916137 | F50: -1.305225966 | G50: -1.340575 | H50: -1.294554 | I50: -1.355273 | J50: -1.3897248 | M50: 0 | N50: -1.21728931 | O50: -1.377295767 | P50: -1.447513897 | Q50: -1.44319597 | R50: -1.372909336 | S50: -1.422745146 | T50: -1.431236286 | U50: 0
B51: Reset Costs | D51: 0 | E51: 0 | F51: 0 | G51: 0 | H51: 0 | I51: -0.548155 | J51: -0.841 | M51: 0 | N51: 0 | O51: 0 | P51: 0 | Q51: 0 | R51: 0 | S51: -0.5754448481 | T51: -0.8661209159 | U51: 0
B52: Adjustment for provisions | D52: -0.388 | E52: -0.019 | F52: -0.5409328472 | G52: -0.8033057083 | H52: -0.7618537999 | I52: -0.5006878607 | J52: -0.66 | M52: 0 | N52: -0.4459130731 | O52: -0.02157496201 | P52: -0.5999021121 | Q52: -0.8647987327 | R52: -0.807966446 | S52: -0.5256145614 | T52: -0.679714393 | U52: 0 | W52: =CONCATENATE(dms_TradingName," to nominate base year used to forecast opex (drop down menu)") -> ElectraNet to nominate base year used to forecast opex (drop down menu)
B53: Superannuation defined benefits contributions | D53: 0 | E53: 0 | F53: 0 | G53: 0.6595764731 | H53: 0.1685318543 | I53: 0 | J53: 0 | M53: 0 | N53: 0 | O53: 0 | P53: 0 | Q53: 0.7100670296 | R53: 0.1787325644 | S53: 0 | T53: 0 | U53: 0
B54: Heywood Opex allowance | D54: 0 | E54: 0 | F54: 0 | G54: 0 | H54: 0 | I54: 0 | J54: 0 | M54: 0 | N54: 0 | O54: 0 | P54: 0 | Q54: 0 | R54: 0 | S54: 0 | T54: 0 | U54: 0
B55: =B37 -> Other adjustments or exclusions required by the EBSS | D55: 0 | E55: 0 | F55: 0 | G55: 0 | H55: 0 | I55: 0 | J55: 0 | M55: 0 | N55: 0 | O55: 0 | P55: 0 | Q55: 0 | R55: 0 | S55: 0 | T55: 0 | U55: 0
B56: Actual opex for EBSS purposes | C56: =C44+SUM(C46:C55) -> 0 | D56: =D44+SUM(D46:D55) -> 54.43083158 | E56: 62.944774 | F56: 59.2969137 | G56: 65.30569576 | H56: 69.03212405 | I56: 72.77588414 | J56: 78.5562752 | K56: 0 | M56: =M44+SUM(M46:M55) -> 0 | N56: =N44+SUM(N46:N55) -> 62.55520459 | O56: =O44+SUM(O46:O55) -> 71.47532147 | P56: =P44+SUM(P46:P55) -> 65.76110871 | Q56: =Q44+SUM(Q46:Q55) -> 70.30484454 | R56: =R44+SUM(R46:R55) -> 73.21042428 | S56: 76.39902508 | T56: 80.90277411 | U56: =IF(V56="2016-17", U38-(T38-T56), U38-(S38-S56)) -> 79.6295542 | V56: 2015-16
D57: Base year | J57: estimates | N57: base year
M58: =CONCATENATE("INCREMENTAL GAIN, ($m, real ",dms_DollarReal,")") -> INCREMENTAL GAIN, ($m, real June 2018)
Q59: =(Q38-Q56)-(P38-P56)+(N38-N56) -> 0.3071771204 | R59: =(R38-R56)-(Q38-Q56) -> 0.3528152962 | S59: =(S38-S56)-(R38-R56) -> -1.557261693 | T59: -1.717031248 | U59: 1.717031248
M61: CARRYOVER
Q62: Current regulatory control period | V62: Forthcoming regulatory control period
O63: =CONCATENATE("$m, real ",dms_DollarReal) -> $m, real June 2018
Q64: =CRCP_y1 -> 2013-14 | R64: =CRCP_y2 -> 2014-15 | S64: =CRCP_y3 -> 2015-16 | T64: =CRCP_y4 -> 2016-17 | U64: =CRCP_y5 -> 2017-18 | V64: =FRCP_y1 -> 2018-19 | W64: =FRCP_y2 -> 2019-20 | X64: =FRCP_y3 -> 2020-21 | Y64: =FRCP_y4 -> 2021-22 | Z64: =FRCP_y5 -> 2022-23 | AA64: Total
M65: 2013-14 | R65: =$Q$59 -> 0.3071771204 | S65: =$Q$59 -> 0.3071771204 | T65: =$Q$59 -> 0.3071771204 | U65: =$Q$59 -> 0.3071771204 | V65: =$Q$59 -> 0.3071771204
M66: 2014-15 | S66: =$R$59 -> 0.3528152962 | T66: =$R$59 -> 0.3528152962 | U66: 0.3528152962 | V66: 0.3528152962 | W66: 0.3528152962
M67: 2015-16 | T67: =$S$59 -> -1.557261693 | U67: =$S$59 -> -1.557261693 | V67: -1.557261693 | W67: -1.557261693 | X67: -1.557261693
M68: 2016-17 | U68: =$T$59 -> -1.717031248 | V68: =$T$59 -> -1.717031248 | W68: -1.717031248 | X68: -1.717031248 | Y68: -1.717031248
M69: 2017-18 | V69: =$U$59 -> 1.717031248 | W69: =$U$59 -> 1.717031248 | X69: 1.717031248 | Y69: 1.717031248 | Z69: 1.717031248
M70: Total Carryover Amount ($m, 2017-18) | V70: =+SUM(V65:V69) -> -0.8972692764 | W70: =+SUM(W66:W69) -> -1.204446397 | X70: =+SUM(X67:X69) -> -1.557261693 | Y70: =+SUM(Y68:Y69) -> 0 | Z70: =+SUM(Z69) -> 1.717031248 | AA70: =SUM(V70:Z70) -> -1.941946119
M72: PTRM inputs ($m, 2017-18) | V72: =V70 -> -0.8972692764 | W72: =W70 -> -1.204446397 | X72: =X70 -> -1.557261693 | Y72: =Y70 -> 0 | Z72: =Z70 -> 1.717031248 | AA72: =SUM(V72:Z72) -> -1.941946119
B76: 7.5.2 - Proposed forecast opex for the EBSS for the forthcoming regulatory control period
C77: Forthcoming regulatory control period
C78: =CONCATENATE("$m, real ",dms_DollarReal) -> $m, real June 2018
C79: =FRCP_y1 -> 2018-19 | D79: =FRCP_y2 -> 2019-20 | E79: =FRCP_y3 -> 2020-21 | F79: =FRCP_y4 -> 2021-22 | G79: =FRCP_y5 -> 2022-23
B80: Forecast opex | C80: 86.65288658 | D80: 86.94542029 | E80: 87.65711588 | F80: 88.28597916 | G80: 88.57431644 | H80: =+SUM(A80:E80) -> 261.2554227 | I80: =+SUM(B80:F80) -> 349.5414019 | J80: =+SUM(C80:G80) -> 438.1157184
B81: Less excluded costs
B82: Less debt raising costs | C82: 0.1531200371 | D82: 0.1528390317 | E82: 0.1516613878 | F82: 0.1508709291 | G82: 0.1495045332 | H82: =+SUM(A82:E82) -> 0.4576204567 | I82: 0.6084913859 | J82: 0.7579959191
B83: Less network support costs | C83: 9.01709432 | D83: 9.061558875 | E83: 9.11528034 | F83: 9.181220408 | G83: 9.250795763 | H83: 27.19393354 | I83: 36.37515394 | J83: 45.62594971
B84: Less self-insurance costs | C84: 1.444052532 | D84: 1.451186398 | E84: 1.459769715 | F84: 1.470372635 | G84: 1.481480457 | H84: 4.355008644 | I84: 5.825381279 | J84: 7.306861736
B85: Less Insurance | C85: 2.746140826 | D85: 2.759695958 | E85: 2.776042407 | F85: 2.796139742 | G85: 2.817302701 | H85: 8.281879191 | I85: 11.07801893 | J85: 13.89532163
B86: Adjustment for provisions | C86: 0.6831310265 | D86: 0.7318748259 | E86: 0.7246129649 | F86: 0.7377114807 | G86: 0.7519913578 | H86: 2.139618817 | I86: 2.877330298 | J86: 3.629321656
B92: Adjusted forecast opex ($m, 2016-17) | C92: =+C80-SUM(C82:C91) -> 72.60934784 | D92: 72.7882652 | E92: 73.42974906 | F92: 73.94966397 | G92: 74.12324163 | H92: =+H80-SUM(H82:H91) -> 218.8273621 | I92: 292.7770261 | J92: 366.9002677

Sheet 7.6 Indicative bill impact
B1: =(LOOKUP(dms_Model,dms_Model_List,dms_Worksheet_List)) -> REGULATORY REPORTING STATEMENT
B2: =INDEX(dms_TradingNameFull_List,MATCH(dms_TradingName,dms_TradingName_List)) -> ElectraNet
B3: =IF(SUM(dms_SingleYear_Model)>0,CRY,CONCATENATE(FRCP_y1," to ",dms_MultiYear_FinalYear_Result)) -> 2018-19 to 2022-23
B4: 7.6 INDICATIVE IMPACT ON TRANSMISSION CHARGES AND ELECTRICITY BILLS
B6: Instructions
B7: =CONCATENATE(dms_TradingName," is required to populate all input cells (yellow) in table 7.6.1 presented below. Transmission pricing impact should refer to ",dms_TradingName,"'s related transmission costs only.") -> ElectraNet is required to populate all input cells (yellow) in table 7.6.1 presented below. Transmission pricing impact should refer to ElectraNet's related transmission costs only.
B9: 7.6.1 - Indicative impact of the revenue proposal on the average residential electricity bills
B11: Transmission costs as a proportion of a typical residential customer's electricity bill (per cent) | C11: 0.06963558107
B12: Transmission costs as a proportion of a typical business customer's electricity bill (per cent) | C12: 0.06963558107
B13: Source data: | C13: Transmission proportion of typical costs reflects the forecast average for the 2018-19 to 2022-23 regulatory period. Based on published data on average residential and small business electricity usage, including $1,767 per annum for average annual household bill and 5,000kWh annual household consumption and 10,000kWh annual small business consumption as per ESCOSA, Energy Retail Offers Comparison Report 2015-16, August 2016. Market offer has been escalated from 2016 at 1.1% per year as per Jacobs, Retail electricity price history and projections report, May 2016.
B15: Typical electricity bill - Residential customer
B16: Tariff type | C16: Description of tariff type | D16: =CONCATENATE("Annual bill amount ($", dms_CRCP_FinalYear_Result,")") -> Annual bill amount ($2017-18)
B17: Residential | D17: 1806.09
B20: <NSP to insert any additional items>
B21: <NSP to insert any additional items>
B22: Source data: | C22: Annual bill amount reflects forecast amount for 2018-19. Based on published data on average residential and small busines electricity usage, including $1,767 per annum for average annual household bill and 5,000kWh annual household consumption and 10,000kWh annual small business consumption as per ESCOSA, Energy Retail Offers Comparison Report 2015-16, August 2016.
B24: Typical electricity bill - Business customer
B25: Tariff type | C25: Description of tariff type | D25: =CONCATENATE("Annual bill amount ($", dms_CRCP_FinalYear_Result,")") -> Annual bill amount ($2017-18)
B26: Business | D26: =D17*2 -> 3612.18
B28: <NSP to insert any additional items>
B29: <NSP to insert any additional items>
B30: Source data: | C30: Annual bill reflects forecast amount for 2018-19. Based on published data on average residential and small business electricity usage, including $1,767 per annum for average annual household bill and 5,000kWh annual household consumption and 10,000kWh annual small business consumption as per ESCOSA, Energy Retail Offers Comparison Report 2015-16, August 2016.
B32: Indicative annual average transmission price impact as shown in the proposed PTRM (per cent) (
C33: =CRCP_y5 -> 2017-18 | D33: =FRCP_y1 -> 2018-19 | E33: =FRCP_y2 -> 2019-20 | F33: =FRCP_y3 -> 2020-21 | G33: =FRCP_y4 -> 2021-22 | H33: =FRCP_y5 -> 2022-23 | I33: Average
B34: Annual price path (per cent, nominal) | D34: -0.1010835789 | E34: 0.05983175459 | F34: 0.05531625219 | G34: 0.06439127772 | H34: 0.06256906992 | I34: =+AVERAGE(D34:H34) -> 0.0282049551
B35: =CONCATENATE("Annual price path (per cent, $",dms_DollarReal) -> Annual price path (per cent, $June 2018 | D35: -0.1184501117 | E35: 0.03935643286 | F35: 0.03492816729 | G35: 0.04382786871 | H35: 0.04204086488 | I35: =+AVERAGE(D35:H35) -> 0.008340644406
B38: Transmission bill component - Residential customer | C38: =CONCATENATE("Real ", dms_DollarReal) -> Real June 2018
B39: Tariff type | C39: =CRCP_y5 -> 2017-18 | D39: =FRCP_y1 -> 2018-19 | E39: =FRCP_y2 -> 2019-20 | F39: =FRCP_y3 -> 2020-21 | G39: =FRCP_y4 -> 2021-22 | H39: =FRCP_y5 -> 2022-23 | I39: =CONCATENATE("Total ",FRCP_y1," to ", IF(SUM(dms_SingleYear_Model)>0,"",dms_MultiYear_FinalYear_Result)) -> Total 2018-19 to 2022-23 | J39: Annual average | K39: Annual impact on customer bill (%)
B41: =+B17 -> Residential | C41: =+D17*$C$11 -> 125.7681266 | D41: =+C41*(1+IF($C$38="Nominal",D$34,D$35)) -> 110.870878 | E41: =+D41*(1+IF($C$38="Nominal",E$34,E$35)) -> 115.2343602 | F41: =+E41*(1+IF($C$38="Nominal",F$34,F$35)) -> 119.2592853 | G41: =+F41*(1+IF($C$38="Nominal",G$34,G$35)) -> 124.4861655 | H41: =+G41*(1+IF($C$38="Nominal",H$34,H$35)) -> 129.7196716 | I41: =+SUM(D41:H41) -> 599.5703606 | J41: =+AVERAGE(D41:H41) -> 119.9140721
B42: Annual change | D42: =+D41-C41 -> -14.89724865 | E42: =+E41-D41 -> 4.363482265 | F42: =+F41-E41 -> 4.024925012 | G42: =+G41-F41 -> 5.226880296 | H42: =+H41-G41 -> 5.233506065 | I42: =+SUM(D42:H42) -> 3.951544991 | J42: =+AVERAGE(D42:H42) -> 0.7903089981 | K42: =+J42/D17 -> 0.0004375800753
B44: =+B18 -> 0 | C44: =+D18*$C$11 -> 0 | D44: =+C44*(1+IF($C$38="Nominal",D$34,D$35)) -> 0 | E44: =+D44*(1+IF($C$38="Nominal",E$34,E$35)) -> 0 | F44: =+E44*(1+IF($C$38="Nominal",F$34,F$35)) -> 0 | G44: =+F44*(1+IF($C$38="Nominal",G$34,G$35)) -> 0 | H44: =+G44*(1+IF($C$38="Nominal",H$34,H$35)) -> 0 | I44: 0 | J44: =+AVERAGE(D44:H44) -> 0
B45: Annual change | D45: =+D44-C44 -> 0 | E45: =+E44-D44 -> 0 | F45: =+F44-E44 -> 0 | G45: =+G44-F44 -> 0 | H45: =+H44-G44 -> 0 | I45: 0 | J45: 0 | K45: =+J45/D18 -> 
B47: =+B19 -> 0 | C47: =+D19*$C$11 -> 0 | D47: =+C47*(1+IF($C$38="Nominal",D$34,D$35)) -> 0 | E47: =+D47*(1+IF($C$38="Nominal",E$34,E$35)) -> 0 | F47: =+E47*(1+IF($C$38="Nominal",F$34,F$35)) -> 0 | G47: =+F47*(1+IF($C$38="Nominal",G$34,G$35)) -> 0 | H47: =+G47*(1+IF($C$38="Nominal",H$34,H$35)) -> 0 | I47: 0 | J47: 0
B48: Annual change | D48: =+D47-C47 -> 0 | E48: =+E47-D47 -> 0 | F48: =+F47-E47 -> 0 | G48: =+G47-F47 -> 0 | H48: =+H47-G47 -> 0 | I48: 0 | J48: 0 | K48: =+J48/D19 -> 
B50: =+B20 -> <NSP to insert any additional items> | C50: =+D20*$C$11 -> 0 | D50: =+C50*(1+IF($C$38="Nominal",D$34,D$35)) -> 0 | E50: =+D50*(1+IF($C$38="Nominal",E$34,E$35)) -> 0 | F50: =+E50*(1+IF($C$38="Nominal",F$34,F$35)) -> 0 | G50: =+F50*(1+IF($C$38="Nominal",G$34,G$35)) -> 0 | H50: =+G50*(1+IF($C$38="Nominal",H$34,H$35)) -> 0 | I50: 0 | J50: 0
B51: Annual change | D51: =+D50-C50 -> 0 | E51: =+E50-D50 -> 0 | F51: =+F50-E50 -> 0 | G51: =+G50-F50 -> 0 | H51: =+H50-G50 -> 0 | I51: 0 | J51: 0 | K51: =+J51/D20 -> 
B53: =+B21 -> <NSP to insert any additional items> | C53: =+D21*$C$11 -> 0 | D53: =+C53*(1+IF($C$38="Nominal",D$34,D$35)) -> 0 | E53: =+D53*(1+IF($C$38="Nominal",E$34,E$35)) -> 0 | F53: =+E53*(1+IF($C$38="Nominal",F$34,F$35)) -> 0 | G53: =+F53*(1+IF($C$38="Nominal",G$34,G$35)) -> 0 | H53: =+G53*(1+IF($C$38="Nominal",H$34,H$35)) -> 0 | I53: =+SUM(D53:H53) -> 0 | J53: =+AVERAGE(D53:H53) -> 0
B54: Annual change | D54: =+D53-C53 -> 0 | E54: =+E53-D53 -> 0 | F54: =+F53-E53 -> 0 | G54: =+G53-F53 -> 0 | H54: =+H53-G53 -> 0 | I54: =+SUM(D54:H54) -> 0 | J54: =+AVERAGE(D54:H54) -> 0 | K54: =+J54/D21 -> 
B57: Transmission bill component - Business customer | C57: =CONCATENATE("Real ", dms_DollarReal) -> Real June 2018
B58: Tariff type | C58: =CRCP_y5 -> 2017-18 | D58: =FRCP_y1 -> 2018-19 | E58: =FRCP_y2 -> 2019-20 | F58: =FRCP_y3 -> 2020-21 | G58: =FRCP_y4 -> 2021-22 | H58: =FRCP_y5 -> 2022-23 | I58: =CONCATENATE("Total ",FRCP_y1," to ", IF(SUM(dms_SingleYear_Model)>0,"",dms_MultiYear_FinalYear_Result)) -> Total 2018-19 to 2022-23 | J58: Annual average | K58: Annual impact on customer bill (%)
B60: =+B26 -> Business | C60: =+D26*$C$12 -> 251.5362532 | D60: =+C60*(1+IF($C$57="Nominal",D$34,D$35)) -> 221.7417559 | E60: =+D60*(1+IF(D57="Nominal",E$34,E$35)) -> 230.4687205 | F60: =+E60*(1+IF(E57="Nominal",F$34,F$35)) -> 238.5185705 | G60: =+F60*(1+IF(F57="Nominal",G$34,G$35)) -> 248.9723311 | H60: =+G60*(1+IF(G57="Nominal",H$34,H$35)) -> 259.4393432 | I60: =+SUM(D60:H60) -> 1199.140721 | J60: =+AVERAGE(D60:H60) -> 239.8281443
B61: Annual change | D61: =+D60-C60 -> -29.7944973 | E61: =+E60-D60 -> 8.726964531 | F61: =+F60-E60 -> 8.049850025 | G61: =+G60-F60 -> 10.45376059 | H61: =+H60-G60 -> 10.46701213 | I61: =+SUM(D61:H61) -> 7.903089981 | J61: =+AVERAGE(D61:H61) -> 1.580617996 | K61: =+J61/D26 -> 0.0004375800753
B63: =+B27 -> 0 | C63: =+D27*$C$12 -> 0 | D63: =+C63*(1+IF(C60="Nominal",D$34,D$35)) -> 0 | E63: =+D63*(1+IF(D60="Nominal",E$34,E$35)) -> 0 | F63: =+E63*(1+IF(E60="Nominal",F$34,F$35)) -> 0 | G63: =+F63*(1+IF(F60="Nominal",G$34,G$35)) -> 0 | H63: =+G63*(1+IF(G60="Nominal",H$34,H$35)) -> 0 | I63: 0 | J63: 0
B64: Annual change | D64: =+D63-C63 -> 0 | E64: =+E63-D63 -> 0 | F64: =+F63-E63 -> 0 | G64: =+G63-F63 -> 0 | H64: =+H63-G63 -> 0 | I64: 0 | J64: 0 | K64: =+J64/D27 -> 
B66: =+B28 -> <NSP to insert any additional items> | C66: =+D28*$C$12 -> 0 | D66: =+C66*(1+IF(C63="Nominal",D$34,D$35)) -> 0 | E66: =+D66*(1+IF(D63="Nominal",E$34,E$35)) -> 0 | F66: =+E66*(1+IF(E63="Nominal",F$34,F$35)) -> 0 | G66: =+F66*(1+IF(F63="Nominal",G$34,G$35)) -> 0 | H66: =+G66*(1+IF(G63="Nominal",H$34,H$35)) -> 0 | I66: 0 | J66: 0
B67: Annual change | D67: =+D66-C66 -> 0 | E67: =+E66-D66 -> 0 | F67: =+F66-E66 -> 0 | G67: =+G66-F66 -> 0 | H67: =+H66-G66 -> 0 | I67: 0 | J67: 0 | K67: =+J67/D28 -> 
B69: =+B29 -> <NSP to insert any additional items> | C69: =+D29*$C$12 -> 0 | D69: =+C69*(1+IF(C66="Nominal",D$34,D$35)) -> 0 | E69: =+D69*(1+IF(D66="Nominal",E$34,E$35)) -> 0 | F69: =+E69*(1+IF(E66="Nominal",F$34,F$35)) -> 0 | G69: =+F69*(1+IF(F66="Nominal",G$34,G$35)) -> 0 | H69: =+G69*(1+IF(G66="Nominal",H$34,H$35)) -> 0 | I69: =+SUM(D69:H69) -> 0 | J69: =+AVERAGE(D69:H69) -> 0
B70: Annual change | D70: =+D69-C69 -> 0 | E70: =+E69-D69 -> 0 | F70: =+F69-E69 -> 0 | G70: =+G69-F69 -> 0 | H70: =+H69-G69 -> 0 | I70: =+SUM(D70:H70) -> 0 | J70: =+AVERAGE(D70:H70) -> 0 | K70: =+J70/D29 -> 

Sheet 7.9 STPIS
B1: =(LOOKUP(dms_Model,dms_Model_List,dms_Worksheet_List)) -> REGULATORY REPORTING STATEMENT
B2: =INDEX(dms_TradingNameFull_List,MATCH(dms_TradingName,dms_TradingName_List)) -> ElectraNet
B3: =IF(SUM(dms_SingleYear_Model)>0,CRY,CONCATENATE(FRCP_y1," to ",dms_MultiYear_FinalYear_Result)) -> 2018-19 to 2022-23
B4: 7.9 SERVICE TARGET PERFORMANCE INCENTIVE SCHEME (STPIS)
B6: There are FOUR tables on this worksheet. Each table has been grouped (and sub-grouped) for ease of navigation. See the Instructions sheet on how to group or ungroup tables.
B8: Instructions
B9: =dms_TradingName&" is required to provide the performance actuals for five years, and the proposed floor, target and cap for the next regulatory control period for the parameters under the service component of the STPIS in table 7.9.1 below." -> ElectraNet is required to provide the performance actuals for five years, and the proposed floor, target and cap for the next regulatory control period for the parameters under the service component of the STPIS in table 7.9.1 below.
B11: 7.9.1 - Historical performance and proposed floor, caps and targets for the service component of the STPIS
B12: Parameter | C12: Performance actuals | H12: Average of actual performance | I12: Floor | J12: Target | K12: Cap | L12: Weighting (% of MAR)
C13: =(LEFT(PRCP_y4,2)&RIGHT(PRCP_y4,2)) -> 2012 | D13: =LEFT(PRCP_y5,2)&RIGHT(PRCP_y5,2) -> 2013 | E13: =(LEFT(CRCP_y1,2)&RIGHT(CRCP_y1,2)) -> 2014 | F13: =(LEFT(CRCP_y2,2)&RIGHT(CRCP_y2,2)) -> 2015 | G13: =(LEFT(CRCP_y3,2)&RIGHT(CRCP_y3,2)) -> 2016
B14: Unplanned outage circuit event rate:
B15: Transmission line outage - fault | C15: 0.3909090909 | D15: 0.2252252252 | E15: 0.2212389381 | F15: 0.1929824561 | G15: 0.320855615 | H15: =+AVERAGE(C15:G15) -> 0.2702422651 | I15: 0.411 | J15: 0.27 | K15: 0.158 | L15: 0.002
B16: Transformer outage – fault | C16: 0.4 | D16: 0.2846715328 | E16: 0.3555555556 | F16: 0.1544117647 | G16: 0.3529411765 | H16: 0.3095160059 | I16: 0.43 | J16: 0.31 | K16: 0.18 | L16: 0.002
B17: Reactive plant – fault | C17: 0.2258064516 | D17: 0.2647058824 | E17: 0.2058823529 | F17: 0.1764705882 | G17: 0.5135135135 | H17: 0.2772757577 | I17: 0.438 | J17: 0.277 | K17: 0.133 | L17: 0.001
B18: Transmission line outage – forced outage | C18: 0.09090909091 | D18: 0.1441441441 | E18: 0.1150442478 | F18: 0.1403508772 | G18: 0.08021390374 | H18: 0.1141324528 | I18: 0.166 | J18: 0.114 | K18: 0.077 | L18: 0.001
B19: Transformer outage – forced outage | C19: 0.2444444444 | D19: 0.1605839416 | E19: 0.162962963 | F19: 0.1691176471 | G19: 0.03676470588 | H19: 0.1547747404 | I19: 0.29 | J19: 0.155 | K19: 0.015 | L19: 0.001
B20: Reactive plant – forced outage | C20: 0.1290322581 | D20: 0.3235294118 | E20: 0.1176470588 | F20: 0.1176470588 | G20: 0.1891891892 | H20: 0.1754089953 | I20: 0.295 | J20: 0.175 | K20: 0.078 | L20: 0.0005
B21: Loss of supply event frequency (number of events):
B22: > (x) system minutes | C22: 6 | D22: 5 | E22: 4 | F22: 1 | G22: 5 | H22: =+AVERAGE(C22:G22) -> 4.2 | I22: 8 | J22: 4 | K22: 1 | L22: 0.0015
B23: > (y) system minutes | C23: 5 | D23: 4 | E23: 1 | F23: 0 | G23: 2 | H23: =+AVERAGE(C23:G23) -> 2.4 | I23: 5 | J23: 2 | K23: 0 | L23: 0.0015
B24: Average outage duration (minutes): | C24: 122 | D24: 154.17 | E24: 130.71 | F24: 147 | G24: 250.5714286 | H24: =+AVERAGE(C24:G24) -> 160.8902857 | I24: 236 | J24: 161 | K24: 106 | L24: 0.002
B25: Proper operation of equipment (number of events):
B26: Failure of protection system | C26: 23 | D26: 28 | E26: 28 | F26: 24 | G26: 10 | H26: =+AVERAGE(C26:G26) -> 22.6 | I26: 31 | J26: 22.6 | K26: 15 | L26: 0
B27: Material failure of SCADA | C27: 2 | D27: 2 | E27: 0 | F27: 0 | G27: 2 | H27: =+AVERAGE(C27:G27) -> 1.2 | I27: 4 | J27: 1.2 | K27: 0 | L27: 0
B28: Incorrect operational isolation of primary or secondary equipment | C28: 8 | D28: 5 | E28: 9 | F28: 7 | G28: 10 | H28: =+AVERAGE(C28:G28) -> 7.8 | I28: 13 | J28: 7.8 | K28: 4 | L28: 0
B32: 7.9.2 - Proposed priority projects for the network capability incentive parameter
B33: Project ranking | C33: Transmission Circuit / Injection Point | D33: Scope of works | E33: =CONCATENATE(("If applicable, the present value of quantified benefits associated with the project ($0's, "),CRCP_y5,")") -> If applicable, the present value of quantified benefits associated with the project ($0's, 2017-18) | F33: =CONCATENATE(("Project cost ($0's, "),CRCP_y5,")") -> Project cost ($0's, 2017-18)
F34: =FRCP_y1 -> 2018-19 | G34: =FRCP_y2 -> 2019-20 | H34: =FRCP_y3 -> 2020-21 | I34: =FRCP_y4 -> 2021-22 | J34: =FRCP_y5 -> 2022-23 | K34: Opex | L34: Capex
B35: 1 | C35: Tailem Bend – Mobilong 132 kV Tailem Bend – Tungkillo 275 kV Tailem Bend – Cherry Gardens 275 kV South East – Tailem Bend #1 275 kV South East – Tailem Bend #2 275 kV | D35: Apply dynamic ratings to the circuits that make up the Heywood interconnector in South Australia to better account for favourable weather conditions. | E35: $800,000 p.a. | F35: 100000 | K35: 100000
B36: 2 | C36: Davenport – Belalie – Mokota – Robertstown 275 kV Davenport – Mt Lock - Canowie – Robertstown 275 kV | D36: Remove and replace plant that are rated lower than the design capability of the conductors | E36: $6,200,000 p.a. | F36: 1300000 | L36: 1300000
B37: 3 | C37: Robertstown 275/132 kV transformers | D37: Install DR-E3 transformer management relays and the bushing monitoring add-on to the two 275/132 kV transformers at Robertstown | E37: $200,000 p.a. | I37: 500000 | L37: 300000
B38: 4 | C38: State-wide | D38: To review the existing AULimit search program to support other power system analysis software packages currently available in the market such as Power Factory, its limit search criteria, appropriate programing language and any improvement that potentially be achieved in improving the accuracy of the limit derivation methodology. | E38: $300,000 p.a. | J38: 300000 | K38: 100000 | L38: 200000
B39: 5 | C39: South East 275 kV substation | D39: Install an additional 100 Mar capacitor at South East substation | E39: $1,000,000 p.a. | G39: 3600000 | L39: 3600000
B40: 6 | C40: Templers - Waterloo 132 Kv | D40: Install Smart Wires Powerline Guardian SD4-1200 and 3 Guardian 390-800 devices on Waterloo - Templers 132 kV. | E40: $1,300,000 p.a. | G40: 5900000 | L40: 5900000
B41: 7 | C41: Tungkillo 275 kV | D41: Tie in Tailem Bend to Cherry Gardens 275 kV at Tungkillo. | E41: $300,000 p.a. | H41: 5300000 | L41: 5300000
B55: 7.9.3 – Network limit information
B56: Limit identification | C56: Define limit | D56: Reason for the limit | E56: Is limit addressed by priority project | F56: Supporting information reference
B57: Transmission limitations on NSA - ADE 175 kV corridor | C57: Thermal limits of various transmission network elements | D57: Design capability | E57: Yes | F57: 2016 NTNDP, Draft NCIPAP template
B58: Transmission limiations on 132 kV network in the mid north | C58: Thermal limits of various transmission network elements | D58: design capability | E58: Yes | F58: 2016 NTNDP, Draft NCIPAP template
B59: Transmission limiations on the 132 kV newtork in the Riverland | C59: Thermal and voltage limiations | D59: Design capability and reactive shortfalls | E59: No | F59: 2016 NTNDP
B60: Transmission limiations on the 132 kV network in the Eyre Pensinula | C60: Thermal and voltage limits | D60: Design capability and reactive shortfalls | E60: No | F60: 2016 NTNDP
B61: Transmission limiations on the Tungkillo-Tailem Bend - South East transmission corridor | C61: Thermal and voltage limitations | D61: Design capability and reactive shortfalls | E61: Yes | F61: 2016 NTNDP, Draft NCIPAP template
B69: Instructions
B70: =dms_TradingName&" is required to provide performance data in accordance with Appendix C of the STPIS for the preceding seven calendar years in table 7.9.4 below. "&dms_TradingName&" is also required to provide relevant information in the MIC workbook attached to Appendix A of the Notice." -> ElectraNet is required to provide performance data in accordance with Appendix C of the STPIS for the preceding seven calendar years in table 7.9.4 below. ElectraNet is also required to provide relevant information in the MIC workbook attached to Appendix A of the Notice.
B72: 7.9.4 - Market impact component
D73: Market impact parameter
D74: Planned outage count(DI) | F74: Unplanned outage count (DI)
B75: Year | C75: Month | D75: without exclusions | E75: with exclusions | F75: without exclusions | G75: with exclusions | H75: Market impact parameters
B76: =LEFT(PRCP_y3,4) -> 2010 | C76: January | D76: 476 | E76: 227 | F76: 46 | G76: 46 | H76: =+E76/12 -> 18.91666667
B77: 2010 | C77: February | D77: 329 | E77: 144 | F77: 33 | G77: 0 | H77: 12
B78: 2010 | C78: March | D78: 286 | E78: 6 | F78: 0 | G78: 0 | H78: 0.5
B79: 2010 | C79: April | D79: 699 | E79: 15 | F79: 0 | G79: 0 | H79: 1.25
B80: 2010 | C80: May | D80: 324 | E80: 13 | F80: 95 | G80: 5 | H80: 1.083333333
B81: 2010 | C81: June | D81: 372 | E81: 68 | F81: 3 | G81: 0 | H81: 5.666666667
B82: 2010 | C82: July | D82: 320 | E82: 208 | F82: 5 | G82: 5 | H82: 17.33333333
B83: 2010 | C83: August | D83: 501 | E83: 358 | F83: 0 | G83: 0 | H83: 29.83333333
B84: 2010 | C84: September | D84: 160 | E84: 61 | F84: 127 | G84: 11 | H84: 5.083333333
B85: 2010 | C85: October | D85: 1259 | E85: 275 | F85: 112 | G85: 112 | H85: 22.91666667
B86: 2010 | C86: November | D86: 1736 | E86: 29 | F86: 98 | G86: 0 | H86: 2.416666667
B87: 2010 | C87: December | D87: 3190 | E87: 207 | F87: 105 | G87: 0 | H87: 17.25
B88: =CONCATENATE("Total ",LEFT(PRCP_y3,4)) -> Total 2010 | D88: =+SUM(D76:D87) -> 9652 | E88: =+SUM(E76:E87) -> 1611 | F88: =+SUM(F76:F87) -> 624 | G88: =+SUM(G76:G87) -> 179 | H88: =+SUM(H76:H87) -> 134.25
B89: =LEFT(PRCP_y4,4) -> 2011 | C89: January | D89: 634 | E89: 88 | F89: 18 | G89: 0 | H89: =+E89/12 -> 7.333333333
B90: 2011 | C90: February | D90: 855 | E90: 49 | F90: 36 | G90: 32 | H90: 4.083333333
B91: 2011 | C91: March | D91: 450 | E91: 60 | F91: 0 | G91: 0 | H91: 5
B92: 2011 | C92: April | D92: 43 | E92: 5 | F92: 0 | G92: 0 | H92: 0.4166666667
B93: 2011 | C93: May | D93: 282 | E93: 116 | F93: 6 | G93: 6 | H93: 9.666666667
B94: 2011 | C94: June | D94: 316 | E94: 65 | F94: 0 | G94: 0 | H94: 5.416666667
B95: 2011 | C95: July | D95: 478 | E95: 201 | F95: 87 | G95: 0 | H95: 16.75
B96: 2011 | C96: August | D96: 212 | E96: 18 | F96: 16 | G96: 0 | H96: 1.5
B97: 2011 | C97: September | D97: 400 | E97: 224 | F97: 65 | G97: 0 | H97: 18.66666667
B98: 2011 | C98: October | D98: 1444 | E98: 380 | F98: 161 | G98: 5 | H98: 31.66666667
B99: 2011 | C99: November | D99: 198 | E99: 73 | F99: 0 | G99: 0 | H99: 6.083333333
B100: 2011 | C100: December | D100: 198 | E100: 40 | F100: 45 | G100: 0 | H100: 3.333333333
B101: =CONCATENATE("Total ", LEFT(PRCP_y4,4)) -> Total 2011 | D101: =+SUM(D89:D100) -> 5510 | E101: =+SUM(E89:E100) -> 1319 | F101: =+SUM(F89:F100) -> 434 | G101: =+SUM(G89:G100) -> 43 | H101: =+SUM(H89:H100) -> 109.9166667
B102: =LEFT(PRCP_y5,4) -> 2012 | C102: January | D102: 282 | E102: 0 | F102: 0 | G102: 0 | H102: =+E102/12 -> 0
B103: 2012 | C103: February | D103: 140 | E103: 0 | F103: 0 | G103: 0 | H103: 0
B104: 2012 | C104: March | D104: 683 | E104: 29 | F104: 9 | G104: 0 | H104: 2.416666667
B105: 2012 | C105: April | D105: 1226 | E105: 38 | F105: 24 | G105: 11 | H105: 3.166666667
B106: 2012 | C106: May | D106: 844 | E106: 11 | F106: 0 | G106: 0 | H106: 0.9166666667
B107: 2012 | C107: June | D107: 887 | E107: 279 | F107: 2 | G107: 0 | H107: 23.25
B108: 2012 | C108: July | D108: 184 | E108: 69 | F108: 0 | G108: 0 | H108: 5.75
B109: 2012 | C109: August | D109: 1553 | E109: 583 | F109: 0 | G109: 0 | H109: 48.58333333
B110: 2012 | C110: September | D110: 1183 | E110: 1053 | F110: 19 | G110: 19 | H110: 87.75
B111: 2012 | C111: October | D111: 908 | E111: 676 | F111: 116 | G111: 64 | H111: 56.33333333
B112: 2012 | C112: November | D112: 1116 | E112: 559 | F112: 361 | G112: 67 | H112: 46.58333333
B113: 2012 | C113: December | D113: 1432 | E113: 781 | F113: 280 | G113: 16 | H113: 65.08333333
B114: =CONCATENATE("Total ", LEFT(PRCP_y5,4)) -> Total 2012 | D114: =+SUM(D102:D113) -> 10438 | E114: =+SUM(E102:E113) -> 4078 | F114: =+SUM(F102:F113) -> 811 | G114: =+SUM(G102:G113) -> 177 | H114: =+SUM(H102:H113) -> 339.8333333
B115: =LEFT(CRCP_y1,4) -> 2013 | C115: January | D115: 179 | E115: 0 | F115: 0 | G115: 0 | H115: =+E115/12 -> 0
B116: 2013 | C116: February | D116: 361 | E116: 10 | F116: 42 | G116: 1 | H116: 0.8333333333
B117: 2013 | C117: March | D117: 944 | E117: 0 | F117: 0 | G117: 0 | H117: 0
B118: 2013 | C118: April | D118: 197 | E118: 20 | F118: 14 | G118: 14 | H118: 1.666666667
B119: 2013 | C119: May | D119: 332 | E119: 0 | F119: 2759 | G119: 0 | H119: 0
B120: 2013 | C120: June | D120: 232 | E120: 1 | F120: 186 | G120: 0 | H120: 0.08333333333
B121: 2013 | C121: July | D121: 742 | E121: 530 | F121: 20 | G121: 20 | H121: 44.16666667
B122: 2013 | C122: August | D122: 756 | E122: 187 | F122: 0 | G122: 0 | H122: 15.58333333
B123: 2013 | C123: September | D123: 1149 | E123: 164 | F123: 35 | G123: 35 | H123: 13.66666667
B124: 2013 | C124: October | D124: 2131 | E124: 1099 | F124: 33 | G124: 33 | H124: 91.58333333
B125: 2013 | C125: November | D125: 442 | E125: 95 | F125: 0 | G125: 0 | H125: 7.916666667
B126: 2013 | C126: December | D126: 428 | E126: 256 | F126: 0 | G126: 0 | H126: 21.33333333
B127: =CONCATENATE("Total ", LEFT(CRCP_y1,4)) -> Total 2013 | D127: =+SUM(D115:D126) -> 7893 | E127: =+SUM(E115:E126) -> 2362 | F127: =+SUM(F115:F126) -> 3089 | G127: =+SUM(G115:G126) -> 103 | H127: =+SUM(H115:H126) -> 196.8333333
B128: =LEFT(CRCP_y2,4) -> 2014 | C128: January | D128: 268 | E128: 7 | F128: 133 | G128: 0 | H128: =+E128/12 -> 0.5833333333
B129: 2014 | C129: February | D129: 143 | E129: 0 | F129: 53 | G129: 0 | H129: 0
B130: 2014 | C130: March | D130: 265 | E130: 0 | F130: 93 | G130: 0 | H130: 0
B131: 2014 | C131: April | D131: 20 | E131: 0 | F131: 17 | G131: 0 | H131: 0
B132: 2014 | C132: May | D132: 85 | E132: 0 | F132: 86 | G132: 0 | H132: 0
B133: 2014 | C133: June | D133: 248 | E133: 0 | F133: 35 | G133: 0 | H133: 0
B134: 2014 | C134: July | D134: 113 | E134: 0 | F134: 25 | G134: 0 | H134: 0
B135: 2014 | C135: August | D135: 38 | E135: 15 | F135: 84 | G135: 0 | H135: 1.25
B136: 2014 | C136: September | D136: 290 | E136: 0 | F136: 64 | G136: 0 | H136: 0
B137: 2014 | C137: October | D137: 383 | E137: 39 | F137: 113 | G137: 9 | H137: 3.25
B138: 2014 | C138: November | D138: 115 | E138: 0 | F138: 24 | G138: 0 | H138: 0
B139: 2014 | C139: December | D139: 99 | E139: 26 | F139: 274 | G139: 0 | H139: 2.166666667
B140: =CONCATENATE("Total ", LEFT(CRCP_y2,4)) -> Total 2014 | D140: =+SUM(D128:D139) -> 2067 | E140: =+SUM(E128:E139) -> 87 | F140: =+SUM(F128:F139) -> 1001 | G140: =+SUM(G128:G139) -> 9 | H140: =+SUM(H128:H139) -> 7.25
B141: =LEFT(CRCP_y3,4) -> 2015 | C141: January | D141: 29 | E141: 0 | F141: 546 | G141: 283 | H141: =+E141/12 -> 0
B142: 2015 | C142: February | D142: 85 | E142: 0 | F142: 102 | G142: 0 | H142: 0
B143: 2015 | C143: March | D143: 600 | E143: 537 | F143: 42 | G143: 0 | H143: 44.75
B144: 2015 | C144: April | D144: 1102 | E144: 515 | F144: 233 | G144: 115 | H144: 42.91666667
B145: 2015 | C145: May | D145: 1759 | E145: 967 | F145: 224 | G145: 0 | H145: 80.58333333
B146: 2015 | C146: June | D146: 118 | E146: 83 | F146: 18 | G146: 0 | H146: 6.916666667
B147: 2015 | C147: July | D147: 3927 | E147: 2749 | F147: 149 | G147: 42 | H147: 229.0833333
B148: 2015 | C148: August | D148: 998 | E148: 477 | F148: 353 | G148: 236 | H148: 39.75
B149: 2015 | C149: September | D149: 2137 | E149: 1593 | F149: 148 | G149: 33 | H149: 132.75
B150: 2015 | C150: October | D150: 10781 | E150: 7324 | F150: 171 | G150: 0 | H150: 610.3333333
B151: 2015 | C151: November | D151: 7919 | E151: 2547 | F151: 591 | G151: 81 | H151: 212.25
B152: 2015 | C152: December | D152: 1180 | E152: 445 | F152: 188 | G152: 81 | H152: 37.08333333
B153: =CONCATENATE("Total ", LEFT(CRCP_y3,4)) -> Total 2015 | D153: =+SUM(D141:D152) -> 30635 | E153: =+SUM(E141:E152) -> 17237 | F153: =+SUM(F141:F152) -> 2765 | G153: =+SUM(G141:G152) -> 871 | H153: =+SUM(H141:H152) -> 1436.416667
B154: =LEFT(CRCP_y4,4) -> 2016 | C154: January | D154: 693 | E154: 217 | F154: 6 | G154: 0 | H154: =+E154/12 -> 18.08333333
B155: 2016 | C155: February | D155: 414 | E155: 0 | F155: 4 | G155: 3 | H155: 0
B156: 2016 | C156: March | D156: 1845 | E156: 737 | F156: 246 | G156: 184 | H156: 61.41666667
B157: 2016 | C157: April | D157: 1938 | E157: 671 | F157: 8 | G157: 0 | H157: 55.91666667
B158: 2016 | C158: May | D158: 1542 | E158: 746 | F158: 122 | G158: 23 | H158: 62.16666667
B159: 2016 | C159: June | D159: 3865 | E159: 1318 | F159: 26 | G159: 0 | H159: 109.8333333
B160: 2016 | C160: July | D160: 4816 | E160: 4390 | F160: 95 | G160: 4 | H160: 365.8333333
B161: 2016 | C161: August | D161: 5976 | E161: 1228 | F161: 203 | G161: 7 | H161: 102.3333333
B162: 2016 | C162: September | D162: 4944 | E162: 177 | F162: 2731 | G162: 234 | H162: 14.75
B163: 2016 | C163: October | D163: 2938 | E163: 1596 | F163: 8558 | G163: 334 | H163: 133
B164: 2016 | C164: November | D164: 8088 | E164: 2477 | F164: 1014 | G164: 31 | H164: 206.4166667
B165: 2016 | C165: December | D165: 4857 | E165: 305 | F165: 202 | G165: 0 | H165: 25.41666667
B166: =CONCATENATE("Total ", LEFT(CRCP_y4,4)) -> Total 2016 | D166: =+SUM(D154:D165) -> 41916 | E166: =+SUM(E154:E165) -> 13862 | F166: =+SUM(F154:F165) -> 13215 | G166: =+SUM(G154:G165) -> 820 | H166: =+SUM(H154:H165) -> 1155.166667

Sheet Reconciliation
A1: Regulatory Information Notice - Reconciliations
A2: Schedule 1 Clause | E2: Reconciles | F2: Comment
A3: 1.6 | B3: Provide reconciliation of the of the capital and operating expenditure forecasts provided in regulatory templates to the ex-ante capital and operating allowance in the Post Tax Revenue Model for the forthcoming regulatory control period | E3: Yes- Capex Yes- Opex | F3: Post Tax Revenue Model - PTRM input - Forecast Net Capital Expenditure As incurred ($m Real June 2018) ; Forecast Net Operating Expenditure ($m Real June 2018)
A4: 7.3 | B4: If cost base year approach used to develop ElectraNet's total forecast opex proposal, provide: | E4: Yes | F4: Cost base approach has been applied
B5: (a) reconciliation of ElectraNet's forecast total opex proposal to forecast prescribed transmission services opex by opex driver in table 2.16.1; | E5: Yes | F5: See below - Reconciliation Clause 7.3 (a) (Forecast Operational Expenditure). Template 2.16, table 2.16.1 has been prepared excluding provisions, the reconciliation inclusive of provisions is provided below
A6: 7.14 | B6: The amount of the total opex attributable to category specific opex must align with opex reported in table 2.16.1 | E6: Yes | F6: Reconciles with Forecast Operating Expenditure Model for Zero base ('bottom up') expenditure items
A7: 8.2 | B7: Total revenues must equal total forecast revenue as proposed by ElectraNet's in its revenue proposal | E7: Yes | F7: Reconciles to Post Tax Revenue Model - Revenue Summary- Revenue Smoothing ($m Real June 2018) Maximum Allowed Revenue
A8: 8.9 | B8: Regulatory Asset Base (RAB) financial data in Workbook 1 - Regulatory Determination, 3.3 Assets (RAB) regulatory template must reconcile to that in ElectraNet's revenue proposal Post Tax Revenue Model and Roll Forward Model | E8: Yes | F8: Template 3.3 Assets (RAB) reconciles with Post Tax Revenue Model and Roll Forward Model
A9: Appendix E: Instructions Part B: Workbook 1 - Regulatory determination Clause | E9: Reconciles | F9: Comment
A11: 2.9 | B11: Capex must be mutually exclusive and collectively exhaustive. Total expenditure for capex in table 2.1.1 must be reported on an as-incurred basis | E11: Yes | F11: Post Tax Revenue Model - PTRM input - Forecast Net Capital Expenditure As incurred ($m Real June 2018)
A12: 2.11 | B12: Total capitalised overheads in table 2.1.8 must reconcile with overheads reported in table 2.1.1 | E12: Yes | F12: See below - Reconciliation Clause 2.11 (Forecast Capital Expenditure Overheads). Overhead total from table 2.8.1 reconciles with the total of capitalised network overheads and capitalised corporate overheads from table 2.1.1
A13: 2.12 (a) | B13: Where ElectraNet provides asset sub-categories corresponding to the prescribed asset categories in table 2.2.1, ElectraNet must ensure that the expenditure and asset replacement / asset failure volumes of these sub categories reconcile to the higher level asset category | E13: Not Applicable | F13: Template 2.2 is prepared according to a project close basis as required by clause 2.7, summarised data within the Revenue Proposal is prepared on an annual as incurred basis.
A14: 2.12 (c) | B14: ElectraNet must ensure that the sum of the individual assets categories, including any additional sub-category, additional other asset category or asset refurbishment / life extension asset category expenditure reconciles to the total expenditure of the asset group | E14: Not Applicable | F14: Template 2.2 is prepared according to a project close basis as required by clause 2.7 and template 2.1 is reported on an annual as-incurred basis as required by clause 2.10
A15: 2.12 (d) | B15: Sum of asset group replacement expenditures is equal to the total replacement expenditure contained in template 2.1 | E15: Not Applicable | F15: Template 2.2 is prepared according to a project close basis as required by clause 2.7 and Template 2.1 is reported on a as-incurred basis as required by clause 2.10
A16: 2.16 (b) | B16: ElectraNet must explain how the sum of the asset group augmentation expenditure reconciles to the augmentation expenditure in table 2.3.1 and 2.3.2 | E16: Not Applicable | F16: Summary table 2.1.1 is prepared on an as incurred annual basis according to clause 2.10. Tables 2.3.1 & 2.3.2 are prepared on an aggregate project close basis according to clause 2.14 (c) and 2.15 (c)
A17: 2.16 (b) | B17: The sum of demand and non-demand augex should reconcile with total augmentation expenditure in table 2.3.4. | E17: Yes | F17: See below
A18: 2.18 (b) | B18: The sum of expenditure in table 2.3.6 should reconcile with demand-driven augex in table 2.3.5 | E18: Yes | F18: See below
A22: Reconciliation Clause 7.3 (a) (Forecast Operational Expenditure)
A23: Year | B23: ='2.16 Opex Summary'!C12 -> 2016-17 | C23: ='2.16 Opex Summary'!D12 -> 2017-18 | D23: ='2.16 Opex Summary'!E12 -> 2018-19 | E23: ='2.16 Opex Summary'!F12 -> 2019-20 | F23: ='2.16 Opex Summary'!G12 -> 2020-21 | G23: ='2.16 Opex Summary'!H12 -> 2021-22 | H23: ='2.16 Opex Summary'!I12 -> 2022-23
A24: Table 2.16.1 Total | B24: ='2.16 Opex Summary'!C19 -> 94767139.32 | C24: ='2.16 Opex Summary'!D19 -> 93580055.74 | D24: ='2.16 Opex Summary'!E19 -> 86785219.33 | E24: ='2.16 Opex Summary'!F19 -> 87212560.07 | F24: ='2.16 Opex Summary'!G19 -> 88060401.12 | G24: ='2.16 Opex Summary'!H19 -> 88827278.27 | H24: ='2.16 Opex Summary'!I19 -> 89255525.73
A25: Add Provisions from Table 3.2.1 | B25: ='3.2 Operating expenditure'!C27 -> -679598.7392 | C25: ='3.2 Operating expenditure'!D27 -> -683131.0265 | D25: ='3.2 Operating expenditure'!E27 -> -683131.0265 | E25: ='3.2 Operating expenditure'!F27 -> -731874.8259 | F25: ='3.2 Operating expenditure'!G27 -> -724612.9649 | G25: ='3.2 Operating expenditure'!H27 -> -737711.4807 | H25: ='3.2 Operating expenditure'!I27 -> -751991.3578
A27: Table Total 2.16.1 with Provisions | B27: =B24+B25 -> 94087540.58 | C27: =C24+C25 -> 92896924.72 | D27: 86102088.3 | E27: 86480685.25 | F27: 87335788.15 | G27: 88089566.79 | H27: 88503534.37 | I27: Reconciles
A29: Table 2.1.1 Total | B29: ='2.1 Expenditure summary'!C29 -> 94087540.58 | C29: ='2.1 Expenditure summary'!D29 -> 92896924.72 | D29: ='2.1 Expenditure summary'!E29 -> 86102088.3 | E29: ='2.1 Expenditure summary'!F29 -> 86480685.25 | F29: ='2.1 Expenditure summary'!G29 -> 87335788.15 | G29: ='2.1 Expenditure summary'!H29 -> 88089566.78 | H29: ='2.1 Expenditure summary'!I29 -> 88503534.36 | I29: Reconciles
A31: Table 3.2.1 Total | B31: ='3.2 Operating expenditure'!C48 -> 94087540.58 | C31: ='3.2 Operating expenditure'!D48 -> 92896924.72 | D31: ='3.2 Operating expenditure'!E48 -> 86102088.3 | E31: ='3.2 Operating expenditure'!F48 -> 86480685.25 | F31: ='3.2 Operating expenditure'!G48 -> 87335788.15 | G31: ='3.2 Operating expenditure'!H48 -> 88089566.79 | H31: ='3.2 Operating expenditure'!I48 -> 88503534.37 | I31: Reconciles
A34: Reconciliation Clause 2.11 (Forecast Capital Expenditure Overheads)
A35: Year | B35: ='2.1 Expenditure summary'!C44 -> 2016-17 | C35: ='2.1 Expenditure summary'!D44 -> 2017-18 | D35: ='2.1 Expenditure summary'!E44 -> 2018-19 | E35: ='2.1 Expenditure summary'!F44 -> 2019-20 | F35: ='2.1 Expenditure summary'!G44 -> 2020-21 | G35: ='2.1 Expenditure summary'!H44 -> 2021-22 | H35: ='2.1 Expenditure summary'!I44 -> 2022-23
A36: Table 2.1.8 Total Capitalised Overheads | B36: ='2.1 Expenditure summary'!C50 -> 10594170.59 | C36: ='2.1 Expenditure summary'!D50 -> 10462841.73 | D36: ='2.1 Expenditure summary'!E50 -> 10668959.71 | E36: ='2.1 Expenditure summary'!F50 -> 8125575.987 | F36: ='2.1 Expenditure summary'!G50 -> 8360247.187 | G36: ='2.1 Expenditure summary'!H50 -> 7040812.174 | H36: ='2.1 Expenditure summary'!I50 -> 4946776.34 | I36: Reconciles
A39: Table 2.1.1 Capitalised network overheads | B39: ='2.1 Expenditure summary'!C15 -> 96540.34081 | C39: ='2.1 Expenditure summary'!D15 -> 95343.59466 | D39: ='2.1 Expenditure summary'!E15 -> 97221.86348 | E39: ='2.1 Expenditure summary'!F15 -> 74045.04851 | F39: ='2.1 Expenditure summary'!G15 -> 76183.51112 | G39: ='2.1 Expenditure summary'!H15 -> 64160.03983 | H39: ='2.1 Expenditure summary'!I15 -> 45077.94828
A40: Table 2.1.1 Capitalised corporate overheads | B40: ='2.1 Expenditure summary'!C16 -> 10497630.25 | C40: ='2.1 Expenditure summary'!D16 -> 10367498.13 | D40: ='2.1 Expenditure summary'!E16 -> 10571737.85 | E40: ='2.1 Expenditure summary'!F16 -> 8051530.938 | F40: ='2.1 Expenditure summary'!G16 -> 8284063.676 | G40: ='2.1 Expenditure summary'!H16 -> 6976652.134 | H40: ='2.1 Expenditure summary'!I16 -> 4901698.391
A42: Table 2.1.1 Total Overheads | B42: =B39+B40 -> 10594170.59 | C42: =C39+C40 -> 10462841.73 | D42: 10668959.71 | E42: 8125575.987 | F42: 8360247.187 | G42: 7040812.174 | H42: 4946776.34 | I42: Reconciles
A45: Reconciliation Clause 2.16 (b) (Forecast Augmentation)
A46: Year | B46: ='2.3 Augex (b)'!C19 -> 2016-17 | C46: ='2.3 Augex (b)'!D19 -> 2017-18 | D46: ='2.3 Augex (b)'!E19 -> 2018-19 | E46: ='2.3 Augex (b)'!F19 -> 2019-20 | F46: ='2.3 Augex (b)'!G19 -> 2020-21 | G46: ='2.3 Augex (b)'!H19 -> 2021-22 | H46: ='2.3 Augex (b)'!I19 -> 2022-23
A47: Table 2.3.5 Demand driven augex | B47: ='2.3 Augex (b)'!C20 -> 433953.0313 | C47: ='2.3 Augex (b)'!D20 -> 804196.0568 | D47: ='2.3 Augex (b)'!E20 -> 0 | E47: ='2.3 Augex (b)'!F20 -> 0 | F47: ='2.3 Augex (b)'!G20 -> 0 | G47: ='2.3 Augex (b)'!H20 -> 0 | H47: ='2.3 Augex (b)'!I20 -> 0
A48: Table 2.3.5 Non-demand driven augex | B48: ='2.3 Augex (b)'!C21 -> 23350045.22 | C48: ='2.3 Augex (b)'!D21 -> 18639408.17 | D48: ='2.3 Augex (b)'!E21 -> 13910208.84 | E48: ='2.3 Augex (b)'!F21 -> 2637734.331 | F48: ='2.3 Augex (b)'!G21 -> 4946350.706 | G48: ='2.3 Augex (b)'!H21 -> 3682023.172 | H48: ='2.3 Augex (b)'!I21 -> 2367891.45
A50: Table 2.3.5 Total Augex - by Driver | B50: =B47+B48 -> 23783998.26 | C50: =C47+C48 -> 19443604.23 | D50: 13910208.84 | E50: 2637734.331 | F50: 4946350.706 | G50: 3682023.172 | H50: 2367891.45 | I50: Reconciles
A52: Table 2.3.4 Augex - Total Expenditure | B52: ='2.3 Augex (b)'!C14 -> 23783998.26 | C52: ='2.3 Augex (b)'!D14 -> 19443604.23 | D52: ='2.3 Augex (b)'!E14 -> 13910208.84 | E52: ='2.3 Augex (b)'!F14 -> 2637734.331 | F52: ='2.3 Augex (b)'!G14 -> 4946350.706 | G52: ='2.3 Augex (b)'!H14 -> 3682023.172 | H52: ='2.3 Augex (b)'!I14 -> 2367891.45 | I52: Reconciles
A55: Reconciliation Clause 2.18 (b) (Forecast Augmentation)
A56: Year | B56: ='2.3 Augex (b)'!C19 -> 2016-17 | C56: ='2.3 Augex (b)'!D19 -> 2017-18 | D56: ='2.3 Augex (b)'!E19 -> 2018-19 | E56: ='2.3 Augex (b)'!F19 -> 2019-20 | F56: ='2.3 Augex (b)'!G19 -> 2020-21 | G56: ='2.3 Augex (b)'!H19 -> 2021-22 | H56: ='2.3 Augex (b)'!I19 -> 2022-23
A57: Table 2.3.6 Total Augex - Demand Driven | B57: ='2.3 Augex (b)'!C31 -> 433953.0313 | C57: ='2.3 Augex (b)'!D31 -> 804196.0568 | D57: ='2.3 Augex (b)'!E31 -> 0 | E57: ='2.3 Augex (b)'!F31 -> 0 | F57: ='2.3 Augex (b)'!G31 -> 0 | G57: ='2.3 Augex (b)'!H31 -> 0 | H57: ='2.3 Augex (b)'!I31 -> 0 | I57: Reconciles
A59: Table 2.3.5 Augex - By Driver - Demand Driven Augex | B59: ='2.3 Augex (b)'!C20 -> 433953.0313 | C59: ='2.3 Augex (b)'!D20 -> 804196.0568 | D59: ='2.3 Augex (b)'!E20 -> 0 | E59: ='2.3 Augex (b)'!F20 -> 0 | F59: ='2.3 Augex (b)'!G20 -> 0 | G59: ='2.3 Augex (b)'!H20 -> 0 | H59: ='2.3 Augex (b)'!I20 -> 0 | I59: Reconciles
